BODY,BODY NAME,SUPPLIER CODE,SUPPLIER NAME,TRANSACTION NUMBER,INVOICE DATE,THEIR REF,NARR1,PAID DATE,VAT AMOUNT,EXCLUSIVE AMOUNT,INCLUSIVE AMOUNT,EXPENSE AREA,EXPENSE TYPE,EXPENSE CODE
http://statistics.data.gov.uk/id/local-authority/12UE,Huntingdonshire District Council,201011.00,CENTENNIAL PROPERTY LTD,026937,01/04/2020,CP-HDC080R,17-31 MARCH 20,14/05/2020,153.81,769.05,922.86,Homelessness,Other Cash Held,10003
http://statistics.data.gov.uk/id/local-authority/12UE,Huntingdonshire District Council,201235.00,Hilton Parish Council,024401,27/04/2020,024401,,16/04/2020,0,15300,15300,Paymaster Account,Paymaster Account,10082
http://statistics.data.gov.uk/id/local-authority/12UE,Huntingdonshire District Council,201235.00,Hilton Parish Council,025447,04/05/2020,025447,,23/04/2020,0,1885.96,1885.96,Paymaster Account,Paymaster Account,10082
http://statistics.data.gov.uk/id/local-authority/12UE,Huntingdonshire District Council,202316.00,ST IVES FOODBANK,028145,18/06/2020,028145,,11/06/2020,0,500,500,Paymaster Account,Paymaster Account,10082
http://statistics.data.gov.uk/id/local-authority/12UE,Huntingdonshire District Council,202187.00,CYCLESCHEME LTD,028135,03/06/2020,W494463,CYCLESCHEME,11/06/2020,740.83,3704.17,4445,Cycle to Work,Vehicles Plant Furniture & Equipment Cost,11300
http://statistics.data.gov.uk/id/local-authority/12UE,Huntingdonshire District Council,202187.00,CYCLESCHEME LTD,028135,03/06/2020,W494463,CYCLESCHEME,11/06/2020,0,35,35,Cycle to Work,Vehicles Plant Furniture & Equipment Cost,11300
http://statistics.data.gov.uk/id/local-authority/12UE,Huntingdonshire District Council,202187.00,CYCLESCHEME LTD,028135,13/05/2020,W486220,2 CYCLESCHEME CERTIFICATES,11/06/2020,266.67,1333.33,1600,Cycle to Work,Vehicles Plant Furniture & Equipment Cost,11300
http://statistics.data.gov.uk/id/local-authority/12UE,Huntingdonshire District Council,202187.00,CYCLESCHEME LTD,027245,13/05/2020,W486220,2 CYCLESCHEME CERTIFICATES,21/05/2020,266.67,1333.33,1600,Cycle to Work,Vehicles Plant Furniture & Equipment Cost,11300
http://statistics.data.gov.uk/id/local-authority/12UE,Huntingdonshire District Council,202187.00,CYCLESCHEME LTD,027245,14/05/2020,W486679,REDACTED,21/05/2020,100,500,600,Cycle to Work,Vehicles Plant Furniture & Equipment Cost,11300
http://statistics.data.gov.uk/id/local-authority/12UE,Huntingdonshire District Council,202187.00,CYCLESCHEME LTD,028135,04/06/2020,W495005,CYCLESCHEME,11/06/2020,60,300,360,Cycle to Work,Vehicles Plant Furniture & Equipment Cost,11300
http://statistics.data.gov.uk/id/local-authority/12UE,Huntingdonshire District Council,202187.00,CYCLESCHEME LTD,028135,04/06/2020,W495005,CYCLESCHEME,11/06/2020,0,50,50,Cycle to Work,Vehicles Plant Furniture & Equipment Cost,11300
http://statistics.data.gov.uk/id/local-authority/12UE,Huntingdonshire District Council,202273.00,C&W COMMERCIALS LTD,026188,28/04/2020,CW006919,SKIPLOADER,30/04/2020,8200,41000,49200,Vehicles & Plant,Vehicles Plant Furniture & Equipment Cost,11300
http://statistics.data.gov.uk/id/local-authority/12UE,Huntingdonshire District Council,200220.00,D & H SIGN & DISPLAY SERVICE D & H SIGN & DISPLAY SERVICE,026112,16/03/2020,6959,HDC CORPORATE GRAPHICS,30/04/2020,77.2,386,463.2,Vehicles & Plant,Vehicles Plant Furniture & Equipment Cost,11300
http://statistics.data.gov.uk/id/local-authority/12UE,Huntingdonshire District Council,200356.00,WATSON FUELS WATSON FUELS,025360,27/03/2020,I11785188,DIESEL,23/04/2020,5124.34,25621.71,30746.05,Operations Diesel Stock,General Stock Account,11601
http://statistics.data.gov.uk/id/local-authority/12UE,Huntingdonshire District Council,200356.00,WATSON FUELS WATSON FUELS,025360,25/03/2020,I11775723,DIESEL,23/04/2020,5123.32,25616.58,30739.9,Operations Diesel Stock,General Stock Account,11601
http://statistics.data.gov.uk/id/local-authority/12UE,Huntingdonshire District Council,200356.00,WATSON FUELS WATSON FUELS,026894,17/04/2020,I11828144,DIESEL,14/05/2020,5022,25110,30132,Operations Diesel Stock,General Stock Account,11601
http://statistics.data.gov.uk/id/local-authority/12UE,Huntingdonshire District Council,200356.00,WATSON FUELS WATSON FUELS,028570,22/05/2020,I11920538,DIESEL,25/06/2020,4868.51,24342.57,29211.08,Operations Diesel Stock,General Stock Account,11601
http://statistics.data.gov.uk/id/local-authority/12UE,Huntingdonshire District Council,200356.00,WATSON FUELS WATSON FUELS,027820,07/05/2020,I11883736,DIESEL,04/06/2020,4740.28,23701.42,28441.7,Operations Diesel Stock,General Stock Account,11601
http://statistics.data.gov.uk/id/local-authority/12UE,Huntingdonshire District Council,200569.00,NEWLYN PLC NEWLYN PLC,025387,28/03/2020,5679.,CT BAILIFF (MARCH) - VAT AMOUNT,23/04/2020,0,2566.31,2566.31,VAT,VAT Input Tax,11727
http://statistics.data.gov.uk/id/local-authority/12UE,Huntingdonshire District Council,200569.00,NEWLYN PLC NEWLYN PLC,027197,25/04/2020,5724.,CT BAILIFF (APRIL) VAT AMOUNT,21/05/2020,0,2406.92,2406.92,VAT,VAT Input Tax,11727
http://statistics.data.gov.uk/id/local-authority/12UE,Huntingdonshire District Council,200433.00,JACOBS JACOBS,026570,09/04/2020,B060420.,CT BAILIFF (MAR) VAT AMOUNT,07/05/2020,0,2333.9,2333.9,VAT,VAT Input Tax,11727
http://statistics.data.gov.uk/id/local-authority/12UE,Huntingdonshire District Council,202242.00,SEDGWICK REPAIR SOLUTIONS UK LTD,023486,28/01/2020,9211168,SAPLEY PARK PAVILION,02/04/2020,0,1658.41,1658.41,VAT,VAT Input Tax,11727
http://statistics.data.gov.uk/id/local-authority/12UE,Huntingdonshire District Council,200433.00,JACOBS JACOBS,027834,11/05/2020,B040520.,CT BAILIFF (APRIL) VAT AMOUNT,04/06/2020,0,979.8,979.8,VAT,VAT Input Tax,11727
http://statistics.data.gov.uk/id/local-authority/12UE,Huntingdonshire District Council,200840.00,WEIGHTMANS WEIGHTMANS,027523,30/01/2020,01928268,REDACTED,28/05/2020,0,489.92,489.92,VAT,VAT Input Tax,11727
http://statistics.data.gov.uk/id/local-authority/12UE,Huntingdonshire District Council,200840.00,WEIGHTMANS WEIGHTMANS,027523,30/04/2020,01950873,PROFESSIONAL SERVICES,28/05/2020,0,266,266,VAT,VAT Input Tax,11727
http://statistics.data.gov.uk/id/local-authority/12UE,Huntingdonshire District Council,202272.00,ENVEA UK LTD,026187,27/04/2020,REDACTED,REDACTED,30/04/2020,0,819.77,819.77,Sales Control 2,Sales Control 2,12052
http://statistics.data.gov.uk/id/local-authority/12UE,Huntingdonshire District Council,200159.01,CAMBRIDGESHIRE COUNTY COUNCIL C/O LGSS,027482,28/05/2020,LGSS INCIDENT NO. 1532675,LGSS Incident no. 1532675,28/05/2020,0,524.24,524.24,Sales Control 2,Sales Control 2,12052
http://statistics.data.gov.uk/id/local-authority/12UE,Huntingdonshire District Council,200101.00,BID HUNTINGDON BID HUNTINGDON,023804,03/04/2020,INV-1870,MARCH 2020,08/04/2020,1066.75,5333.75,6400.5,Bid Revenue Account,Payment Of Amount Due,23003
http://statistics.data.gov.uk/id/local-authority/12UE,Huntingdonshire District Council,200101.00,BID HUNTINGDON BID HUNTINGDON,028066,08/06/2020,INV-1872,BID SETTLEMENT MAY 20,11/06/2020,184.35,921.75,1106.1,Bid Revenue Account,Payment Of Amount Due,23003
http://statistics.data.gov.uk/id/local-authority/12UE,Huntingdonshire District Council,200210.00,COMPUTERSHARE VOUCHERS LTD COMPUTERSHARE VOUCHERS LTD,026110,27/04/2020,C-0003058080,TAX FREE VOUCHERS,30/04/2020,14.14,70.71,84.85,Child Care Vouchers - Payroll,Deductions Paid To Third Party,23014
http://statistics.data.gov.uk/id/local-authority/12UE,Huntingdonshire District Council,200210.00,COMPUTERSHARE VOUCHERS LTD COMPUTERSHARE VOUCHERS LTD,027487,26/05/2020,C-0003069994,TAX FREE VOUCHERS,28/05/2020,13.6,68,81.6,Child Care Vouchers - Payroll,Deductions Paid To Third Party,23014
http://statistics.data.gov.uk/id/local-authority/12UE,Huntingdonshire District Council,200210.00,COMPUTERSHARE VOUCHERS LTD COMPUTERSHARE VOUCHERS LTD,028563,24/06/2020,C-0003081818,TAX FREE VOUCHERS,25/06/2020,12.34,61.68,74.02,Child Care Vouchers - Payroll,Deductions Paid To Third Party,23014
http://statistics.data.gov.uk/id/local-authority/12UE,Huntingdonshire District Council,200156.00,CAMBRIDGE VENDING LTD T/A THE VENDING PEOPLE CAMBRIDGE VENDING,028336,22/05/2020,209936,VENDING MACHINES,18/06/2020,48.89,244.43,293.32,Eastfield House,Sale Of Food & Drink,51209
http://statistics.data.gov.uk/id/local-authority/12UE,Huntingdonshire District Council,200156.00,CAMBRIDGE VENDING LTD T/A THE VENDING PEOPLE CAMBRIDGE VENDING,028336,22/05/2020,209936,VENDING MACHINES,18/06/2020,48.51,242.54,291.05,Eastfield House,Sale Of Food & Drink,51209
http://statistics.data.gov.uk/id/local-authority/12UE,Huntingdonshire District Council,200156.00,CAMBRIDGE VENDING LTD T/A THE VENDING PEOPLE CAMBRIDGE VENDING,025342,27/03/2020,209626,VENDING MACHINES,23/04/2020,34.11,170.57,204.68,Eastfield House,Sale Of Food & Drink,51209
http://statistics.data.gov.uk/id/local-authority/12UE,Huntingdonshire District Council,200156.00,CAMBRIDGE VENDING LTD T/A THE VENDING PEOPLE CAMBRIDGE VENDING,025342,27/03/2020,209626,VENDING MACHINES,23/04/2020,33.77,168.83,202.6,Eastfield House,Sale Of Food & Drink,51209
http://statistics.data.gov.uk/id/local-authority/12UE,Huntingdonshire District Council,201485.00,CAMBRIDGESHIRE HOTEL LTD T/AS THE DOLPHIN,026618,03/05/2020,DH019803,27/04 - 03/05/20,07/05/2020,70,350,420,Homelessness,B&B Costs Recovered,51406
http://statistics.data.gov.uk/id/local-authority/12UE,Huntingdonshire District Council,201485.00,CAMBRIDGESHIRE HOTEL LTD T/AS THE DOLPHIN,025462,12/04/2020,DH9014,09-17/04/20,23/04/2020,80,400,480,Homelessness,B&B Costs Recovered,51406
http://statistics.data.gov.uk/id/local-authority/12UE,Huntingdonshire District Council,201011.00,CENTENNIAL PROPERTY LTD,026937,01/05/2020,CP-HDCO82R,16-30 APRIL 20,14/05/2020,83.6,418,501.6,Homelessness,B&B Costs Recovered,51406
http://statistics.data.gov.uk/id/local-authority/12UE,Huntingdonshire District Council,201485.00,CAMBRIDGESHIRE HOTEL LTD T/AS THE DOLPHIN,028647,17/06/2020,DH019820,08-14/06/20,25/06/2020,70,350,420,Homelessness,B&B Costs Recovered,51406
http://statistics.data.gov.uk/id/local-authority/12UE,Huntingdonshire District Council,202179.00,THOMAS W LUMLEY C/O BROWN AND CO BARFORDS,731460,07/01/2020,19/70207/PENQ,REFUND - 19/70207/PENQ,02/04/2020,0,348,348,Dm Advice,Fees & Charges Income ,53000
http://statistics.data.gov.uk/id/local-authority/12UE,Huntingdonshire District Council,202229.00,BEWICK HOMES LTD,023892,17/03/2020,REFUND 18/01411/FUL,REDACTED,08/04/2020,63.76,318.8,382.56,Viability Assessments,Costs Recovered,53100
http://statistics.data.gov.uk/id/local-authority/12UE,Huntingdonshire District Council,201477.00,PLANNING PORTAL,028646,19/06/2020,PP-08710059,PP-08330189- no permission needed,25/06/2020,0,462,462,Dm Application Processing,Planning Applications Income,54100
http://statistics.data.gov.uk/id/local-authority/12UE,Huntingdonshire District Council,201114.00,XP RECRUITMENT LTD,026944,22/04/2020,9464,GROUNDSMEN W/E 18/04/20,14/05/2020,90,450,540,Grounds Maintenance,Salaries,60000
http://statistics.data.gov.uk/id/local-authority/12UE,Huntingdonshire District Council,201114.00,XP RECRUITMENT LTD,026944,22/04/2020,9464,GROUNDSMEN W/E 18/04/20,14/05/2020,82.5,412.5,495,Grounds Maintenance,Salaries,60000
http://statistics.data.gov.uk/id/local-authority/12UE,Huntingdonshire District Council,201114.00,XP RECRUITMENT LTD,026944,22/04/2020,9464,GROUNDSMEN W/E 18/04/20,14/05/2020,82.5,412.5,495,Grounds Maintenance,Salaries,60000
http://statistics.data.gov.uk/id/local-authority/12UE,Huntingdonshire District Council,200924.00,ALCONBURY PARISH COUNCIL,025425,14/04/2020,GC/A/HDC20/21,GRASS CUTTING,23/04/2020,0,960,960,Grounds Maintenance,Salaries,60000
http://statistics.data.gov.uk/id/local-authority/12UE,Huntingdonshire District Council,201108.00,ELTON PARISH COUNCIL,027867,17/05/2020,GRASSCUTTING 2019/2020,GRASS CUTTING,04/06/2020,0,790,790,Grounds Maintenance,Salaries,60000
http://statistics.data.gov.uk/id/local-authority/12UE,Huntingdonshire District Council,201108.00,ELTON PARISH COUNCIL,027867,20/05/2020,GRASSCUTTING 2020/2021,GRASS CUTTING,04/06/2020,0,790,790,Grounds Maintenance,Salaries,60000
http://statistics.data.gov.uk/id/local-authority/12UE,Huntingdonshire District Council,200420.00,INTERACTION RECRUITMENT PLC INTERACTION RECRUITMENT PLC,028350,24/05/2020,INV2039264,REDACTED,18/06/2020,10.11,50.56,60.67,Printing,Salary Cost Outside Payroll,60010
http://statistics.data.gov.uk/id/local-authority/12UE,Huntingdonshire District Council,200420.00,INTERACTION RECRUITMENT PLC INTERACTION RECRUITMENT PLC,023829,15/03/2020,INV2029883,REDACTED,08/04/2020,8.99,44.95,53.94,Printing,Salary Cost Outside Payroll,60010
http://statistics.data.gov.uk/id/local-authority/12UE,Huntingdonshire District Council,200420.00,INTERACTION RECRUITMENT PLC INTERACTION RECRUITMENT PLC,026126,05/04/2020,INV2033906,REDACTED,30/04/2020,8.99,44.95,53.94,Printing,Salary Cost Outside Payroll,60010
http://statistics.data.gov.uk/id/local-authority/12UE,Huntingdonshire District Council,200420.00,INTERACTION RECRUITMENT PLC INTERACTION RECRUITMENT PLC,024317,22/03/2020,INV2031418,REDACTED,16/04/2020,8.99,44.94,53.93,Printing,Salary Cost Outside Payroll,60010
http://statistics.data.gov.uk/id/local-authority/12UE,Huntingdonshire District Council,200420.00,INTERACTION RECRUITMENT PLC INTERACTION RECRUITMENT PLC,027187,26/04/2020,INV2036346,REDACTED,21/05/2020,9.98,49.88,59.86,Printing,Salary Cost Outside Payroll,60010
http://statistics.data.gov.uk/id/local-authority/12UE,Huntingdonshire District Council,200420.00,INTERACTION RECRUITMENT PLC INTERACTION RECRUITMENT PLC,027499,03/05/2020,INV2036994,REDACTED,28/05/2020,9.98,49.88,59.86,Printing,Salary Cost Outside Payroll,60010
http://statistics.data.gov.uk/id/local-authority/12UE,Huntingdonshire District Council,200420.00,INTERACTION RECRUITMENT PLC INTERACTION RECRUITMENT PLC,028089,17/05/2020,INV2038406,REDACTED,11/06/2020,9.98,49.88,59.86,Printing,Salary Cost Outside Payroll,60010
http://statistics.data.gov.uk/id/local-authority/12UE,Huntingdonshire District Council,200420.00,INTERACTION RECRUITMENT PLC INTERACTION RECRUITMENT PLC,026568,12/04/2020,INV2034800,REDACTED,07/05/2020,8.09,40.44,48.53,Printing,Salary Cost Outside Payroll,60010
http://statistics.data.gov.uk/id/local-authority/12UE,Huntingdonshire District Council,200420.00,INTERACTION RECRUITMENT PLC INTERACTION RECRUITMENT PLC,027832,10/05/2020,INV2037688,REDACTED,04/06/2020,8.09,40.45,48.54,Printing,Salary Cost Outside Payroll,60010
http://statistics.data.gov.uk/id/local-authority/12UE,Huntingdonshire District Council,200420.00,INTERACTION RECRUITMENT PLC INTERACTION RECRUITMENT PLC,026900,19/04/2020,INV2035560,REDACTED,14/05/2020,7.95,39.77,47.72,Printing,Salary Cost Outside Payroll,60010
http://statistics.data.gov.uk/id/local-authority/12UE,Huntingdonshire District Council,200420.00,INTERACTION RECRUITMENT PLC INTERACTION RECRUITMENT PLC,028579,31/05/2020,INV2040202,REDACTED,25/06/2020,7.95,39.77,47.72,Printing,Salary Cost Outside Payroll,60010
http://statistics.data.gov.uk/id/local-authority/12UE,Huntingdonshire District Council,200420.00,INTERACTION RECRUITMENT PLC INTERACTION RECRUITMENT PLC,028089,29/03/2020,INV2032820,REDACTED,11/06/2020,5.26,26.29,31.55,Printing,Salary Cost Outside Payroll,60010
http://statistics.data.gov.uk/id/local-authority/12UE,Huntingdonshire District Council,200550.00,MORGAN HUNT PUBLIC UK LTD MORGAN HUNT PUBLIC UK LTD,026133,19/04/2020,1173641,REDACTED,30/04/2020,249.67,1248.33,1498,Benefits Management,Agency Staff,60011
http://statistics.data.gov.uk/id/local-authority/12UE,Huntingdonshire District Council,200550.00,MORGAN HUNT PUBLIC UK LTD MORGAN HUNT PUBLIC UK LTD,023838,29/03/2020,1170636,REDACTED,08/04/2020,204.24,1021.2,1225.44,Benefits Management,Agency Staff,60011
http://statistics.data.gov.uk/id/local-authority/12UE,Huntingdonshire District Council,200550.00,MORGAN HUNT PUBLIC UK LTD MORGAN HUNT PUBLIC UK LTD,023414,22/03/2020,1169351,REDACTED,02/04/2020,198.72,993.6,1192.32,Benefits Management,Agency Staff,60011
http://statistics.data.gov.uk/id/local-authority/12UE,Huntingdonshire District Council,200550.00,MORGAN HUNT PUBLIC UK LTD MORGAN HUNT PUBLIC UK LTD,026910,03/05/2020,1175791,REDACTED,14/05/2020,196.4,982.01,1178.41,Benefits Management,Agency Staff,60011
http://statistics.data.gov.uk/id/local-authority/12UE,Huntingdonshire District Council,200550.00,MORGAN HUNT PUBLIC UK LTD MORGAN HUNT PUBLIC UK LTD,023838,29/03/2020,1170635,REDACTED,08/04/2020,195.52,977.59,1173.11,Benefits Management,Agency Staff,60011
http://statistics.data.gov.uk/id/local-authority/12UE,Huntingdonshire District Council,200550.00,MORGAN HUNT PUBLIC UK LTD MORGAN HUNT PUBLIC UK LTD,024325,05/04/2020,1171763,REDACTED,16/04/2020,193.2,966,1159.2,Benefits Management,Agency Staff,60011
http://statistics.data.gov.uk/id/local-authority/12UE,Huntingdonshire District Council,200550.00,MORGAN HUNT PUBLIC UK LTD MORGAN HUNT PUBLIC UK LTD,025382,12/04/2020,1172710,REDACTED,23/04/2020,188.37,941.85,1130.22,Benefits Management,Agency Staff,60011
http://statistics.data.gov.uk/id/local-authority/12UE,Huntingdonshire District Council,200550.00,MORGAN HUNT PUBLIC UK LTD MORGAN HUNT PUBLIC UK LTD,024325,05/04/2020,1171762,REDACTED,16/04/2020,187.24,936.19,1123.43,Benefits Management,Agency Staff,60011
http://statistics.data.gov.uk/id/local-authority/12UE,Huntingdonshire District Council,200550.00,MORGAN HUNT PUBLIC UK LTD MORGAN HUNT PUBLIC UK LTD,026579,26/04/2020,1174781,REDACTED,07/05/2020,186.8,933.98,1120.78,Benefits Management,Agency Staff,60011
http://statistics.data.gov.uk/id/local-authority/12UE,Huntingdonshire District Council,200550.00,MORGAN HUNT PUBLIC UK LTD MORGAN HUNT PUBLIC UK LTD,025382,12/04/2020,1172709,REDACTED,23/04/2020,165.6,828,993.6,Benefits Management,Agency Staff,60011
http://statistics.data.gov.uk/id/local-authority/12UE,Huntingdonshire District Council,200550.00,MORGAN HUNT PUBLIC UK LTD MORGAN HUNT PUBLIC UK LTD,026133,19/04/2020,1173640,REDACTED,30/04/2020,162.84,814.2,977.04,Benefits Management,Agency Staff,60011
http://statistics.data.gov.uk/id/local-authority/12UE,Huntingdonshire District Council,200550.00,MORGAN HUNT PUBLIC UK LTD MORGAN HUNT PUBLIC UK LTD,027194,10/05/2020,1176959,REDACTED,21/05/2020,156.88,784.39,941.27,Benefits Management,Agency Staff,60011
http://statistics.data.gov.uk/id/local-authority/12UE,Huntingdonshire District Council,200550.00,MORGAN HUNT PUBLIC UK LTD MORGAN HUNT PUBLIC UK LTD,023414,22/03/2020,1169350,REDACTED,02/04/2020,155.06,775.28,930.34,Benefits Management,Agency Staff,60011
http://statistics.data.gov.uk/id/local-authority/12UE,Huntingdonshire District Council,200550.00,MORGAN HUNT PUBLIC UK LTD MORGAN HUNT PUBLIC UK LTD,026133,19/04/2020,113639,REDACTED,30/04/2020,153.12,765.62,918.74,Benefits Management,Agency Staff,60011
http://statistics.data.gov.uk/id/local-authority/12UE,Huntingdonshire District Council,200550.00,MORGAN HUNT PUBLIC UK LTD MORGAN HUNT PUBLIC UK LTD,025382,12/04/2020,1172708,REDACTED,23/04/2020,123.32,616.58,739.9,Benefits Management,Agency Staff,60011
http://statistics.data.gov.uk/id/local-authority/12UE,Huntingdonshire District Council,200181.00,CFL ESTATE SERVICES CFL ESTATE SERVICES,027484,04/05/2020,HDC115,PROFESSIONAL ADVICE,28/05/2020,0,294,294,Bridge Place Car Park Const,Agency Staff,60011
http://statistics.data.gov.uk/id/local-authority/12UE,Huntingdonshire District Council,201321.00,SIDESTEP CONSULTING,028643,28/04/2020,999014,REDACTED,25/06/2020,3458,17290,20748,Cambridge City Business Case ,Agency Staff,60011
http://statistics.data.gov.uk/id/local-authority/12UE,Huntingdonshire District Council,201321.00,SIDESTEP CONSULTING,028387,02/04/2020,255888,REDACTED,18/06/2020,190,950,1140,Cambridge City Business Case ,Agency Staff,60011
http://statistics.data.gov.uk/id/local-authority/12UE,Huntingdonshire District Council,201321.00,SIDESTEP CONSULTING,028387,02/04/2020,255888,REDACTED,18/06/2020,190,950,1140,Cambridge City Business Case ,Agency Staff,60011
http://statistics.data.gov.uk/id/local-authority/12UE,Huntingdonshire District Council,201321.00,SIDESTEP CONSULTING,028387,02/04/2020,255888,REDACTED,18/06/2020,190,950,1140,Cambridge City Business Case ,Agency Staff,60011
http://statistics.data.gov.uk/id/local-authority/12UE,Huntingdonshire District Council,201321.00,SIDESTEP CONSULTING,028387,02/04/2020,255888,REDACTED,18/06/2020,19,95,114,Cambridge City Business Case ,Agency Staff,60011
http://statistics.data.gov.uk/id/local-authority/12UE,Huntingdonshire District Council,200297.00,FIRST RECRUITMENT GROUP LTD FIRST RECRUITMENT GROUP LTD,026117,11/03/2020,373370,REDACTED,30/04/2020,140.01,700.04,840.05,Cctv Shared Service Hosting,Agency Staff,60011
http://statistics.data.gov.uk/id/local-authority/12UE,Huntingdonshire District Council,200297.00,FIRST RECRUITMENT GROUP LTD FIRST RECRUITMENT GROUP LTD,025355,18/03/2020,373935,REDACTED,23/04/2020,105.01,525.03,630.04,Cctv Shared Service Hosting,Agency Staff,60011
http://statistics.data.gov.uk/id/local-authority/12UE,Huntingdonshire District Council,200420.00,INTERACTION RECRUITMENT PLC INTERACTION RECRUITMENT PLC,024317,15/03/2020,INV2029881,REDACTED,16/04/2020,79.86,399.28,479.14,Cctv Shared Service Hosting,Agency Staff,60011
http://statistics.data.gov.uk/id/local-authority/12UE,Huntingdonshire District Council,200026.00,ADVANTAGE ADVANTAGE,026539,11/03/2020,132717,REDACTED,07/05/2020,300,1500,1800,City Recoverable,Agency Staff,60011
http://statistics.data.gov.uk/id/local-authority/12UE,Huntingdonshire District Council,200026.00,ADVANTAGE ADVANTAGE,026539,23/03/2020,132806,REDACTED,07/05/2020,300,1500,1800,City Recoverable,Agency Staff,60011
http://statistics.data.gov.uk/id/local-authority/12UE,Huntingdonshire District Council,200026.00,ADVANTAGE ADVANTAGE,026539,30/03/2020,132854,REDACTED,07/05/2020,300,1500,1800,City Recoverable,Agency Staff,60011
http://statistics.data.gov.uk/id/local-authority/12UE,Huntingdonshire District Council,200026.00,ADVANTAGE ADVANTAGE,026539,06/04/2020,132898,REDACTED,07/05/2020,300,1500,1800,City Recoverable,Agency Staff,60011
http://statistics.data.gov.uk/id/local-authority/12UE,Huntingdonshire District Council,200026.00,ADVANTAGE ADVANTAGE,026539,16/03/2020,132762,REDACTED,07/05/2020,300,1500,1800,City Recoverable,Agency Staff,60011
http://statistics.data.gov.uk/id/local-authority/12UE,Huntingdonshire District Council,200026.00,ADVANTAGE ADVANTAGE,026539,14/04/2020,132932,REDACTED,07/05/2020,240,1200,1440,City Recoverable,Agency Staff,60011
http://statistics.data.gov.uk/id/local-authority/12UE,Huntingdonshire District Council,200026.00,ADVANTAGE ADVANTAGE,027166,27/04/2020,132991,REDACTED,21/05/2020,120,600,720,City Recoverable,Agency Staff,60011
http://statistics.data.gov.uk/id/local-authority/12UE,Huntingdonshire District Council,200026.00,ADVANTAGE ADVANTAGE,026539,15/04/2020,132957,REDACTED,07/05/2020,60,300,360,City Recoverable,Agency Staff,60011
http://statistics.data.gov.uk/id/local-authority/12UE,Huntingdonshire District Council,201114.00,XP RECRUITMENT LTD,028630,03/06/2020,9541,WAREHOUSE W/E 30/05/20,25/06/2020,1156.27,5781.35,6937.62,Covid-19,Agency Staff,60011
http://statistics.data.gov.uk/id/local-authority/12UE,Huntingdonshire District Council,200743.00,STAFFLINE GROUP STAFFLINE GROUP,028605,29/05/2020,70953,RECYCLING W/C 24/05/20,25/06/2020,282.1,1410.51,1692.61,Covid-19,Agency Staff,60011
http://statistics.data.gov.uk/id/local-authority/12UE,Huntingdonshire District Council,200550.00,MORGAN HUNT PUBLIC UK LTD MORGAN HUNT PUBLIC UK LTD,027507,17/05/2020,1177998,REDACTED,28/05/2020,257.14,1285.7,1542.84,Covid-19,Agency Staff,60011
http://statistics.data.gov.uk/id/local-authority/12UE,Huntingdonshire District Council,200550.00,MORGAN HUNT PUBLIC UK LTD MORGAN HUNT PUBLIC UK LTD,027838,24/05/2020,1179019,REDACTED,04/06/2020,257.14,1285.7,1542.84,Covid-19,Agency Staff,60011
http://statistics.data.gov.uk/id/local-authority/12UE,Huntingdonshire District Council,200550.00,MORGAN HUNT PUBLIC UK LTD MORGAN HUNT PUBLIC UK LTD,028358,07/06/2020,1180955,REDACTED,18/06/2020,257.14,1285.7,1542.84,Covid-19,Agency Staff,60011
http://statistics.data.gov.uk/id/local-authority/12UE,Huntingdonshire District Council,200550.00,MORGAN HUNT PUBLIC UK LTD MORGAN HUNT PUBLIC UK LTD,026579,26/04/2020,1174783,REDACTED,07/05/2020,252.66,1263.28,1515.94,Covid-19,Agency Staff,60011
http://statistics.data.gov.uk/id/local-authority/12UE,Huntingdonshire District Council,200550.00,MORGAN HUNT PUBLIC UK LTD MORGAN HUNT PUBLIC UK LTD,026910,03/05/2020,1175793,REDACTED,14/05/2020,248.17,1240.85,1489.02,Covid-19,Agency Staff,60011
http://statistics.data.gov.uk/id/local-authority/12UE,Huntingdonshire District Council,200550.00,MORGAN HUNT PUBLIC UK LTD MORGAN HUNT PUBLIC UK LTD,028094,31/05/2020,1180020,REDACTED,11/06/2020,239.2,1196,1435.2,Covid-19,Agency Staff,60011
http://statistics.data.gov.uk/id/local-authority/12UE,Huntingdonshire District Council,200743.00,STAFFLINE GROUP STAFFLINE GROUP,028369,22/05/2020,70259,REFUSE W/C 17/05/20,18/06/2020,223.25,1116.24,1339.49,Covid-19,Agency Staff,60011
http://statistics.data.gov.uk/id/local-authority/12UE,Huntingdonshire District Council,200550.00,MORGAN HUNT PUBLIC UK LTD MORGAN HUNT PUBLIC UK LTD,027194,10/05/2020,1176958,REDACTED,21/05/2020,220.8,1104,1324.8,Covid-19,Agency Staff,60011
http://statistics.data.gov.uk/id/local-authority/12UE,Huntingdonshire District Council,200550.00,MORGAN HUNT PUBLIC UK LTD MORGAN HUNT PUBLIC UK LTD,027507,17/05/2020,1177999,REDACTED,28/05/2020,220.8,1104,1324.8,Covid-19,Agency Staff,60011
http://statistics.data.gov.uk/id/local-authority/12UE,Huntingdonshire District Council,200550.00,MORGAN HUNT PUBLIC UK LTD MORGAN HUNT PUBLIC UK LTD,028094,31/05/2020,1180021,REDACTED,11/06/2020,220.8,1104,1324.8,Covid-19,Agency Staff,60011
http://statistics.data.gov.uk/id/local-authority/12UE,Huntingdonshire District Council,200550.00,MORGAN HUNT PUBLIC UK LTD MORGAN HUNT PUBLIC UK LTD,028588,14/06/2020,1181928,REDACTED,25/06/2020,220.8,1104,1324.8,Covid-19,Agency Staff,60011
http://statistics.data.gov.uk/id/local-authority/12UE,Huntingdonshire District Council,200550.00,MORGAN HUNT PUBLIC UK LTD MORGAN HUNT PUBLIC UK LTD,026579,26/04/2020,1174782,REDACTED,07/05/2020,204.24,1021.2,1225.44,Covid-19,Agency Staff,60011
http://statistics.data.gov.uk/id/local-authority/12UE,Huntingdonshire District Council,200550.00,MORGAN HUNT PUBLIC UK LTD MORGAN HUNT PUBLIC UK LTD,026579,26/04/2020,1174784,REDACTED,07/05/2020,204.24,1021.2,1225.44,Covid-19,Agency Staff,60011
http://statistics.data.gov.uk/id/local-authority/12UE,Huntingdonshire District Council,200550.00,MORGAN HUNT PUBLIC UK LTD MORGAN HUNT PUBLIC UK LTD,027194,10/05/2020,1176962,REDACTED,21/05/2020,204.24,1021.2,1225.44,Covid-19,Agency Staff,60011
http://statistics.data.gov.uk/id/local-authority/12UE,Huntingdonshire District Council,200550.00,MORGAN HUNT PUBLIC UK LTD MORGAN HUNT PUBLIC UK LTD,027507,17/05/2020,1177997,REDACTED,28/05/2020,204.24,1021.2,1225.44,Covid-19,Agency Staff,60011
http://statistics.data.gov.uk/id/local-authority/12UE,Huntingdonshire District Council,200550.00,MORGAN HUNT PUBLIC UK LTD MORGAN HUNT PUBLIC UK LTD,027838,24/05/2020,1179018,REDACTED,04/06/2020,204.24,1021.2,1225.44,Covid-19,Agency Staff,60011
http://statistics.data.gov.uk/id/local-authority/12UE,Huntingdonshire District Council,200550.00,MORGAN HUNT PUBLIC UK LTD MORGAN HUNT PUBLIC UK LTD,027838,24/05/2020,1179020,REDACTED,04/06/2020,204.24,1021.2,1225.44,Covid-19,Agency Staff,60011
http://statistics.data.gov.uk/id/local-authority/12UE,Huntingdonshire District Council,200550.00,MORGAN HUNT PUBLIC UK LTD MORGAN HUNT PUBLIC UK LTD,028358,07/06/2020,1180956,REDACTED,18/06/2020,204.24,1021.2,1225.44,Covid-19,Agency Staff,60011
http://statistics.data.gov.uk/id/local-authority/12UE,Huntingdonshire District Council,200743.00,STAFFLINE GROUP STAFFLINE GROUP,028605,29/05/2020,70954,REFUSE W/C 24/05/20,25/06/2020,203.35,1016.73,1220.08,Covid-19,Agency Staff,60011
http://statistics.data.gov.uk/id/local-authority/12UE,Huntingdonshire District Council,200550.00,MORGAN HUNT PUBLIC UK LTD MORGAN HUNT PUBLIC UK LTD,026910,03/05/2020,1175792,REDACTED,14/05/2020,198.72,993.6,1192.32,Covid-19,Agency Staff,60011
http://statistics.data.gov.uk/id/local-authority/12UE,Huntingdonshire District Council,200550.00,MORGAN HUNT PUBLIC UK LTD MORGAN HUNT PUBLIC UK LTD,028358,07/06/2020,1180954,REDACTED,18/06/2020,198.72,993.6,1192.32,Covid-19,Agency Staff,60011
http://statistics.data.gov.uk/id/local-authority/12UE,Huntingdonshire District Council,200550.00,MORGAN HUNT PUBLIC UK LTD MORGAN HUNT PUBLIC UK LTD,027194,10/05/2020,1176961,REDACTED,21/05/2020,191.36,956.8,1148.16,Covid-19,Agency Staff,60011
http://statistics.data.gov.uk/id/local-authority/12UE,Huntingdonshire District Council,200743.00,STAFFLINE GROUP STAFFLINE GROUP,028369,22/05/2020,70258,RECYCLING W/C 17/05/20,18/06/2020,190.03,950.16,1140.19,Covid-19,Agency Staff,60011
http://statistics.data.gov.uk/id/local-authority/12UE,Huntingdonshire District Council,200550.00,MORGAN HUNT PUBLIC UK LTD MORGAN HUNT PUBLIC UK LTD,028588,14/06/2020,1181927,REDACTED,25/06/2020,189.5,947.51,1137.01,Covid-19,Agency Staff,60011
http://statistics.data.gov.uk/id/local-authority/12UE,Huntingdonshire District Council,200743.00,STAFFLINE GROUP STAFFLINE GROUP,028605,29/05/2020,70952,GARDEN WASTE W/C 24/05/20,25/06/2020,170.04,850.19,1020.23,Covid-19,Agency Staff,60011
http://statistics.data.gov.uk/id/local-authority/12UE,Huntingdonshire District Council,200550.00,MORGAN HUNT PUBLIC UK LTD MORGAN HUNT PUBLIC UK LTD,027194,10/05/2020,1176960,REDACTED,21/05/2020,165.6,828,993.6,Covid-19,Agency Staff,60011
http://statistics.data.gov.uk/id/local-authority/12UE,Huntingdonshire District Council,200550.00,MORGAN HUNT PUBLIC UK LTD MORGAN HUNT PUBLIC UK LTD,028094,31/05/2020,1180019,REDACTED,11/06/2020,162.84,814.2,977.04,Covid-19,Agency Staff,60011
http://statistics.data.gov.uk/id/local-authority/12UE,Huntingdonshire District Council,200550.00,MORGAN HUNT PUBLIC UK LTD MORGAN HUNT PUBLIC UK LTD,028358,07/06/2020,1180957,REDACTED,18/06/2020,149.98,749.89,899.87,Covid-19,Agency Staff,60011
http://statistics.data.gov.uk/id/local-authority/12UE,Huntingdonshire District Council,200743.00,STAFFLINE GROUP STAFFLINE GROUP,027853,01/05/2020,68207,REFUSE W/C 26/04/20,04/06/2020,128.95,644.73,773.68,Covid-19,Agency Staff,60011
http://statistics.data.gov.uk/id/local-authority/12UE,Huntingdonshire District Council,200827.00,VIVID RESOURCING LIMITED VIVID RESOURCING LIMITED,023443,11/03/2020,44937,REDACTED,02/04/2020,680.8,3404,4084.8,Development Management,Agency Staff,60011
http://statistics.data.gov.uk/id/local-authority/12UE,Huntingdonshire District Council,200827.00,VIVID RESOURCING LIMITED VIVID RESOURCING LIMITED,027859,13/05/2020,46720,REDACTED,04/06/2020,368,1840,2208,Development Management,Agency Staff,60011
http://statistics.data.gov.uk/id/local-authority/12UE,Huntingdonshire District Council,202200.00,MATCHTECH GROUP UK LTD,023480,09/03/2020,3390199,REDACTED,02/04/2020,340.4,1702,2042.4,Development Management,Agency Staff,60011
http://statistics.data.gov.uk/id/local-authority/12UE,Huntingdonshire District Council,200827.00,VIVID RESOURCING LIMITED VIVID RESOURCING LIMITED,023861,18/03/2020,45121,REDACTED,08/04/2020,340.4,1702,2042.4,Development Management,Agency Staff,60011
http://statistics.data.gov.uk/id/local-authority/12UE,Huntingdonshire District Council,200827.00,VIVID RESOURCING LIMITED VIVID RESOURCING LIMITED,024348,25/03/2020,45303,REDACTED,16/04/2020,340.4,1702,2042.4,Development Management,Agency Staff,60011
http://statistics.data.gov.uk/id/local-authority/12UE,Huntingdonshire District Council,202200.00,MATCHTECH GROUP UK LTD,025482,26/03/2020,3400280,REDACTED,23/04/2020,340.4,1702,2042.4,Development Management,Agency Staff,60011
http://statistics.data.gov.uk/id/local-authority/12UE,Huntingdonshire District Council,202200.00,MATCHTECH GROUP UK LTD,025482,26/03/2020,3400281,REDACTED,23/04/2020,340.4,1702,2042.4,Development Management,Agency Staff,60011
http://statistics.data.gov.uk/id/local-authority/12UE,Huntingdonshire District Council,200827.00,VIVID RESOURCING LIMITED VIVID RESOURCING LIMITED,025416,01/04/2020,45544,REDACTED,23/04/2020,340.4,1702,2042.4,Development Management,Agency Staff,60011
http://statistics.data.gov.uk/id/local-authority/12UE,Huntingdonshire District Council,202200.00,MATCHTECH GROUP UK LTD,026180,03/04/2020,3403939,REDACTED,30/04/2020,340.4,1702,2042.4,Development Management,Agency Staff,60011
http://statistics.data.gov.uk/id/local-authority/12UE,Huntingdonshire District Council,200827.00,VIVID RESOURCING LIMITED VIVID RESOURCING LIMITED,026604,15/04/2020,45977,REDACTED,07/05/2020,340.4,1702,2042.4,Development Management,Agency Staff,60011
http://statistics.data.gov.uk/id/local-authority/12UE,Huntingdonshire District Council,202200.00,MATCHTECH GROUP UK LTD,026626,09/04/2020,3407156,REDACTED,07/05/2020,340.4,1702,2042.4,Development Management,Agency Staff,60011
http://statistics.data.gov.uk/id/local-authority/12UE,Huntingdonshire District Council,200827.00,VIVID RESOURCING LIMITED VIVID RESOURCING LIMITED,026932,22/04/2020,46126,REDACTED,14/05/2020,340.4,1702,2042.4,Development Management,Agency Staff,60011
http://statistics.data.gov.uk/id/local-authority/12UE,Huntingdonshire District Council,200827.00,VIVID RESOURCING LIMITED VIVID RESOURCING LIMITED,027220,29/04/2020,46270,REDACTED,21/05/2020,340.4,1702,2042.4,Development Management,Agency Staff,60011
http://statistics.data.gov.uk/id/local-authority/12UE,Huntingdonshire District Council,200827.00,VIVID RESOURCING LIMITED VIVID RESOURCING LIMITED,027521,05/05/2020,46505,REDACTED,28/05/2020,340.4,1702,2042.4,Development Management,Agency Staff,60011
http://statistics.data.gov.uk/id/local-authority/12UE,Huntingdonshire District Council,202200.00,MATCHTECH GROUP UK LTD,027559,04/05/2020,3414788,REDACTED,28/05/2020,340.4,1702,2042.4,Development Management,Agency Staff,60011
http://statistics.data.gov.uk/id/local-authority/12UE,Huntingdonshire District Council,202200.00,MATCHTECH GROUP UK LTD,027879,07/05/2020,3417405,REDACTED,04/06/2020,340.4,1702,2042.4,Development Management,Agency Staff,60011
http://statistics.data.gov.uk/id/local-authority/12UE,Huntingdonshire District Council,200827.00,VIVID RESOURCING LIMITED VIVID RESOURCING LIMITED,028112,20/05/2020,46880,REDACTED,11/06/2020,340.4,1702,2042.4,Development Management,Agency Staff,60011
http://statistics.data.gov.uk/id/local-authority/12UE,Huntingdonshire District Council,202200.00,MATCHTECH GROUP UK LTD,028657,28/05/2020,3424289,REDACTED,25/06/2020,340.4,1702,2042.4,Development Management,Agency Staff,60011
http://statistics.data.gov.uk/id/local-authority/12UE,Huntingdonshire District Council,202200.00,MATCHTECH GROUP UK LTD,028136,20/05/2020,3420792,REDACTED,11/06/2020,340.4,1702,2042.4,Development Management,Agency Staff,60011
http://statistics.data.gov.uk/id/local-authority/12UE,Huntingdonshire District Council,200827.00,VIVID RESOURCING LIMITED VIVID RESOURCING LIMITED,028375,27/05/2020,47014,REDACTED,18/06/2020,340.4,1702,2042.4,Development Management,Agency Staff,60011
http://statistics.data.gov.uk/id/local-authority/12UE,Huntingdonshire District Council,200827.00,VIVID RESOURCING LIMITED VIVID RESOURCING LIMITED,028611,03/06/2020,47226,REDACTED,25/06/2020,340.4,1702,2042.4,Development Management,Agency Staff,60011
http://statistics.data.gov.uk/id/local-authority/12UE,Huntingdonshire District Council,202077.00,PARK AVENUE RECRUITMENT LTD,024447,24/03/2020,1855,REDACTED,16/04/2020,318.8,1594.01,1912.81,Development Management,Agency Staff,60011
http://statistics.data.gov.uk/id/local-authority/12UE,Huntingdonshire District Council,202077.00,PARK AVENUE RECRUITMENT LTD,026176,07/04/2020,2129,REDACTED,30/04/2020,318.2,1591,1909.2,Development Management,Agency Staff,60011
http://statistics.data.gov.uk/id/local-authority/12UE,Huntingdonshire District Council,202077.00,PARK AVENUE RECRUITMENT LTD,027242,27/04/2020,2431,REDACTED,21/05/2020,318.2,1591,1909.2,Development Management,Agency Staff,60011
http://statistics.data.gov.uk/id/local-authority/12UE,Huntingdonshire District Council,202077.00,PARK AVENUE RECRUITMENT LTD,025477,31/03/2020,1992,REDACTED,23/04/2020,318.11,1590.57,1908.68,Development Management,Agency Staff,60011
http://statistics.data.gov.uk/id/local-authority/12UE,Huntingdonshire District Council,202077.00,PARK AVENUE RECRUITMENT LTD,028133,13/05/2020,2741,REDACTED,11/06/2020,318.11,1590.57,1908.68,Development Management,Agency Staff,60011
http://statistics.data.gov.uk/id/local-authority/12UE,Huntingdonshire District Council,202077.00,PARK AVENUE RECRUITMENT LTD,023474,08/03/2020,132,planning staff,02/04/2020,318.03,1590.14,1908.17,Development Management,Agency Staff,60011
http://statistics.data.gov.uk/id/local-authority/12UE,Huntingdonshire District Council,202077.00,PARK AVENUE RECRUITMENT LTD,026954,21/04/2020,2354,REDACTED,14/05/2020,313.13,1565.63,1878.76,Development Management,Agency Staff,60011
http://statistics.data.gov.uk/id/local-authority/12UE,Huntingdonshire District Council,202077.00,PARK AVENUE RECRUITMENT LTD,026622,14/04/2020,2238,REDACTED,07/05/2020,305.21,1526.07,1831.28,Development Management,Agency Staff,60011
http://statistics.data.gov.uk/id/local-authority/12UE,Huntingdonshire District Council,202200.00,MATCHTECH GROUP UK LTD,023480,09/03/2020,3390198,REDACTED,02/04/2020,276,1380,1656,Development Management,Agency Staff,60011
http://statistics.data.gov.uk/id/local-authority/12UE,Huntingdonshire District Council,202200.00,MATCHTECH GROUP UK LTD,027246,23/04/2020,3411638,REDACTED,21/05/2020,276,1380,1656,Development Management,Agency Staff,60011
http://statistics.data.gov.uk/id/local-authority/12UE,Huntingdonshire District Council,202200.00,MATCHTECH GROUP UK LTD,027246,23/04/2020,3411639,REDACTED,21/05/2020,276,1380,1656,Development Management,Agency Staff,60011
http://statistics.data.gov.uk/id/local-authority/12UE,Huntingdonshire District Council,202200.00,MATCHTECH GROUP UK LTD,027879,13/05/2020,3418149,REDACTED,04/06/2020,276,1380,1656,Development Management,Agency Staff,60011
http://statistics.data.gov.uk/id/local-authority/12UE,Huntingdonshire District Council,200827.00,VIVID RESOURCING LIMITED VIVID RESOURCING LIMITED,026152,07/04/2020,45789,REDACTED,30/04/2020,193.2,966,1159.2,Development Management,Agency Staff,60011
http://statistics.data.gov.uk/id/local-authority/12UE,Huntingdonshire District Council,202077.00,PARK AVENUE RECRUITMENT LTD,023886,16/03/2020,1676,REDACTED,08/04/2020,156.18,780.88,937.06,Development Management,Agency Staff,60011
http://statistics.data.gov.uk/id/local-authority/12UE,Huntingdonshire District Council,200827.00,VIVID RESOURCING LIMITED VIVID RESOURCING LIMITED,026152,07/04/2020,45792,REDACTED,30/04/2020,147.2,736,883.2,Development Management,Agency Staff,60011
http://statistics.data.gov.uk/id/local-authority/12UE,Huntingdonshire District Council,200420.00,INTERACTION RECRUITMENT PLC INTERACTION RECRUITMENT PLC,028350,24/05/2020,INV2039264,REDACTED,18/06/2020,103.59,517.94,621.53,Document Centre,Agency Staff,60011
http://statistics.data.gov.uk/id/local-authority/12UE,Huntingdonshire District Council,200420.00,INTERACTION RECRUITMENT PLC INTERACTION RECRUITMENT PLC,023829,15/03/2020,INV2029883,REDACTED,08/04/2020,103.19,515.97,619.16,Document Centre,Agency Staff,60011
http://statistics.data.gov.uk/id/local-authority/12UE,Huntingdonshire District Council,200420.00,INTERACTION RECRUITMENT PLC INTERACTION RECRUITMENT PLC,026126,05/04/2020,INV2033906,REDACTED,30/04/2020,103.19,515.97,619.16,Document Centre,Agency Staff,60011
http://statistics.data.gov.uk/id/local-authority/12UE,Huntingdonshire District Council,200420.00,INTERACTION RECRUITMENT PLC INTERACTION RECRUITMENT PLC,024317,22/03/2020,INV2031418,REDACTED,16/04/2020,103.2,515.97,619.17,Document Centre,Agency Staff,60011
http://statistics.data.gov.uk/id/local-authority/12UE,Huntingdonshire District Council,200420.00,INTERACTION RECRUITMENT PLC INTERACTION RECRUITMENT PLC,027187,26/04/2020,INV2036346,REDACTED,21/05/2020,102.21,511.03,613.24,Document Centre,Agency Staff,60011
http://statistics.data.gov.uk/id/local-authority/12UE,Huntingdonshire District Council,200420.00,INTERACTION RECRUITMENT PLC INTERACTION RECRUITMENT PLC,027499,03/05/2020,INV2036994,REDACTED,28/05/2020,102.21,511.03,613.24,Document Centre,Agency Staff,60011
http://statistics.data.gov.uk/id/local-authority/12UE,Huntingdonshire District Council,200420.00,INTERACTION RECRUITMENT PLC INTERACTION RECRUITMENT PLC,028089,17/05/2020,INV2038406,REDACTED,11/06/2020,102.21,511.03,613.24,Document Centre,Agency Staff,60011
http://statistics.data.gov.uk/id/local-authority/12UE,Huntingdonshire District Council,200420.00,INTERACTION RECRUITMENT PLC INTERACTION RECRUITMENT PLC,026568,12/04/2020,INV2034800,REDACTED,07/05/2020,82.87,414.36,497.23,Document Centre,Agency Staff,60011
http://statistics.data.gov.uk/id/local-authority/12UE,Huntingdonshire District Council,200420.00,INTERACTION RECRUITMENT PLC INTERACTION RECRUITMENT PLC,027832,10/05/2020,INV2037688,REDACTED,04/06/2020,82.87,414.35,497.22,Document Centre,Agency Staff,60011
http://statistics.data.gov.uk/id/local-authority/12UE,Huntingdonshire District Council,200420.00,INTERACTION RECRUITMENT PLC INTERACTION RECRUITMENT PLC,026900,19/04/2020,INV2035560,REDACTED,14/05/2020,81.49,407.45,488.94,Document Centre,Agency Staff,60011
http://statistics.data.gov.uk/id/local-authority/12UE,Huntingdonshire District Council,200420.00,INTERACTION RECRUITMENT PLC INTERACTION RECRUITMENT PLC,028579,31/05/2020,INV2040202,REDACTED,25/06/2020,81.49,407.45,488.94,Document Centre,Agency Staff,60011
http://statistics.data.gov.uk/id/local-authority/12UE,Huntingdonshire District Council,200420.00,INTERACTION RECRUITMENT PLC INTERACTION RECRUITMENT PLC,028089,29/03/2020,INV2032820,REDACTED,11/06/2020,53.87,269.32,323.19,Document Centre,Agency Staff,60011
http://statistics.data.gov.uk/id/local-authority/12UE,Huntingdonshire District Council,201114.00,XP RECRUITMENT LTD,028383,27/05/2020,9528,WAREHOUSE W/E 23/05/20,18/06/2020,1194.4,5972,7166.4,Domestic Waste Collection,Agency Staff,60011
http://statistics.data.gov.uk/id/local-authority/12UE,Huntingdonshire District Council,201114.00,XP RECRUITMENT LTD,026167,07/04/2020,9444,WAREHOUSE W/E 04/04/20,30/04/2020,826.75,4133.75,4960.5,Domestic Waste Collection,Agency Staff,60011
http://statistics.data.gov.uk/id/local-authority/12UE,Huntingdonshire District Council,201114.00,XP RECRUITMENT LTD,027228,29/04/2020,9482,WAREHOUSE W/E 25/04/20,21/05/2020,819.54,4097.7,4917.24,Domestic Waste Collection,Agency Staff,60011
http://statistics.data.gov.uk/id/local-authority/12UE,Huntingdonshire District Council,201114.00,XP RECRUITMENT LTD,028122,20/05/2020,9520,WAREHOUSE W/E 16/05/20,11/06/2020,780.84,3904.2,4685.04,Domestic Waste Collection,Agency Staff,60011
http://statistics.data.gov.uk/id/local-authority/12UE,Huntingdonshire District Council,200743.00,STAFFLINE GROUP STAFFLINE GROUP,023854,15/03/2020,63742,OPS STAFF 3INVOICES,08/04/2020,309.62,1548.08,1857.7,Domestic Waste Collection,Agency Staff,60011
http://statistics.data.gov.uk/id/local-authority/12UE,Huntingdonshire District Council,200743.00,STAFFLINE GROUP STAFFLINE GROUP,027853,26/02/2020,60724,REFUSE W/C 23/02/20,04/06/2020,324.02,1620.12,1944.14,Domestic Waste Collection,Agency Staff,60011
http://statistics.data.gov.uk/id/local-authority/12UE,Huntingdonshire District Council,200743.00,STAFFLINE GROUP STAFFLINE GROUP,023435,06/03/2020,61730,REFUSE W/C 01/03/20,02/04/2020,286.11,1430.53,1716.64,Domestic Waste Collection,Agency Staff,60011
http://statistics.data.gov.uk/id/local-authority/12UE,Huntingdonshire District Council,200743.00,STAFFLINE GROUP STAFFLINE GROUP,027853,01/05/2020,68204,GARDEN WASTE W/C 26/04/20,04/06/2020,244.28,1221.42,1465.7,Domestic Waste Collection,Agency Staff,60011
http://statistics.data.gov.uk/id/local-authority/12UE,Huntingdonshire District Council,200743.00,STAFFLINE GROUP STAFFLINE GROUP,027853,24/04/2020,67518,REFUSE W/C 19/04/20,04/06/2020,244.28,1221.42,1465.7,Domestic Waste Collection,Agency Staff,60011
http://statistics.data.gov.uk/id/local-authority/12UE,Huntingdonshire District Council,200743.00,STAFFLINE GROUP STAFFLINE GROUP,023854,13/03/2020,62739,REFUSE W/C 08/03/20,08/04/2020,241.12,1205.59,1446.71,Domestic Waste Collection,Agency Staff,60011
http://statistics.data.gov.uk/id/local-authority/12UE,Huntingdonshire District Council,200743.00,STAFFLINE GROUP STAFFLINE GROUP,028106,15/05/2020,69556,REFUSE W/C 10/05/20,11/06/2020,240.51,1202.56,1443.07,Domestic Waste Collection,Agency Staff,60011
http://statistics.data.gov.uk/id/local-authority/12UE,Huntingdonshire District Council,200743.00,STAFFLINE GROUP STAFFLINE GROUP,027853,17/04/2020,66842,REFUSE W/C 12/04/20,04/06/2020,187.74,938.69,1126.43,Domestic Waste Collection,Agency Staff,60011
http://statistics.data.gov.uk/id/local-authority/12UE,Huntingdonshire District Council,200743.00,STAFFLINE GROUP STAFFLINE GROUP,026596,27/03/2020,64682,REFUSE W/C 22/03/20,07/05/2020,165.36,826.8,992.16,Domestic Waste Collection,Agency Staff,60011
http://statistics.data.gov.uk/id/local-authority/12UE,Huntingdonshire District Council,200743.00,STAFFLINE GROUP STAFFLINE GROUP,028605,08/05/2020,68884,REFUSE W/C 03/05/20,25/06/2020,164.7,823.48,988.18,Domestic Waste Collection,Agency Staff,60011
http://statistics.data.gov.uk/id/local-authority/12UE,Huntingdonshire District Council,200743.00,STAFFLINE GROUP STAFFLINE GROUP,027211,03/04/2020,65473,REFUSE W/C 29/03/20,21/05/2020,163.52,817.58,981.1,Domestic Waste Collection,Agency Staff,60011
http://statistics.data.gov.uk/id/local-authority/12UE,Huntingdonshire District Council,200743.00,STAFFLINE GROUP STAFFLINE GROUP,026596,11/04/2020,66162,REFUSE W/C 05/04/20,07/05/2020,130.8,654.01,784.81,Domestic Waste Collection,Agency Staff,60011
http://statistics.data.gov.uk/id/local-authority/12UE,Huntingdonshire District Council,202063.00,NATIONWIDE PEOPLE LTD,023885,29/11/2019,22044,REDACTED,08/04/2020,490,2450,2940,Eastnet CPSN ,Agency Staff,60011
http://statistics.data.gov.uk/id/local-authority/12UE,Huntingdonshire District Council,202063.00,NATIONWIDE PEOPLE LTD,023885,29/11/2019,22044,REDACTED,08/04/2020,18,90,108,Eastnet CPSN ,Agency Staff,60011
http://statistics.data.gov.uk/id/local-authority/12UE,Huntingdonshire District Council,202063.00,NATIONWIDE PEOPLE LTD,023885,09/02/2020,22351,REDACTED,08/04/2020,498,2490.02,2988.02,Eastnet CPSN ,Agency Staff,60011
http://statistics.data.gov.uk/id/local-authority/12UE,Huntingdonshire District Council,202063.00,NATIONWIDE PEOPLE LTD,023885,26/01/2020,22276,REDACTED,08/04/2020,8,40.02,48.02,Eastnet CPSN ,Agency Staff,60011
http://statistics.data.gov.uk/id/local-authority/12UE,Huntingdonshire District Council,202063.00,NATIONWIDE PEOPLE LTD,023885,26/01/2020,22276,REDACTED,08/04/2020,490,2450,2940,Eastnet CPSN ,Agency Staff,60011
http://statistics.data.gov.uk/id/local-authority/12UE,Huntingdonshire District Council,202063.00,NATIONWIDE PEOPLE LTD,023885,23/02/2020,22406,REDACTED,08/04/2020,490,2450,2940,Eastnet CPSN ,Agency Staff,60011
http://statistics.data.gov.uk/id/local-authority/12UE,Huntingdonshire District Council,202063.00,NATIONWIDE PEOPLE LTD,023885,08/12/2019,22079,REDACTED,08/04/2020,490,2450,2940,Eastnet CPSN ,Agency Staff,60011
http://statistics.data.gov.uk/id/local-authority/12UE,Huntingdonshire District Council,202063.00,NATIONWIDE PEOPLE LTD,023885,22/12/2019,22140,REDACTED,08/04/2020,490,2450,2940,Eastnet CPSN ,Agency Staff,60011
http://statistics.data.gov.uk/id/local-authority/12UE,Huntingdonshire District Council,202063.00,NATIONWIDE PEOPLE LTD,023885,29/02/2020,22437,REDACTED,08/04/2020,446.65,2233.24,2679.89,Eastnet CPSN ,Agency Staff,60011
http://statistics.data.gov.uk/id/local-authority/12UE,Huntingdonshire District Council,202063.00,NATIONWIDE PEOPLE LTD,023885,15/12/2019,22111,REDACTED,08/04/2020,12,60,72,Eastnet CPSN ,Agency Staff,60011
http://statistics.data.gov.uk/id/local-authority/12UE,Huntingdonshire District Council,202063.00,NATIONWIDE PEOPLE LTD,023885,15/12/2019,22111,REDACTED,08/04/2020,420,2100,2520,Eastnet CPSN ,Agency Staff,60011
http://statistics.data.gov.uk/id/local-authority/12UE,Huntingdonshire District Council,202063.00,NATIONWIDE PEOPLE LTD,023885,16/02/2020,22380,REDACTED,08/04/2020,420,2100,2520,Eastnet CPSN ,Agency Staff,60011
http://statistics.data.gov.uk/id/local-authority/12UE,Huntingdonshire District Council,202063.00,NATIONWIDE PEOPLE LTD,023885,12/01/2020,22209,REDACTED,08/04/2020,385,1925,2310,Eastnet CPSN ,Agency Staff,60011
http://statistics.data.gov.uk/id/local-authority/12UE,Huntingdonshire District Council,202063.00,NATIONWIDE PEOPLE LTD,023885,19/01/2020,22240,REDACTED,08/04/2020,350,1750,2100,Eastnet CPSN ,Agency Staff,60011
http://statistics.data.gov.uk/id/local-authority/12UE,Huntingdonshire District Council,202063.00,NATIONWIDE PEOPLE LTD,023885,19/01/2020,22240,REDACTED,08/04/2020,18,90,108,Eastnet CPSN ,Agency Staff,60011
http://statistics.data.gov.uk/id/local-authority/12UE,Huntingdonshire District Council,202063.00,NATIONWIDE PEOPLE LTD,023885,15/11/2019,21975,REDACTED,08/04/2020,350,1750,2100,Eastnet CPSN ,Agency Staff,60011
http://statistics.data.gov.uk/id/local-authority/12UE,Huntingdonshire District Council,202063.00,NATIONWIDE PEOPLE LTD,023885,15/11/2019,21975,REDACTED,08/04/2020,10,50,60,Eastnet CPSN ,Agency Staff,60011
http://statistics.data.gov.uk/id/local-authority/12UE,Huntingdonshire District Council,202063.00,NATIONWIDE PEOPLE LTD,023885,31/01/2020,22309,REDACTED,08/04/2020,350,1750,2100,Eastnet CPSN ,Agency Staff,60011
http://statistics.data.gov.uk/id/local-authority/12UE,Huntingdonshire District Council,202063.00,NATIONWIDE PEOPLE LTD,023885,05/01/2020,22184,REDACTED,08/04/2020,315,1575,1890,Eastnet CPSN ,Agency Staff,60011
http://statistics.data.gov.uk/id/local-authority/12UE,Huntingdonshire District Council,202063.00,NATIONWIDE PEOPLE LTD,023885,29/12/2019,22174,REDACTED,08/04/2020,210,1050,1260,Eastnet CPSN ,Agency Staff,60011
http://statistics.data.gov.uk/id/local-authority/12UE,Huntingdonshire District Council,202063.00,NATIONWIDE PEOPLE LTD,023885,03/02/2020,22346,REDACTED,08/04/2020,140,700,840,Eastnet CPSN ,Agency Staff,60011
http://statistics.data.gov.uk/id/local-authority/12UE,Huntingdonshire District Council,200816.00,VENN GROUP RECRUITMENT VENN GROUP RECRUITMENT,028373,27/05/2020,3661349,REDACTED,18/06/2020,239.76,1198.8,1438.56,Environmental Policy Mu,Agency Staff,60011
http://statistics.data.gov.uk/id/local-authority/12UE,Huntingdonshire District Council,200816.00,VENN GROUP RECRUITMENT VENN GROUP RECRUITMENT,028610,03/06/2020,3663185,REDACTED,25/06/2020,239.76,1198.8,1438.56,Environmental Policy Mu,Agency Staff,60011
http://statistics.data.gov.uk/id/local-authority/12UE,Huntingdonshire District Council,200297.00,FIRST RECRUITMENT GROUP LTD FIRST RECRUITMENT GROUP LTD,023387,11/03/2020,373371,REDACTED,02/04/2020,95.46,477.3,572.76,Finance,Agency Staff,60011
http://statistics.data.gov.uk/id/local-authority/12UE,Huntingdonshire District Council,200297.00,FIRST RECRUITMENT GROUP LTD FIRST RECRUITMENT GROUP LTD,024309,06/11/2019,362799,REDACTED,16/04/2020,56.76,283.8,340.56,Finance,Agency Staff,60011
http://statistics.data.gov.uk/id/local-authority/12UE,Huntingdonshire District Council,200827.00,VIVID RESOURCING LIMITED VIVID RESOURCING LIMITED,023443,11/03/2020,44935,community staff,02/04/2020,333,1665,1998,Food Safety General,Agency Staff,60011
http://statistics.data.gov.uk/id/local-authority/12UE,Huntingdonshire District Council,200827.00,VIVID RESOURCING LIMITED VIVID RESOURCING LIMITED,026604,18/03/2020,45119,REDACTED,07/05/2020,333,1665,1998,Food Safety General,Agency Staff,60011
http://statistics.data.gov.uk/id/local-authority/12UE,Huntingdonshire District Council,200827.00,VIVID RESOURCING LIMITED VIVID RESOURCING LIMITED,024348,25/03/2020,45301,REDACTED,16/04/2020,198,990,1188,Food Safety General,Agency Staff,60011
http://statistics.data.gov.uk/id/local-authority/12UE,Huntingdonshire District Council,200827.00,VIVID RESOURCING LIMITED VIVID RESOURCING LIMITED,027859,13/05/2020,46718,REDACTED,04/06/2020,99,495,594,Food Safety General,Agency Staff,60011
http://statistics.data.gov.uk/id/local-authority/12UE,Huntingdonshire District Council,200827.00,VIVID RESOURCING LIMITED VIVID RESOURCING LIMITED,026152,07/04/2020,45790,REDACTED,30/04/2020,67.5,337.5,405,Food Safety General,Agency Staff,60011
http://statistics.data.gov.uk/id/local-authority/12UE,Huntingdonshire District Council,201114.00,XP RECRUITMENT LTD,027868,12/05/2020,9503,WAREHOUSE W/E 09/05/20,04/06/2020,1098.22,5491.1,6589.32,Green Waste Collection,Agency Staff,60011
http://statistics.data.gov.uk/id/local-authority/12UE,Huntingdonshire District Council,201114.00,XP RECRUITMENT LTD,026944,22/04/2020,9465,WAREHOUSE W/E 18/04/20,14/05/2020,924.07,4620.35,5544.42,Green Waste Collection,Agency Staff,60011
http://statistics.data.gov.uk/id/local-authority/12UE,Huntingdonshire District Council,201114.00,XP RECRUITMENT LTD,026167,18/03/2020,9358,WAREHOUSE W/E 14/03/20,30/04/2020,841.54,4207.7,5049.24,Green Waste Collection,Agency Staff,60011
http://statistics.data.gov.uk/id/local-authority/12UE,Huntingdonshire District Council,201114.00,XP RECRUITMENT LTD,024364,24/03/2020,9394,WAREHOUSE W/E 21/03/20,16/04/2020,827.12,4135.6,4962.72,Green Waste Collection,Agency Staff,60011
http://statistics.data.gov.uk/id/local-authority/12UE,Huntingdonshire District Council,200743.00,STAFFLINE GROUP STAFFLINE GROUP,023854,15/03/2020,63742,OPS STAFF 3INVOICES,08/04/2020,112.43,562.16,674.59,Green Waste Collection,Agency Staff,60011
http://statistics.data.gov.uk/id/local-authority/12UE,Huntingdonshire District Council,200743.00,STAFFLINE GROUP STAFFLINE GROUP,027853,17/04/2020,66840,GARDEN WASTE W/C 12/04/20,04/06/2020,296,1479.98,1775.98,Green Waste Collection,Agency Staff,60011
http://statistics.data.gov.uk/id/local-authority/12UE,Huntingdonshire District Council,200743.00,STAFFLINE GROUP STAFFLINE GROUP,028605,22/05/2020,70257,GARDEN WASTE W/C 17/05/20,25/06/2020,262.01,1310.07,1572.08,Green Waste Collection,Agency Staff,60011
http://statistics.data.gov.uk/id/local-authority/12UE,Huntingdonshire District Council,200743.00,STAFFLINE GROUP STAFFLINE GROUP,026146,03/04/2020,65471,GARDEN WASTE W/C 29/03/20,30/04/2020,257.97,1289.85,1547.82,Green Waste Collection,Agency Staff,60011
http://statistics.data.gov.uk/id/local-authority/12UE,Huntingdonshire District Council,200743.00,STAFFLINE GROUP STAFFLINE GROUP,028605,15/05/2020,69554,GARDEN WASTE W/C 10/05/20,25/06/2020,245.52,1227.59,1473.11,Green Waste Collection,Agency Staff,60011
http://statistics.data.gov.uk/id/local-authority/12UE,Huntingdonshire District Council,200743.00,STAFFLINE GROUP STAFFLINE GROUP,027853,24/04/2020,67514,GARDEN WASTE W/C 19/04/20,04/06/2020,222.02,1110.08,1332.1,Green Waste Collection,Agency Staff,60011
http://statistics.data.gov.uk/id/local-authority/12UE,Huntingdonshire District Council,200743.00,STAFFLINE GROUP STAFFLINE GROUP,026596,10/04/2020,66160,GARDEN WASTE W/C 05.04.20,07/05/2020,198.78,993.92,1192.7,Green Waste Collection,Agency Staff,60011
http://statistics.data.gov.uk/id/local-authority/12UE,Huntingdonshire District Council,200743.00,STAFFLINE GROUP STAFFLINE GROUP,028605,08/05/2020,68882,GARDEN WASTE W/C 03/05/20,25/06/2020,185.33,926.64,1111.97,Green Waste Collection,Agency Staff,60011
http://statistics.data.gov.uk/id/local-authority/12UE,Huntingdonshire District Council,200743.00,STAFFLINE GROUP STAFFLINE GROUP,023854,13/03/2020,62737,GARDEN WASTE W/C 08/03/20,08/04/2020,182.78,913.89,1096.67,Green Waste Collection,Agency Staff,60011
http://statistics.data.gov.uk/id/local-authority/12UE,Huntingdonshire District Council,200743.00,STAFFLINE GROUP STAFFLINE GROUP,026596,28/02/2020,60722,GARDEN WASTE W/C 23/02/20,07/05/2020,170.77,853.86,1024.63,Green Waste Collection,Agency Staff,60011
http://statistics.data.gov.uk/id/local-authority/12UE,Huntingdonshire District Council,200743.00,STAFFLINE GROUP STAFFLINE GROUP,026596,27/03/2020,64680,GARDEN WASTE W/C 22/03/20,07/05/2020,150.95,754.76,905.71,Green Waste Collection,Agency Staff,60011
http://statistics.data.gov.uk/id/local-authority/12UE,Huntingdonshire District Council,200743.00,STAFFLINE GROUP STAFFLINE GROUP,026596,06/03/2020,61728,GARDEN WASTE W/C 01/03/20,07/05/2020,129.25,646.23,775.48,Green Waste Collection,Agency Staff,60011
http://statistics.data.gov.uk/id/local-authority/12UE,Huntingdonshire District Council,200743.00,STAFFLINE GROUP STAFFLINE GROUP,027853,24/04/2020,67513,GARDEN WASTE W/C 12/04/20,04/06/2020,54.17,270.83,325,Green Waste Collection,Agency Staff,60011
http://statistics.data.gov.uk/id/local-authority/12UE,Huntingdonshire District Council,201114.00,XP RECRUITMENT LTD,028122,20/05/2020,9519,GROUNDSMEN W/E 16/05/20,11/06/2020,97.5,487.5,585,Grounds Maintenance,Agency Staff,60011
http://statistics.data.gov.uk/id/local-authority/12UE,Huntingdonshire District Council,201114.00,XP RECRUITMENT LTD,028122,20/05/2020,9519,GROUNDSMEN W/E 16/05/20,11/06/2020,105,525,630,Grounds Maintenance,Agency Staff,60011
http://statistics.data.gov.uk/id/local-authority/12UE,Huntingdonshire District Council,201114.00,XP RECRUITMENT LTD,028122,20/05/2020,9519,GROUNDSMEN W/E 16/05/20,11/06/2020,105,525,630,Grounds Maintenance,Agency Staff,60011
http://statistics.data.gov.uk/id/local-authority/12UE,Huntingdonshire District Council,201114.00,XP RECRUITMENT LTD,028383,27/05/2020,9527,GROUNDSMEN W/E 23/05/20,18/06/2020,105,525,630,Grounds Maintenance,Agency Staff,60011
http://statistics.data.gov.uk/id/local-authority/12UE,Huntingdonshire District Council,201114.00,XP RECRUITMENT LTD,028383,27/05/2020,9527,GROUNDSMEN W/E 23/05/20,18/06/2020,82.5,412.5,495,Grounds Maintenance,Agency Staff,60011
http://statistics.data.gov.uk/id/local-authority/12UE,Huntingdonshire District Council,201114.00,XP RECRUITMENT LTD,028383,27/05/2020,9527,GROUNDSMEN W/E 23/05/20,18/06/2020,105,525,630,Grounds Maintenance,Agency Staff,60011
http://statistics.data.gov.uk/id/local-authority/12UE,Huntingdonshire District Council,201114.00,XP RECRUITMENT LTD,027868,12/05/2020,9502,GROUNDSMEN W/E 09/05/20,04/06/2020,270,1350,1620,Grounds Maintenance,Agency Staff,60011
http://statistics.data.gov.uk/id/local-authority/12UE,Huntingdonshire District Council,201114.00,XP RECRUITMENT LTD,028630,03/06/2020,9542,GROUNDSMEN W/E 30/05/20,25/06/2020,37.5,187.5,225,Grounds Maintenance,Agency Staff,60011
http://statistics.data.gov.uk/id/local-authority/12UE,Huntingdonshire District Council,201114.00,XP RECRUITMENT LTD,028630,03/06/2020,9542,GROUNDSMEN W/E 30/05/20,25/06/2020,82.5,412.5,495,Grounds Maintenance,Agency Staff,60011
http://statistics.data.gov.uk/id/local-authority/12UE,Huntingdonshire District Council,201114.00,XP RECRUITMENT LTD,028630,03/06/2020,9542,GROUNDSMEN W/E 30/05/20,25/06/2020,82.5,412.5,495,Grounds Maintenance,Agency Staff,60011
http://statistics.data.gov.uk/id/local-authority/12UE,Huntingdonshire District Council,201321.00,SIDESTEP CONSULTING,028643,28/04/2020,999014,REDACTED,25/06/2020,190,950,1140,HDC Business Case ,Agency Staff,60011
http://statistics.data.gov.uk/id/local-authority/12UE,Huntingdonshire District Council,201321.00,SIDESTEP CONSULTING,027541,31/03/2020,999011,REDACTED,28/05/2020,190,950,1140,HDC Business Case ,Agency Staff,60011
http://statistics.data.gov.uk/id/local-authority/12UE,Huntingdonshire District Council,201321.00,SIDESTEP CONSULTING,027541,31/03/2020,999011,REDACTED,28/05/2020,190,950,1140,HDC Business Case ,Agency Staff,60011
http://statistics.data.gov.uk/id/local-authority/12UE,Huntingdonshire District Council,201321.00,SIDESTEP CONSULTING,028643,21/04/2020,999013,REDACTED,25/06/2020,190,950,1140,HDC Business Case ,Agency Staff,60011
http://statistics.data.gov.uk/id/local-authority/12UE,Huntingdonshire District Council,201321.00,SIDESTEP CONSULTING,028643,21/04/2020,999013,REDACTED,25/06/2020,114,570,684,HDC Business Case ,Agency Staff,60011
http://statistics.data.gov.uk/id/local-authority/12UE,Huntingdonshire District Council,201321.00,SIDESTEP CONSULTING,026617,24/03/2020,999008,REDACTED,07/05/2020,190,950,1140,HDC Business Case ,Agency Staff,60011
http://statistics.data.gov.uk/id/local-authority/12UE,Huntingdonshire District Council,201321.00,SIDESTEP CONSULTING,028643,06/04/2020,999012,REDACTED,25/06/2020,190,950,1140,HDC Business Case ,Agency Staff,60011
http://statistics.data.gov.uk/id/local-authority/12UE,Huntingdonshire District Council,200816.00,VENN GROUP RECRUITMENT VENN GROUP RECRUITMENT,025415,25/03/2020,3643495,REDACTED,23/04/2020,414,2070,2484,IMD Shared Service,Agency Staff,60011
http://statistics.data.gov.uk/id/local-authority/12UE,Huntingdonshire District Council,200816.00,VENN GROUP RECRUITMENT VENN GROUP RECRUITMENT,023442,11/03/2020,3638583,REDACTED,02/04/2020,345,1725,2070,IMD Shared Service,Agency Staff,60011
http://statistics.data.gov.uk/id/local-authority/12UE,Huntingdonshire District Council,200816.00,VENN GROUP RECRUITMENT VENN GROUP RECRUITMENT,026151,07/04/2020,3648004,REDACTED,30/04/2020,345,1725,2070,IMD Shared Service,Agency Staff,60011
http://statistics.data.gov.uk/id/local-authority/12UE,Huntingdonshire District Council,200816.00,VENN GROUP RECRUITMENT VENN GROUP RECRUITMENT,026603,15/04/2020,3649990,REDACTED,07/05/2020,345,1725,2070,IMD Shared Service,Agency Staff,60011
http://statistics.data.gov.uk/id/local-authority/12UE,Huntingdonshire District Council,200816.00,VENN GROUP RECRUITMENT VENN GROUP RECRUITMENT,027218,29/04/2020,3653830,REDACTED,21/05/2020,345,1725,2070,IMD Shared Service,Agency Staff,60011
http://statistics.data.gov.uk/id/local-authority/12UE,Huntingdonshire District Council,200816.00,VENN GROUP RECRUITMENT VENN GROUP RECRUITMENT,027520,05/05/2020,3655715,REDACTED,28/05/2020,345,1725,2070,IMD Shared Service,Agency Staff,60011
http://statistics.data.gov.uk/id/local-authority/12UE,Huntingdonshire District Council,200816.00,VENN GROUP RECRUITMENT VENN GROUP RECRUITMENT,027858,13/05/2020,3657812,REDACTED,04/06/2020,345,1725,2070,IMD Shared Service,Agency Staff,60011
http://statistics.data.gov.uk/id/local-authority/12UE,Huntingdonshire District Council,200816.00,VENN GROUP RECRUITMENT VENN GROUP RECRUITMENT,028111,20/05/2020,3659640,REDACTED,11/06/2020,345,1725,2070,IMD Shared Service,Agency Staff,60011
http://statistics.data.gov.uk/id/local-authority/12UE,Huntingdonshire District Council,200816.00,VENN GROUP RECRUITMENT VENN GROUP RECRUITMENT,028373,27/05/2020,3661348,REDACTED,18/06/2020,345,1725,2070,IMD Shared Service,Agency Staff,60011
http://statistics.data.gov.uk/id/local-authority/12UE,Huntingdonshire District Council,200816.00,VENN GROUP RECRUITMENT VENN GROUP RECRUITMENT,026931,22/04/2020,3651921,REDACTED,14/05/2020,310.5,1552.5,1863,IMD Shared Service,Agency Staff,60011
http://statistics.data.gov.uk/id/local-authority/12UE,Huntingdonshire District Council,200630.00,PREMIER GROUP RECRUITMENT LTD,023420,24/03/2020,R038720,REDACTED,02/04/2020,300,1500,1800,IMD Shared Service,Agency Staff,60011
http://statistics.data.gov.uk/id/local-authority/12UE,Huntingdonshire District Council,200630.00,PREMIER GROUP RECRUITMENT LTD,023844,30/03/2020,R038806,REDACTED,08/04/2020,300,1500,1800,IMD Shared Service,Agency Staff,60011
http://statistics.data.gov.uk/id/local-authority/12UE,Huntingdonshire District Council,200630.00,PREMIER GROUP RECRUITMENT LTD,026917,05/05/2020,R039286,REDACTED,14/05/2020,300,1500,1800,IMD Shared Service,Agency Staff,60011
http://statistics.data.gov.uk/id/local-authority/12UE,Huntingdonshire District Council,200630.00,PREMIER GROUP RECRUITMENT LTD,026917,06/04/2020,R038908,REDACTED,14/05/2020,300,1500,1800,IMD Shared Service,Agency Staff,60011
http://statistics.data.gov.uk/id/local-authority/12UE,Huntingdonshire District Council,200630.00,PREMIER GROUP RECRUITMENT LTD,026917,27/04/2020,R039187,REDACTED,14/05/2020,300,1500,1800,IMD Shared Service,Agency Staff,60011
http://statistics.data.gov.uk/id/local-authority/12UE,Huntingdonshire District Council,200630.00,PREMIER GROUP RECRUITMENT LTD,027843,18/05/2020,R039434,REDACTED,04/06/2020,300,1500,1800,IMD Shared Service,Agency Staff,60011
http://statistics.data.gov.uk/id/local-authority/12UE,Huntingdonshire District Council,200630.00,PREMIER GROUP RECRUITMENT LTD,027843,26/05/2020,R039534,REDACTED,04/06/2020,300,1500,1800,IMD Shared Service,Agency Staff,60011
http://statistics.data.gov.uk/id/local-authority/12UE,Huntingdonshire District Council,200630.00,PREMIER GROUP RECRUITMENT LTD,028362,08/06/2020,R039688,REDACTED,18/06/2020,300,1500,1800,IMD Shared Service,Agency Staff,60011
http://statistics.data.gov.uk/id/local-authority/12UE,Huntingdonshire District Council,200026.00,ADVANTAGE ADVANTAGE,028545,02/06/2020,133135,REDACTED,25/06/2020,300,1500,1800,IMD Shared Service,Agency Staff,60011
http://statistics.data.gov.uk/id/local-authority/12UE,Huntingdonshire District Council,200816.00,VENN GROUP RECRUITMENT VENN GROUP RECRUITMENT,023860,18/03/2020,3641083,3CICT,08/04/2020,276,1380,1656,IMD Shared Service,Agency Staff,60011
http://statistics.data.gov.uk/id/local-authority/12UE,Huntingdonshire District Council,200630.00,PREMIER GROUP RECRUITMENT LTD,026917,20/04/2020,R039099,REDACTED,14/05/2020,240,1200,1440,IMD Shared Service,Agency Staff,60011
http://statistics.data.gov.uk/id/local-authority/12UE,Huntingdonshire District Council,200630.00,PREMIER GROUP RECRUITMENT LTD,026917,14/04/2020,R039009,REDACTED,14/05/2020,240,1200,1440,IMD Shared Service,Agency Staff,60011
http://statistics.data.gov.uk/id/local-authority/12UE,Huntingdonshire District Council,200630.00,PREMIER GROUP RECRUITMENT LTD,027843,14/05/2020,R039403,REDACTED,04/06/2020,240,1200,1440,IMD Shared Service,Agency Staff,60011
http://statistics.data.gov.uk/id/local-authority/12UE,Huntingdonshire District Council,200630.00,PREMIER GROUP RECRUITMENT LTD,028362,03/06/2020,R039635,REDACTED,18/06/2020,240,1200,1440,IMD Shared Service,Agency Staff,60011
http://statistics.data.gov.uk/id/local-authority/12UE,Huntingdonshire District Council,200026.00,ADVANTAGE ADVANTAGE,028545,03/06/2020,133147,REDACTED,25/06/2020,240,1200,1440,IMD Shared Service,Agency Staff,60011
http://statistics.data.gov.uk/id/local-authority/12UE,Huntingdonshire District Council,200630.00,PREMIER GROUP RECRUITMENT LTD,023420,16/03/2020,R038542,REDACTED,02/04/2020,223.8,1119,1342.8,IMD Shared Service,Agency Staff,60011
http://statistics.data.gov.uk/id/local-authority/12UE,Huntingdonshire District Council,200026.00,ADVANTAGE ADVANTAGE,027805,04/05/2020,133027,REDACTED,04/06/2020,240,1200,1440,IMD Shared Service,Agency Staff,60011
http://statistics.data.gov.uk/id/local-authority/12UE,Huntingdonshire District Council,200026.00,ADVANTAGE ADVANTAGE,028059,20/05/2020,133070,REDACTED,11/06/2020,210,1050,1260,IMD Shared Service,Agency Staff,60011
http://statistics.data.gov.uk/id/local-authority/12UE,Huntingdonshire District Council,200026.00,ADVANTAGE ADVANTAGE,027805,13/05/2020,133052,REDACTED,04/06/2020,180,900,1080,IMD Shared Service,Agency Staff,60011
http://statistics.data.gov.uk/id/local-authority/12UE,Huntingdonshire District Council,200879.00,CHURCHILL SECURITY SOLUTIONS LTD,025421,31/03/2020,77021,PFH,23/04/2020,1362.78,6813.92,8176.7,Pathfinder House,Agency Staff,60011
http://statistics.data.gov.uk/id/local-authority/12UE,Huntingdonshire District Council,200879.00,CHURCHILL SECURITY SOLUTIONS LTD,027526,30/04/2020,77516,PFH,28/05/2020,1304.45,6522.23,7826.68,Pathfinder House,Agency Staff,60011
http://statistics.data.gov.uk/id/local-authority/12UE,Huntingdonshire District Council,200879.00,CHURCHILL SECURITY SOLUTIONS LTD,028615,31/05/2020,77728,PFH MAY 20,25/06/2020,1280.85,6404.24,7685.09,Pathfinder House,Agency Staff,60011
http://statistics.data.gov.uk/id/local-authority/12UE,Huntingdonshire District Council,200785.00,THE OYSTER PARTNERSHIP THE OYSTER PARTNERSHIP,024346,25/03/2020,1072085,ESTATES STAFF,16/04/2020,617.5,3087.5,3705,Property Development And Mgt,Agency Staff,60011
http://statistics.data.gov.uk/id/local-authority/12UE,Huntingdonshire District Council,200365.00,HAYS HAYS,023389,05/03/2020,1010450437,REDACTED,02/04/2020,550.6,2753,3303.6,Property Development And Mgt,Agency Staff,60011
http://statistics.data.gov.uk/id/local-authority/12UE,Huntingdonshire District Council,200365.00,HAYS HAYS,023389,05/03/2020,1010450436,REDACTED,02/04/2020,550.6,2753,3303.6,Property Development And Mgt,Agency Staff,60011
http://statistics.data.gov.uk/id/local-authority/12UE,Huntingdonshire District Council,200365.00,HAYS HAYS,023821,12/03/2020,1010475813,REDACTED,08/04/2020,550.6,2753,3303.6,Property Development And Mgt,Agency Staff,60011
http://statistics.data.gov.uk/id/local-authority/12UE,Huntingdonshire District Council,200365.00,HAYS HAYS,025361,30/03/2020,1010507142,REDACTED,23/04/2020,550.6,2753,3303.6,Property Development And Mgt,Agency Staff,60011
http://statistics.data.gov.uk/id/local-authority/12UE,Huntingdonshire District Council,200365.00,HAYS HAYS,026121,07/04/2020,1010526760,REDACTED,30/04/2020,550.6,2753,3303.6,Property Development And Mgt,Agency Staff,60011
http://statistics.data.gov.uk/id/local-authority/12UE,Huntingdonshire District Council,200365.00,HAYS HAYS,026560,14/04/2020,1010543352,REDACTED,07/05/2020,550.6,2753,3303.6,Property Development And Mgt,Agency Staff,60011
http://statistics.data.gov.uk/id/local-authority/12UE,Huntingdonshire District Council,200365.00,HAYS HAYS,025361,19/03/2020,1010490170,REDACTED,23/04/2020,550.6,2753,3303.6,Property Development And Mgt,Agency Staff,60011
http://statistics.data.gov.uk/id/local-authority/12UE,Huntingdonshire District Council,200365.00,HAYS HAYS,027494,04/05/2020,1010580792,REDACTED,28/05/2020,550.6,2753,3303.6,Property Development And Mgt,Agency Staff,60011
http://statistics.data.gov.uk/id/local-authority/12UE,Huntingdonshire District Council,200365.00,HAYS HAYS,027822,12/05/2020,1010591433,REDACTED,04/06/2020,550.6,2753,3303.6,Property Development And Mgt,Agency Staff,60011
http://statistics.data.gov.uk/id/local-authority/12UE,Huntingdonshire District Council,200365.00,HAYS HAYS,028345,26/05/2020,1010615916,REDACTED,18/06/2020,550.6,2753,3303.6,Property Development And Mgt,Agency Staff,60011
http://statistics.data.gov.uk/id/local-authority/12UE,Huntingdonshire District Council,200365.00,HAYS HAYS,028571,28/05/2020,1010625058,REDACTED,25/06/2020,495.54,2477.7,2973.24,Property Development And Mgt,Agency Staff,60011
http://statistics.data.gov.uk/id/local-authority/12UE,Huntingdonshire District Council,200785.00,THE OYSTER PARTNERSHIP THE OYSTER PARTNERSHIP,023438,11/03/2020,1071064,estates staff,02/04/2020,475,2375,2850,Property Development And Mgt,Agency Staff,60011
http://statistics.data.gov.uk/id/local-authority/12UE,Huntingdonshire District Council,200785.00,THE OYSTER PARTNERSHIP THE OYSTER PARTNERSHIP,023857,18/03/2020,1071573,REDACTED,08/04/2020,475,2375,2850,Property Development And Mgt,Agency Staff,60011
http://statistics.data.gov.uk/id/local-authority/12UE,Huntingdonshire District Council,200785.00,THE OYSTER PARTNERSHIP THE OYSTER PARTNERSHIP,025414,01/04/2020,1072576,REDACTED,23/04/2020,475,2375,2850,Property Development And Mgt,Agency Staff,60011
http://statistics.data.gov.uk/id/local-authority/12UE,Huntingdonshire District Council,200785.00,THE OYSTER PARTNERSHIP THE OYSTER PARTNERSHIP,026598,07/04/2020,1073024,REDACTED,07/05/2020,475,2375,2850,Property Development And Mgt,Agency Staff,60011
http://statistics.data.gov.uk/id/local-authority/12UE,Huntingdonshire District Council,200785.00,THE OYSTER PARTNERSHIP THE OYSTER PARTNERSHIP,028372,27/05/2020,1075873,REDACTED,18/06/2020,475,2375,2850,Property Development And Mgt,Agency Staff,60011
http://statistics.data.gov.uk/id/local-authority/12UE,Huntingdonshire District Council,200365.00,HAYS HAYS,026896,20/04/2020,1010554823,REDACTED,14/05/2020,440.48,2202.4,2642.88,Property Development And Mgt,Agency Staff,60011
http://statistics.data.gov.uk/id/local-authority/12UE,Huntingdonshire District Council,200365.00,HAYS HAYS,027179,27/04/2020,1010566745,REDACTED,21/05/2020,440.48,2202.4,2642.88,Property Development And Mgt,Agency Staff,60011
http://statistics.data.gov.uk/id/local-authority/12UE,Huntingdonshire District Council,200365.00,HAYS HAYS,028081,20/05/2020,1010604143,REDACTED,11/06/2020,440.48,2202.4,2642.88,Property Development And Mgt,Agency Staff,60011
http://statistics.data.gov.uk/id/local-authority/12UE,Huntingdonshire District Council,200785.00,THE OYSTER PARTNERSHIP THE OYSTER PARTNERSHIP,023438,11/03/2020,1071063,ESTATES STAFF,02/04/2020,390,1950,2340,Property Development And Mgt,Agency Staff,60011
http://statistics.data.gov.uk/id/local-authority/12UE,Huntingdonshire District Council,200785.00,THE OYSTER PARTNERSHIP THE OYSTER PARTNERSHIP,023857,18/03/2020,1071572,REDACTED,08/04/2020,390,1950,2340,Property Development And Mgt,Agency Staff,60011
http://statistics.data.gov.uk/id/local-authority/12UE,Huntingdonshire District Council,200785.00,THE OYSTER PARTNERSHIP THE OYSTER PARTNERSHIP,024346,25/03/2020,1072084,ESSTATES STAFF,16/04/2020,390,1950,2340,Property Development And Mgt,Agency Staff,60011
http://statistics.data.gov.uk/id/local-authority/12UE,Huntingdonshire District Council,200785.00,THE OYSTER PARTNERSHIP THE OYSTER PARTNERSHIP,025414,01/04/2020,1072575,REDACTED,23/04/2020,390,1950,2340,Property Development And Mgt,Agency Staff,60011
http://statistics.data.gov.uk/id/local-authority/12UE,Huntingdonshire District Council,200785.00,THE OYSTER PARTNERSHIP THE OYSTER PARTNERSHIP,026150,07/04/2020,1073023,REDACTED,30/04/2020,390,1950,2340,Property Development And Mgt,Agency Staff,60011
http://statistics.data.gov.uk/id/local-authority/12UE,Huntingdonshire District Council,200785.00,THE OYSTER PARTNERSHIP THE OYSTER PARTNERSHIP,027216,29/04/2020,1074293,REDACTED,21/05/2020,390,1950,2340,Property Development And Mgt,Agency Staff,60011
http://statistics.data.gov.uk/id/local-authority/12UE,Huntingdonshire District Council,200785.00,THE OYSTER PARTNERSHIP THE OYSTER PARTNERSHIP,027519,05/05/2020,1074707,REDACTED,28/05/2020,390,1950,2340,Property Development And Mgt,Agency Staff,60011
http://statistics.data.gov.uk/id/local-authority/12UE,Huntingdonshire District Council,200785.00,THE OYSTER PARTNERSHIP THE OYSTER PARTNERSHIP,028109,20/05/2020,1075513,REDACTED,11/06/2020,390,1950,2340,Property Development And Mgt,Agency Staff,60011
http://statistics.data.gov.uk/id/local-authority/12UE,Huntingdonshire District Council,200785.00,THE OYSTER PARTNERSHIP THE OYSTER PARTNERSHIP,028372,27/05/2020,1075872,REDACTED,18/06/2020,390,1950,2340,Property Development And Mgt,Agency Staff,60011
http://statistics.data.gov.uk/id/local-authority/12UE,Huntingdonshire District Council,200785.00,THE OYSTER PARTNERSHIP THE OYSTER PARTNERSHIP,027856,13/05/2020,1075101,REDACTED,04/06/2020,380,1900,2280,Property Development And Mgt,Agency Staff,60011
http://statistics.data.gov.uk/id/local-authority/12UE,Huntingdonshire District Council,200785.00,THE OYSTER PARTNERSHIP THE OYSTER PARTNERSHIP,028109,20/05/2020,1075514,REDACTED,11/06/2020,380,1900,2280,Property Development And Mgt,Agency Staff,60011
http://statistics.data.gov.uk/id/local-authority/12UE,Huntingdonshire District Council,200785.00,THE OYSTER PARTNERSHIP THE OYSTER PARTNERSHIP,028609,03/06/2020,1076267,REDACTED,25/06/2020,380,1900,2280,Property Development And Mgt,Agency Staff,60011
http://statistics.data.gov.uk/id/local-authority/12UE,Huntingdonshire District Council,202170.00,PAYSTREAM MY MAX 3 LTD,023477,27/03/2020,95211,ESTATES STAFF,02/04/2020,320,1600,1920,Property Development And Mgt,Agency Staff,60011
http://statistics.data.gov.uk/id/local-authority/12UE,Huntingdonshire District Council,202170.00,PAYSTREAM MY MAX 3 LTD,024451,06/04/2020,96146,REDACTED,16/04/2020,320,1600,1920,Property Development And Mgt,Agency Staff,60011
http://statistics.data.gov.uk/id/local-authority/12UE,Huntingdonshire District Council,202170.00,PAYSTREAM MY MAX 3 LTD,026178,28/04/2020,99023,REDACTED,30/04/2020,320,1600,1920,Property Development And Mgt,Agency Staff,60011
http://statistics.data.gov.uk/id/local-authority/12UE,Huntingdonshire District Council,202170.00,PAYSTREAM MY MAX 3 LTD,026625,04/05/2020,100087,REDACTED,07/05/2020,320,1600,1920,Property Development And Mgt,Agency Staff,60011
http://statistics.data.gov.uk/id/local-authority/12UE,Huntingdonshire District Council,202170.00,PAYSTREAM MY MAX 3 LTD,027244,18/05/2020,102055,REDACTED,21/05/2020,320,1600,1920,Property Development And Mgt,Agency Staff,60011
http://statistics.data.gov.uk/id/local-authority/12UE,Huntingdonshire District Council,202170.00,PAYSTREAM MY MAX 3 LTD,028134,08/06/2020,105213,REDACTED,11/06/2020,320,1600,1920,Property Development And Mgt,Agency Staff,60011
http://statistics.data.gov.uk/id/local-authority/12UE,Huntingdonshire District Council,202170.00,PAYSTREAM MY MAX 3 LTD,028398,15/06/2020,106203,REDACTED,18/06/2020,320,1600,1920,Property Development And Mgt,Agency Staff,60011
http://statistics.data.gov.uk/id/local-authority/12UE,Huntingdonshire District Council,200785.00,THE OYSTER PARTNERSHIP THE OYSTER PARTNERSHIP,026598,15/04/2020,1073469,REDACTED,07/05/2020,312,1560,1872,Property Development And Mgt,Agency Staff,60011
http://statistics.data.gov.uk/id/local-authority/12UE,Huntingdonshire District Council,200785.00,THE OYSTER PARTNERSHIP THE OYSTER PARTNERSHIP,026930,22/04/2020,1073873,REDACTED,14/05/2020,312,1560,1872,Property Development And Mgt,Agency Staff,60011
http://statistics.data.gov.uk/id/local-authority/12UE,Huntingdonshire District Council,200785.00,THE OYSTER PARTNERSHIP THE OYSTER PARTNERSHIP,027856,13/05/2020,1075100,REDACTED,04/06/2020,312,1560,1872,Property Development And Mgt,Agency Staff,60011
http://statistics.data.gov.uk/id/local-authority/12UE,Huntingdonshire District Council,200785.00,THE OYSTER PARTNERSHIP THE OYSTER PARTNERSHIP,028609,03/06/2020,1076266,REDACTED,25/06/2020,312,1560,1872,Property Development And Mgt,Agency Staff,60011
http://statistics.data.gov.uk/id/local-authority/12UE,Huntingdonshire District Council,200785.00,THE OYSTER PARTNERSHIP THE OYSTER PARTNERSHIP,023438,11/03/2020,1071065,ESTATES STAFF,02/04/2020,308,1540,1848,Property Development And Mgt,Agency Staff,60011
http://statistics.data.gov.uk/id/local-authority/12UE,Huntingdonshire District Council,200785.00,THE OYSTER PARTNERSHIP THE OYSTER PARTNERSHIP,023857,18/03/2020,1071574,REDACTED,08/04/2020,115.5,577.5,693,Property Development And Mgt,Agency Staff,60011
http://statistics.data.gov.uk/id/local-authority/12UE,Huntingdonshire District Council,200785.00,THE OYSTER PARTNERSHIP THE OYSTER PARTNERSHIP,023857,18/03/2020,1071574,REDACTED,08/04/2020,192.5,962.5,1155,Property Development And Mgt,Agency Staff,60011
http://statistics.data.gov.uk/id/local-authority/12UE,Huntingdonshire District Council,200785.00,THE OYSTER PARTNERSHIP THE OYSTER PARTNERSHIP,023438,20/09/2019,01123596/1,ESTATES STAFF,02/04/2020,192.5,962.5,1155,Property Development And Mgt,Agency Staff,60011
http://statistics.data.gov.uk/id/local-authority/12UE,Huntingdonshire District Council,200785.00,THE OYSTER PARTNERSHIP THE OYSTER PARTNERSHIP,023438,20/09/2019,01123596/1,ESTATES STAFF,02/04/2020,115.5,577.5,693,Property Development And Mgt,Agency Staff,60011
http://statistics.data.gov.uk/id/local-authority/12UE,Huntingdonshire District Council,202170.00,PAYSTREAM MY MAX 3 LTD,028656,22/06/2020,107103,REDACTED,25/06/2020,288,1440,1728,Property Development And Mgt,Agency Staff,60011
http://statistics.data.gov.uk/id/local-authority/12UE,Huntingdonshire District Council,200785.00,THE OYSTER PARTNERSHIP THE OYSTER PARTNERSHIP,026598,15/04/2020,1073470,REDACTED,07/05/2020,285,1425,1710,Property Development And Mgt,Agency Staff,60011
http://statistics.data.gov.uk/id/local-authority/12UE,Huntingdonshire District Council,200785.00,THE OYSTER PARTNERSHIP THE OYSTER PARTNERSHIP,027519,05/05/2020,1074708,REDACTED,28/05/2020,285,1425,1710,Property Development And Mgt,Agency Staff,60011
http://statistics.data.gov.uk/id/local-authority/12UE,Huntingdonshire District Council,200785.00,THE OYSTER PARTNERSHIP THE OYSTER PARTNERSHIP,027216,29/04/2020,1074294,REDACTED,21/05/2020,285,1425,1710,Property Development And Mgt,Agency Staff,60011
http://statistics.data.gov.uk/id/local-authority/12UE,Huntingdonshire District Council,200785.00,THE OYSTER PARTNERSHIP THE OYSTER PARTNERSHIP,026930,22/04/2020,1073874,REDACTED,14/05/2020,285,1425,1710,Property Development And Mgt,Agency Staff,60011
http://statistics.data.gov.uk/id/local-authority/12UE,Huntingdonshire District Council,202170.00,PAYSTREAM MY MAX 3 LTD,024451,14/04/2020,97072,REDACTED,16/04/2020,256,1280,1536,Property Development And Mgt,Agency Staff,60011
http://statistics.data.gov.uk/id/local-authority/12UE,Huntingdonshire District Council,202170.00,PAYSTREAM MY MAX 3 LTD,025481,20/04/2020,97959,REDACTED,23/04/2020,256,1280,1536,Property Development And Mgt,Agency Staff,60011
http://statistics.data.gov.uk/id/local-authority/12UE,Huntingdonshire District Council,202170.00,PAYSTREAM MY MAX 3 LTD,026955,11/05/2020,101100,REDACTED,14/05/2020,256,1280,1536,Property Development And Mgt,Agency Staff,60011
http://statistics.data.gov.uk/id/local-authority/12UE,Huntingdonshire District Council,202170.00,PAYSTREAM MY MAX 3 LTD,027557,26/05/2020,103089,REDACTED,28/05/2020,256,1280,1536,Property Development And Mgt,Agency Staff,60011
http://statistics.data.gov.uk/id/local-authority/12UE,Huntingdonshire District Council,202170.00,PAYSTREAM MY MAX 3 LTD,027878,01/06/2020,104123,REDACTED,04/06/2020,256,1280,1536,Property Development And Mgt,Agency Staff,60011
http://statistics.data.gov.uk/id/local-authority/12UE,Huntingdonshire District Council,200785.00,THE OYSTER PARTNERSHIP THE OYSTER PARTNERSHIP,025414,01/04/2020,1072577,REDACTED,23/04/2020,231,1155,1386,Property Development And Mgt,Agency Staff,60011
http://statistics.data.gov.uk/id/local-authority/12UE,Huntingdonshire District Council,200785.00,THE OYSTER PARTNERSHIP THE OYSTER PARTNERSHIP,026150,07/04/2020,1073025,REDACTED,30/04/2020,231,1155,1386,Property Development And Mgt,Agency Staff,60011
http://statistics.data.gov.uk/id/local-authority/12UE,Huntingdonshire District Council,200785.00,THE OYSTER PARTNERSHIP THE OYSTER PARTNERSHIP,026598,15/04/2020,1073471,REDACTED,07/05/2020,231,1155,1386,Property Development And Mgt,Agency Staff,60011
http://statistics.data.gov.uk/id/local-authority/12UE,Huntingdonshire District Council,200785.00,THE OYSTER PARTNERSHIP THE OYSTER PARTNERSHIP,026930,22/04/2020,1073875,REDACTED,14/05/2020,231,1155,1386,Property Development And Mgt,Agency Staff,60011
http://statistics.data.gov.uk/id/local-authority/12UE,Huntingdonshire District Council,200785.00,THE OYSTER PARTNERSHIP THE OYSTER PARTNERSHIP,027216,29/04/2020,1074295,REDACTED,21/05/2020,231,1155,1386,Property Development And Mgt,Agency Staff,60011
http://statistics.data.gov.uk/id/local-authority/12UE,Huntingdonshire District Council,200785.00,THE OYSTER PARTNERSHIP THE OYSTER PARTNERSHIP,027856,13/05/2020,1075102,REDACTED,04/06/2020,231,1155,1386,Property Development And Mgt,Agency Staff,60011
http://statistics.data.gov.uk/id/local-authority/12UE,Huntingdonshire District Council,200785.00,THE OYSTER PARTNERSHIP THE OYSTER PARTNERSHIP,028109,20/05/2020,1075515,REDACTED,11/06/2020,231,1155,1386,Property Development And Mgt,Agency Staff,60011
http://statistics.data.gov.uk/id/local-authority/12UE,Huntingdonshire District Council,200785.00,THE OYSTER PARTNERSHIP THE OYSTER PARTNERSHIP,028372,27/05/2020,1075874,REDACTED,18/06/2020,231,1155,1386,Property Development And Mgt,Agency Staff,60011
http://statistics.data.gov.uk/id/local-authority/12UE,Huntingdonshire District Council,200785.00,THE OYSTER PARTNERSHIP THE OYSTER PARTNERSHIP,028609,03/06/2020,1076268,REDACTED,25/06/2020,231,1155,1386,Property Development And Mgt,Agency Staff,60011
http://statistics.data.gov.uk/id/local-authority/12UE,Huntingdonshire District Council,200785.00,THE OYSTER PARTNERSHIP THE OYSTER PARTNERSHIP,027519,05/05/2020,1074709,REDACTED,28/05/2020,154,770,924,Property Development And Mgt,Agency Staff,60011
http://statistics.data.gov.uk/id/local-authority/12UE,Huntingdonshire District Council,201114.00,XP RECRUITMENT LTD,026611,15/04/2020,9452,WAREHOUSE W/E 11/04/20,07/05/2020,962.77,4813.85,5776.62,Recycling Collections,Agency Staff,60011
http://statistics.data.gov.uk/id/local-authority/12UE,Huntingdonshire District Council,201114.00,XP RECRUITMENT LTD,027538,05/05/2020,9495,WAREHOUSE W/E 02/05/20,28/05/2020,917.58,4587.9,5505.48,Recycling Collections,Agency Staff,60011
http://statistics.data.gov.uk/id/local-authority/12UE,Huntingdonshire District Council,201114.00,XP RECRUITMENT LTD,023455,11/03/2020,9329,WAREHOUSE W/E 07/03/20,02/04/2020,860.89,4304.45,5165.34,Recycling Collections,Agency Staff,60011
http://statistics.data.gov.uk/id/local-authority/12UE,Huntingdonshire District Council,201114.00,XP RECRUITMENT LTD,025434,01/04/2020,9424,WAREHOUSE W/E 28/03/20,23/04/2020,817.26,4086.3,4903.56,Recycling Collections,Agency Staff,60011
http://statistics.data.gov.uk/id/local-authority/12UE,Huntingdonshire District Council,200743.00,STAFFLINE GROUP STAFFLINE GROUP,023854,15/03/2020,63742,OPS STAFF 3INVOICES,08/04/2020,207.45,1037.24,1244.69,Recycling Collections,Agency Staff,60011
http://statistics.data.gov.uk/id/local-authority/12UE,Huntingdonshire District Council,200743.00,STAFFLINE GROUP STAFFLINE GROUP,026596,10/04/2020,66161,RECYCLING W/C 05/04/20,07/05/2020,313.99,1569.96,1883.95,Recycling Collections,Agency Staff,60011
http://statistics.data.gov.uk/id/local-authority/12UE,Huntingdonshire District Council,200743.00,STAFFLINE GROUP STAFFLINE GROUP,027518,01/05/2020,68206,RECYCLING W/C 28/04/20,28/05/2020,298.54,1492.68,1791.22,Recycling Collections,Agency Staff,60011
http://statistics.data.gov.uk/id/local-authority/12UE,Huntingdonshire District Council,200743.00,STAFFLINE GROUP STAFFLINE GROUP,027853,08/05/2020,68883,RECYCLING W/C 03/05/20,04/06/2020,261.6,1308.01,1569.61,Recycling Collections,Agency Staff,60011
http://statistics.data.gov.uk/id/local-authority/12UE,Huntingdonshire District Council,200743.00,STAFFLINE GROUP STAFFLINE GROUP,026925,17/04/2020,66841,RECYCLING W/C 12/04/20,14/05/2020,245.81,1229.07,1474.88,Recycling Collections,Agency Staff,60011
http://statistics.data.gov.uk/id/local-authority/12UE,Huntingdonshire District Council,200743.00,STAFFLINE GROUP STAFFLINE GROUP,028106,15/05/2020,89555,RECYCLING W/C 10/05/20,11/06/2020,227.02,1135.12,1362.14,Recycling Collections,Agency Staff,60011
http://statistics.data.gov.uk/id/local-authority/12UE,Huntingdonshire District Council,200743.00,STAFFLINE GROUP STAFFLINE GROUP,026596,28/02/2020,60723,RECYCLING W/C 23/02/20,07/05/2020,223.02,1115.09,1338.11,Recycling Collections,Agency Staff,60011
http://statistics.data.gov.uk/id/local-authority/12UE,Huntingdonshire District Council,200743.00,STAFFLINE GROUP STAFFLINE GROUP,026146,03/04/2020,65472,RECYCLING W/C 29/03/20,30/04/2020,220.01,1100.06,1320.07,Recycling Collections,Agency Staff,60011
http://statistics.data.gov.uk/id/local-authority/12UE,Huntingdonshire District Council,200743.00,STAFFLINE GROUP STAFFLINE GROUP,023854,13/03/2020,62738,RECYCLING W/C 08/03/20,08/04/2020,209.29,1046.46,1255.75,Recycling Collections,Agency Staff,60011
http://statistics.data.gov.uk/id/local-authority/12UE,Huntingdonshire District Council,200743.00,STAFFLINE GROUP STAFFLINE GROUP,023435,06/03/2020,61729,RECYCLING W/C 01/03/20,02/04/2020,190.03,950.16,1140.19,Recycling Collections,Agency Staff,60011
http://statistics.data.gov.uk/id/local-authority/12UE,Huntingdonshire District Council,200743.00,STAFFLINE GROUP STAFFLINE GROUP,025410,27/03/2020,64681,RECYCLING W/C 22/03/20,23/04/2020,163.52,817.58,981.1,Recycling Collections,Agency Staff,60011
http://statistics.data.gov.uk/id/local-authority/12UE,Huntingdonshire District Council,200743.00,STAFFLINE GROUP STAFFLINE GROUP,027211,24/04/2020,67516,RECYCLING W/C 19/04/20,21/05/2020,149.74,748.68,898.42,Recycling Collections,Agency Staff,60011
http://statistics.data.gov.uk/id/local-authority/12UE,Huntingdonshire District Council,200886.00,NICK BURTON LTD,026154,18/03/2020,20/03,SHARED PLANNING ICT PROJECT,30/04/2020,0,15525,15525,SCDC Recoverable,Agency Staff,60011
http://statistics.data.gov.uk/id/local-authority/12UE,Huntingdonshire District Council,200886.00,NICK BURTON LTD,026154,03/02/2020,20/02,SHARED PLANNING ICT PROJECT,30/04/2020,0,11700,11700,SCDC Recoverable,Agency Staff,60011
http://statistics.data.gov.uk/id/local-authority/12UE,Huntingdonshire District Council,200886.00,NICK BURTON LTD,026154,26/01/2020,20/01,SHARED PLANNING ICT PROJECT,30/04/2020,0,5400,5400,SCDC Recoverable,Agency Staff,60011
http://statistics.data.gov.uk/id/local-authority/12UE,Huntingdonshire District Council,200743.00,STAFFLINE GROUP STAFFLINE GROUP,028106,15/05/2020,69557,STREET CLEANSER W/C 10/05/20,11/06/2020,91.24,456.21,547.45,Street Cleansing,Agency Staff,60011
http://statistics.data.gov.uk/id/local-authority/12UE,Huntingdonshire District Council,200743.00,STAFFLINE GROUP STAFFLINE GROUP,027853,01/05/2020,68208,STREET CLEANSER W/C 26/04/20,04/06/2020,91.24,456.21,547.45,Street Cleansing,Agency Staff,60011
http://statistics.data.gov.uk/id/local-authority/12UE,Huntingdonshire District Council,200743.00,STAFFLINE GROUP STAFFLINE GROUP,028369,22/05/2020,70260,STREET CLEANSER W/C 17/05/20,18/06/2020,91.24,456.21,547.45,Street Cleansing,Agency Staff,60011
http://statistics.data.gov.uk/id/local-authority/12UE,Huntingdonshire District Council,200743.00,STAFFLINE GROUP STAFFLINE GROUP,028369,24/04/2020,67519,STREET CLEANSER W/C 19/04/20,18/06/2020,91.24,456.21,547.45,Street Cleansing,Agency Staff,60011
http://statistics.data.gov.uk/id/local-authority/12UE,Huntingdonshire District Council,200743.00,STAFFLINE GROUP STAFFLINE GROUP,026925,17/04/2020,66843,STREET CLEANSER W/C 12/04/20,14/05/2020,73.98,369.9,443.88,Street Cleansing,Agency Staff,60011
http://statistics.data.gov.uk/id/local-authority/12UE,Huntingdonshire District Council,200743.00,STAFFLINE GROUP STAFFLINE GROUP,028369,08/05/2020,68885,STREET CLEANSER W/C 03/05/20,18/06/2020,73.98,369.9,443.88,Street Cleansing,Agency Staff,60011
http://statistics.data.gov.uk/id/local-authority/12UE,Huntingdonshire District Council,200743.00,STAFFLINE GROUP STAFFLINE GROUP,028369,10/04/2020,66163,STREET CLEANSER W/C 05/04/20,18/06/2020,73.98,369.9,443.88,Street Cleansing,Agency Staff,60011
http://statistics.data.gov.uk/id/local-authority/12UE,Huntingdonshire District Council,200743.00,STAFFLINE GROUP STAFFLINE GROUP,028605,29/05/2020,70955,STREET CLEANSER W/C 24/05/20,25/06/2020,72.75,363.74,436.49,Street Cleansing,Agency Staff,60011
http://statistics.data.gov.uk/id/local-authority/12UE,Huntingdonshire District Council,200743.00,STAFFLINE GROUP STAFFLINE GROUP,026596,15/03/2020,63743,STREET CLEANSER W/C 15/03/20,07/05/2020,69.66,348.3,417.96,Vehicle Maintenance,Agency Staff,60011
http://statistics.data.gov.uk/id/local-authority/12UE,Huntingdonshire District Council,201054.00,CAMBRIDGESHIRE PENSION FUND,023451,11/03/2020,423300010782,P11 & 12 UNFUNDED RECHARGES,02/04/2020,0,13869.27,13869.27,Non Distributed Costs,Pension Increase Act Payments,60101
http://statistics.data.gov.uk/id/local-authority/12UE,Huntingdonshire District Council,201054.00,CAMBRIDGESHIRE PENSION FUND,023451,11/03/2020,423300010782,P11 & 12 UNFUNDED RECHARGES,02/04/2020,0,13869.27,13869.27,Non Distributed Costs,Pension Increase Act Payments,60101
http://statistics.data.gov.uk/id/local-authority/12UE,Huntingdonshire District Council,200210.00,COMPUTERSHARE VOUCHERS LTD COMPUTERSHARE VOUCHERS LTD,026110,27/04/2020,C-0003058080,TAX FREE VOUCHERS,30/04/2020,0,2828.58,2828.58,Payroll Services,Childcare Admin Vouchers,60106
http://statistics.data.gov.uk/id/local-authority/12UE,Huntingdonshire District Council,200210.00,COMPUTERSHARE VOUCHERS LTD COMPUTERSHARE VOUCHERS LTD,027487,26/05/2020,C-0003069994,TAX FREE VOUCHERS,28/05/2020,0,2720,2720,Payroll Services,Childcare Admin Vouchers,60106
http://statistics.data.gov.uk/id/local-authority/12UE,Huntingdonshire District Council,200210.00,COMPUTERSHARE VOUCHERS LTD COMPUTERSHARE VOUCHERS LTD,028563,24/06/2020,C-0003081818,TAX FREE VOUCHERS,25/06/2020,0,2467,2467,Payroll Services,Childcare Admin Vouchers,60106
http://statistics.data.gov.uk/id/local-authority/12UE,Huntingdonshire District Council,200909.00,WRIGHTWAY HEALTH LTD,025422,01/04/2020,41472,OCCUPATIONAL HEALTH,23/04/2020,0,1808,1808,HR Services,Occupational Health,60111
http://statistics.data.gov.uk/id/local-authority/12UE,Huntingdonshire District Council,200909.00,WRIGHTWAY HEALTH LTD,026156,02/03/2020,40653,OCCUPATIONAL HEALTH,30/04/2020,0,1808,1808,HR Services,Occupational Health,60111
http://statistics.data.gov.uk/id/local-authority/12UE,Huntingdonshire District Council,200909.00,WRIGHTWAY HEALTH LTD,027528,01/05/2020,41845,OCCUPATIONAL HEALTH,28/05/2020,0,1808,1808,HR Services,Occupational Health,60111
http://statistics.data.gov.uk/id/local-authority/12UE,Huntingdonshire District Council,200150.00,CAMBRIDGE CONSULTANCY IN COUNSELLING CAMBRIDGE CONSULTANCY IN COUNSELLING,027480,30/04/2020,102374,COUNCELLING,28/05/2020,0,250,250,HR Services,Occupational Health,60111
http://statistics.data.gov.uk/id/local-authority/12UE,Huntingdonshire District Council,200150.00,CAMBRIDGE CONSULTANCY IN COUNSELLING CAMBRIDGE CONSULTANCY IN COUNSELLING,027480,30/04/2020,102373,COUNCELLING,28/05/2020,0,250,250,HR Services,Occupational Health,60111
http://statistics.data.gov.uk/id/local-authority/12UE,Huntingdonshire District Council,200651.00,PWM TRAINING (UK) LTD PWM TRAINING (UK) LTD,027844,06/05/2020,INV-5337,TRAINING,04/06/2020,79,395,474,Cambridge City Business Case ,Staff Development And Training,60115
http://statistics.data.gov.uk/id/local-authority/12UE,Huntingdonshire District Council,200236.00,DENNIS EAGLE LTD DENNIS EAGLE LTD,026114,27/03/2020,375391,TRAINING,30/04/2020,60,300,360,Domestic Waste Collection,Staff Development And Training,60115
http://statistics.data.gov.uk/id/local-authority/12UE,Huntingdonshire District Council,202292.00,FOCUS ON TRAINING A DIVISION OF FOCUS PROJECT MANAGEMENT (EUROPE) LTD,028142,18/05/2020,29413,TRAINING,11/06/2020,329,1645,1974,HDC Business Case ,Staff Development And Training,60115
http://statistics.data.gov.uk/id/local-authority/12UE,Huntingdonshire District Council,201698.00,HOT LEARNING LTD T/A ENGAGE IN LEARNING,025470,31/03/2020,INV-03399,TRAINING,23/04/2020,1926.4,9632,11558.4,HR Services,Staff Development And Training,60115
http://statistics.data.gov.uk/id/local-authority/12UE,Huntingdonshire District Council,202322.00,BOOKBOON.COM LTD,028661,01/06/2020,13664,eLIBRARY & AUDIO LEARNING,25/06/2020,800,4000,4800,HR Services,Staff Development And Training,60115
http://statistics.data.gov.uk/id/local-authority/12UE,Huntingdonshire District Council,200779.00,THE CCTV TRAINING ACADEMY THE CCTV TRAINING ACADEMY,026929,17/04/2020,0372,CCTV TRAINING,14/05/2020,0,1960,1960,HR Services,Staff Development And Training,60115
http://statistics.data.gov.uk/id/local-authority/12UE,Huntingdonshire District Council,202185.00,SYSTEMATIX LTD,024452,19/03/2020,INV-0265,TRAINING,16/04/2020,219,1095,1314,HR Services,Staff Development And Training,60115
http://statistics.data.gov.uk/id/local-authority/12UE,Huntingdonshire District Council,200219.00,C-WAY DRIVER TRAINING C-WAY DRIVER TRAINING,026111,11/03/2020,131411739,REDACTED,30/04/2020,141.67,708.33,850,HR Services,Staff Development And Training,60115
http://statistics.data.gov.uk/id/local-authority/12UE,Huntingdonshire District Council,200415.00,INSTITUTE OF LICENSING(EVENTS) LIMITED INSTITUTE OF LICENSING(EVENTS) LIMITED,027829,17/02/2020,EVE29193,TRAINING,04/06/2020,32,160,192,Licensing Common Costs,Staff Development And Training,60115
http://statistics.data.gov.uk/id/local-authority/12UE,Huntingdonshire District Council,200415.00,INSTITUTE OF LICENSING(EVENTS) LIMITED INSTITUTE OF LICENSING(EVENTS) LIMITED,027829,17/02/2020,EVE29193,TRAINING,04/06/2020,32,160,192,Licensing Common Costs,Staff Development And Training,60115
http://statistics.data.gov.uk/id/local-authority/12UE,Huntingdonshire District Council,200341.00,GLADSTONE MRM GLADSTONE MRM,023820,13/03/2020,04014319,TRAINING,08/04/2020,28,140,168,OLH - Site & Centre Management,Staff Development And Training,60115
http://statistics.data.gov.uk/id/local-authority/12UE,Huntingdonshire District Council,200341.00,GLADSTONE MRM GLADSTONE MRM,023820,13/03/2020,04014319,TRAINING,08/04/2020,14,70,84,OLR - Site & Centre Management,Staff Development And Training,60115
http://statistics.data.gov.uk/id/local-authority/12UE,Huntingdonshire District Council,200341.00,GLADSTONE MRM GLADSTONE MRM,023820,13/03/2020,04014319,TRAINING,08/04/2020,28,140,168,OLSI - Site & Centre Management,Staff Development And Training,60115
http://statistics.data.gov.uk/id/local-authority/12UE,Huntingdonshire District Council,202101.00,TRAINING SHED FAMILY LTD,023888,01/04/2020,INV-0036,OL ST IVES,08/04/2020,500,2500,3000,OLSIO - Training Shed,Staff Development And Training,60115
http://statistics.data.gov.uk/id/local-authority/12UE,Huntingdonshire District Council,200341.00,GLADSTONE MRM GLADSTONE MRM,023820,13/03/2020,04014319,TRAINING,08/04/2020,28,140,168,OLSN - Site & Centre Management,Staff Development And Training,60115
http://statistics.data.gov.uk/id/local-authority/12UE,Huntingdonshire District Council,200236.00,DENNIS EAGLE LTD DENNIS EAGLE LTD,026114,27/03/2020,375391,TRAINING,30/04/2020,60,300,360,Recycling Collections,Staff Development And Training,60115
http://statistics.data.gov.uk/id/local-authority/12UE,Huntingdonshire District Council,200312.00,FREIGHT TRANSPORT ASSOCIATION FREIGHT TRANSPORT ASSOCIATION,023818,16/03/2020,8366339,TRAINING,08/04/2020,45.11,225.57,270.68,Vehicle Maintenance,Staff Development And Training,60115
http://statistics.data.gov.uk/id/local-authority/12UE,Huntingdonshire District Council,200651.00,PWM TRAINING (UK) LTD PWM TRAINING (UK) LTD,026918,17/02/2020,INV-5310,TRAINING,14/05/2020,79,395,474,Cambridge City Business Case ,Staff Recruitment Costs,60116
http://statistics.data.gov.uk/id/local-authority/12UE,Huntingdonshire District Council,200651.00,PWM TRAINING (UK) LTD PWM TRAINING (UK) LTD,027844,06/05/2020,INV-5338,TRAINING,04/06/2020,79,395,474,Cambridge City Business Case ,Staff Recruitment Costs,60116
http://statistics.data.gov.uk/id/local-authority/12UE,Huntingdonshire District Council,200297.00,FIRST RECRUITMENT GROUP LTD FIRST RECRUITMENT GROUP LTD,027818,04/03/2020,372689,REDACTED,04/06/2020,105.01,525.03,630.04,Cctv Huntingdonshire,Staff Recruitment Costs,60116
http://statistics.data.gov.uk/id/local-authority/12UE,Huntingdonshire District Council,200297.00,FIRST RECRUITMENT GROUP LTD FIRST RECRUITMENT GROUP LTD,027818,04/03/2020,372687,REDACTED,04/06/2020,105.01,525.03,630.04,Cctv Huntingdonshire,Staff Recruitment Costs,60116
http://statistics.data.gov.uk/id/local-authority/12UE,Huntingdonshire District Council,201078.00,CHARTERED INSTITUTE OF ENVIRONMENTAL HEALTH,028629,29/05/2020,PUB001364,RECRUITMENT ADVERTISING,25/06/2020,160,800,960,Commercial Team,Staff Recruitment Costs,60116
http://statistics.data.gov.uk/id/local-authority/12UE,Huntingdonshire District Council,202234.00,MALLARD OUTSOURCING LTD,025484,16/03/2020,MO16032020-001,RECRUITMENT ADVERTISING,23/04/2020,70,350,420,Development Management,Staff Recruitment Costs,60116
http://statistics.data.gov.uk/id/local-authority/12UE,Huntingdonshire District Council,200026.00,ADVANTAGE ADVANTAGE,028325,01/06/2020,133124,REDACTED,18/06/2020,1062.96,5314.8,6377.76,IMD Shared Service,Staff Recruitment Costs,60116
http://statistics.data.gov.uk/id/local-authority/12UE,Huntingdonshire District Council,202101.00,TRAINING SHED FAMILY LTD,023888,01/04/2020,INV-0036,OL ST IVES,08/04/2020,500,2500,3000,OLSIO - Training Shed,Staff Recruitment Costs,60116
http://statistics.data.gov.uk/id/local-authority/12UE,Huntingdonshire District Council,201919.00,PLEYDELL SMITHYMAN LTD,023469,13/03/2020,M18.186/INV366.M19,OPEN SPACES STRATEGY,02/04/2020,3870,19350,23220,Parks & Open Spaces,Facilities Management,60200
http://statistics.data.gov.uk/id/local-authority/12UE,Huntingdonshire District Council,201919.00,PLEYDELL SMITHYMAN LTD,023469,13/03/2020,M18.186/INV367.M19,CONSULTANCY,02/04/2020,600,3000,3600,Parks & Open Spaces,Facilities Management,60200
http://statistics.data.gov.uk/id/local-authority/12UE,Huntingdonshire District Council,200429.00,J BREHENY CIVIL ENGINEERING LTD J BREHENY CIVIL ENGINEERING LTD,025370,26/03/2020,HMG/5106/32782,MINOR WORKS FRAMEWORK,23/04/2020,190,950,1140,Commercial Properties,Maintenance - Building,60201
http://statistics.data.gov.uk/id/local-authority/12UE,Huntingdonshire District Council,201660.00,TOTAL ENVIRONMENTAL COMPLIANCE LTD,027549,30/04/2020,33010,LEGIONELLA MONITORING,28/05/2020,191,955,1146,Eastfield House,Maintenance - Building,60201
http://statistics.data.gov.uk/id/local-authority/12UE,Huntingdonshire District Council,200772.00,TEMPLE LIFTS LIMITED TEMPLE LIFTS LIMITED,027214,27/04/2020,543320,MAINTENANCE,21/05/2020,130,650,780,Eastfield House,Maintenance - Building,60201
http://statistics.data.gov.uk/id/local-authority/12UE,Huntingdonshire District Council,200999.00,"HARRISONS ELECTRICAL, MECHANICAL AND PROPERTY SERVICES",026936,21/04/2020,35281,FIRE ALARM ETC SERVICING,14/05/2020,200,1000,1200,Eastfield House,Maintenance - Building,60201
http://statistics.data.gov.uk/id/local-authority/12UE,Huntingdonshire District Council,200429.00,J BREHENY CIVIL ENGINEERING LTD J BREHENY CIVIL ENGINEERING LTD,025370,26/03/2020,HMG/5106/32790,MINOR WORKS FRAMEWORK,23/04/2020,223.76,1118.78,1342.54,Eastfield House,Maintenance - Building,60201
http://statistics.data.gov.uk/id/local-authority/12UE,Huntingdonshire District Council,201147.00,STANAIR INDUSTRIAL DOOR SERVICES LTD,023874,18/03/2020,40756,DOOR REPAIR,08/04/2020,449,2245,2694,Eastfield House,Maintenance - Building,60201
http://statistics.data.gov.uk/id/local-authority/12UE,Huntingdonshire District Council,200075.00,B S GRAVES ELECTRICAL LTD B S GRAVES ELECTRICAL LTD,023801,16/03/2020,29101,EASTFIELD HOUSE,08/04/2020,265.83,1329.15,1594.98,Eastfield House,Maintenance - Building,60201
http://statistics.data.gov.uk/id/local-authority/12UE,Huntingdonshire District Council,201021.00,ZIP HEATERS UK LTD,023871,25/07/2019,862830,ZIP TAPS,08/04/2020,145.86,729.32,875.18,Eastfield House,Maintenance - Building,60201
http://statistics.data.gov.uk/id/local-authority/12UE,Huntingdonshire District Council,200999.00,"HARRISONS ELECTRICAL, MECHANICAL AND PROPERTY SERVICES",026936,21/04/2020,35282,EMERGENCY LIGHT TESTING,14/05/2020,47,235,282,Eastfield House,Maintenance - Building,60201
http://statistics.data.gov.uk/id/local-authority/12UE,Huntingdonshire District Council,201147.00,STANAIR INDUSTRIAL DOOR SERVICES LTD,026945,17/04/2020,41201,EASTFIELD HOUSE,14/05/2020,110.8,554,664.8,Eastfield House,Maintenance - Building,60201
http://statistics.data.gov.uk/id/local-authority/12UE,Huntingdonshire District Council,200542.00,MIRAMAR ENGINEERING LTD MIRAMAR ENGINEERING LTD,027193,21/04/2020,003995,DECOMMISSIONING OF HOT WATER BOILERS,21/05/2020,24,120,144,Eastfield House,Maintenance - Building,60201
http://statistics.data.gov.uk/id/local-authority/12UE,Huntingdonshire District Council,200568.00,NEWGATE (NEWARK) LIMITED NEWGATE (NEWARK) LIMITED,026134,07/04/2020,161614,MAINTENANCE CONTRACT FEE,30/04/2020,35.67,178.34,214.01,Eastfield House,Maintenance - Building,60201
http://statistics.data.gov.uk/id/local-authority/12UE,Huntingdonshire District Council,201825.00,EUROSAFE SOLUTIONS LTD,028651,28/05/2020,35974,EASTFIELD HOUSE,25/06/2020,96,480,576,Eastfield House,Maintenance - Building,60201
http://statistics.data.gov.uk/id/local-authority/12UE,Huntingdonshire District Council,201660.00,TOTAL ENVIRONMENTAL COMPLIANCE LTD,027549,30/04/2020,33010,LEGIONELLA MONITORING,28/05/2020,92.3,461.5,553.8,H'Brooke Countryside Centre,Maintenance - Building,60201
http://statistics.data.gov.uk/id/local-authority/12UE,Huntingdonshire District Council,200832.00,WALKER FIRE UK LTD WALKER FIRE UK LTD,028113,19/05/2020,20758693,COUNTRY PARK,11/06/2020,64.79,323.95,388.74,Hinchingbrooke Park Management,Maintenance - Building,60201
http://statistics.data.gov.uk/id/local-authority/12UE,Huntingdonshire District Council,200542.00,MIRAMAR ENGINEERING LTD MIRAMAR ENGINEERING LTD,023413,06/03/2020,002630,OL HUNTINGDON,02/04/2020,538,2690,3228,Hunt Leis C - Gen Improve (Cs),Maintenance - Building,60201
http://statistics.data.gov.uk/id/local-authority/12UE,Huntingdonshire District Council,200429.00,J BREHENY CIVIL ENGINEERING LTD J BREHENY CIVIL ENGINEERING LTD,025370,26/03/2020,HMG/5106/32790,MINOR WORKS FRAMEWORK,23/04/2020,71.71,358.55,430.26,Huntingdon Bus Station,Maintenance - Building,60201
http://statistics.data.gov.uk/id/local-authority/12UE,Huntingdonshire District Council,200075.00,B S GRAVES ELECTRICAL LTD B S GRAVES ELECTRICAL LTD,023801,13/03/2020,29095,REDACTED,08/04/2020,50,250,300,Industrial Properties,Maintenance - Building,60201
http://statistics.data.gov.uk/id/local-authority/12UE,Huntingdonshire District Council,200429.00,J BREHENY CIVIL ENGINEERING LTD J BREHENY CIVIL ENGINEERING LTD,025370,26/03/2020,HMG/5106/32782,MINOR WORKS FRAMEWORK,23/04/2020,383,1915,2298,Industrial Properties,Maintenance - Building,60201
http://statistics.data.gov.uk/id/local-authority/12UE,Huntingdonshire District Council,200429.00,J BREHENY CIVIL ENGINEERING LTD J BREHENY CIVIL ENGINEERING LTD,025370,26/03/2020,HMG/5106/32781,MINOR WORKS FRAMEWORK,23/04/2020,287.52,1437.6,1725.12,Industrial Properties,Maintenance - Building,60201
http://statistics.data.gov.uk/id/local-authority/12UE,Huntingdonshire District Council,200429.00,J BREHENY CIVIL ENGINEERING LTD J BREHENY CIVIL ENGINEERING LTD,025370,26/03/2020,HMG/5106/32782,MINOR WORKS FRAMEWORK,23/04/2020,305.6,1528,1833.6,Industrial Properties,Maintenance - Building,60201
http://statistics.data.gov.uk/id/local-authority/12UE,Huntingdonshire District Council,200429.00,J BREHENY CIVIL ENGINEERING LTD J BREHENY CIVIL ENGINEERING LTD,025370,26/03/2020,HMG/5106/32781,MINOR WORKS FRAMEWORK,23/04/2020,568.8,2844,3412.8,Industrial Properties,Maintenance - Building,60201
http://statistics.data.gov.uk/id/local-authority/12UE,Huntingdonshire District Council,200429.00,J BREHENY CIVIL ENGINEERING LTD J BREHENY CIVIL ENGINEERING LTD,025370,26/03/2020,HMG/5106/32781,MINOR WORKS FRAMEWORK,23/04/2020,165.6,828,993.6,Industrial Properties,Maintenance - Building,60201
http://statistics.data.gov.uk/id/local-authority/12UE,Huntingdonshire District Council,200429.00,J BREHENY CIVIL ENGINEERING LTD J BREHENY CIVIL ENGINEERING LTD,025370,26/03/2020,HMG/5106/32781,MINOR WORKS FRAMEWORK,23/04/2020,703.2,3516,4219.2,Industrial Properties,Maintenance - Building,60201
http://statistics.data.gov.uk/id/local-authority/12UE,Huntingdonshire District Council,200429.00,J BREHENY CIVIL ENGINEERING LTD J BREHENY CIVIL ENGINEERING LTD,025370,26/03/2020,HMG/5106/32781,MINOR WORKS FRAMEWORK,23/04/2020,273.6,1368,1641.6,Industrial Properties,Maintenance - Building,60201
http://statistics.data.gov.uk/id/local-authority/12UE,Huntingdonshire District Council,200429.00,J BREHENY CIVIL ENGINEERING LTD J BREHENY CIVIL ENGINEERING LTD,025370,26/03/2020,HMG/5106/32781,MINOR WORKS FRAMEWORK,23/04/2020,61.44,307.2,368.64,Industrial Properties,Maintenance - Building,60201
http://statistics.data.gov.uk/id/local-authority/12UE,Huntingdonshire District Council,200429.00,J BREHENY CIVIL ENGINEERING LTD J BREHENY CIVIL ENGINEERING LTD,025370,26/03/2020,HMG/5106/32781,MINOR WORKS FRAMEWORK,23/04/2020,440.37,2201.85,2642.22,Industrial Properties,Maintenance - Building,60201
http://statistics.data.gov.uk/id/local-authority/12UE,Huntingdonshire District Council,200429.00,J BREHENY CIVIL ENGINEERING LTD J BREHENY CIVIL ENGINEERING LTD,025370,26/03/2020,HMG/5106/32781,MINOR WORKS FRAMEWORK,23/04/2020,252.2,1261,1513.2,Industrial Properties,Maintenance - Building,60201
http://statistics.data.gov.uk/id/local-authority/12UE,Huntingdonshire District Council,200429.00,J BREHENY CIVIL ENGINEERING LTD J BREHENY CIVIL ENGINEERING LTD,025370,26/03/2020,HMG/5106/32781,MINOR WORKS FRAMEWORK,23/04/2020,70.4,352,422.4,Industrial Properties,Maintenance - Building,60201
http://statistics.data.gov.uk/id/local-authority/12UE,Huntingdonshire District Council,200429.00,J BREHENY CIVIL ENGINEERING LTD J BREHENY CIVIL ENGINEERING LTD,025370,26/03/2020,HMG/5106/32781,MINOR WORKS FRAMEWORK,23/04/2020,191.6,958,1149.6,Industrial Properties,Maintenance - Building,60201
http://statistics.data.gov.uk/id/local-authority/12UE,Huntingdonshire District Council,200429.00,J BREHENY CIVIL ENGINEERING LTD J BREHENY CIVIL ENGINEERING LTD,025370,26/03/2020,HMG/5106/32781,MINOR WORKS FRAMEWORK,23/04/2020,588,2940,3528,Industrial Properties,Maintenance - Building,60201
http://statistics.data.gov.uk/id/local-authority/12UE,Huntingdonshire District Council,200429.00,J BREHENY CIVIL ENGINEERING LTD J BREHENY CIVIL ENGINEERING LTD,025370,26/03/2020,HMG/5106/32781,MINOR WORKS FRAMEWORK,23/04/2020,62,310,372,Industrial Properties,Maintenance - Building,60201
http://statistics.data.gov.uk/id/local-authority/12UE,Huntingdonshire District Council,200429.00,J BREHENY CIVIL ENGINEERING LTD J BREHENY CIVIL ENGINEERING LTD,025370,26/03/2020,HMG/5106/32782,MINOR WORKS FRAMEWORK,23/04/2020,337,1685,2022,Industrial Properties,Maintenance - Building,60201
http://statistics.data.gov.uk/id/local-authority/12UE,Huntingdonshire District Council,200429.00,J BREHENY CIVIL ENGINEERING LTD J BREHENY CIVIL ENGINEERING LTD,025370,26/03/2020,HMG/5106/32782,MINOR WORKS FRAMEWORK,23/04/2020,135,675,810,Industrial Properties,Maintenance - Building,60201
http://statistics.data.gov.uk/id/local-authority/12UE,Huntingdonshire District Council,200429.00,J BREHENY CIVIL ENGINEERING LTD J BREHENY CIVIL ENGINEERING LTD,025370,26/03/2020,HMG/5106/32781,MINOR WORKS FRAMEWORK,23/04/2020,482.85,2414.25,2897.1,Miscellaneous Properties,Maintenance - Building,60201
http://statistics.data.gov.uk/id/local-authority/12UE,Huntingdonshire District Council,200429.00,J BREHENY CIVIL ENGINEERING LTD J BREHENY CIVIL ENGINEERING LTD,025370,26/03/2020,HMG/5106/32782,MINOR WORKS FRAMEWORK,23/04/2020,102.76,513.8,616.56,Miscellaneous Properties,Maintenance - Building,60201
http://statistics.data.gov.uk/id/local-authority/12UE,Huntingdonshire District Council,200772.00,TEMPLE LIFTS LIMITED TEMPLE LIFTS LIMITED,027214,27/04/2020,543320,MAINTENANCE,21/05/2020,338,1690,2028,MSCP (HUN),Maintenance - Building,60201
http://statistics.data.gov.uk/id/local-authority/12UE,Huntingdonshire District Council,200999.00,"HARRISONS ELECTRICAL, MECHANICAL AND PROPERTY SERVICES",026936,21/04/2020,35283,EMERGENCY LIGHT TESTING,14/05/2020,336,1680,2016,MSCP (HUN),Maintenance - Building,60201
http://statistics.data.gov.uk/id/local-authority/12UE,Huntingdonshire District Council,200418.00,INTACEPT MANAGEMENT LIMITED INTACEPT MANAGEMENT LIMITED,027831,28/04/2020,1060116,MULTI STOREY CAR PARK,04/06/2020,706.8,3534,4240.8,MSCP (HUN),Maintenance - Building,60201
http://statistics.data.gov.uk/id/local-authority/12UE,Huntingdonshire District Council,200999.00,"HARRISONS ELECTRICAL, MECHANICAL AND PROPERTY SERVICES",026936,21/04/2020,35281,FIRE ALARM ETC SERVICING,14/05/2020,68,340,408,MSCP (HUN),Maintenance - Building,60201
http://statistics.data.gov.uk/id/local-authority/12UE,Huntingdonshire District Council,200429.00,J BREHENY CIVIL ENGINEERING LTD J BREHENY CIVIL ENGINEERING LTD,025370,26/03/2020,HMG/5106/32790,MINOR WORKS FRAMEWORK,23/04/2020,35.33,176.66,211.99,MSCP (HUN),Maintenance - Building,60201
http://statistics.data.gov.uk/id/local-authority/12UE,Huntingdonshire District Council,200772.00,TEMPLE LIFTS LIMITED TEMPLE LIFTS LIMITED,028607,28/05/2020,543869,MULTI STOREY CAR PARK,25/06/2020,318,1590,1908,MSCP (HUN),Maintenance - Building,60201
http://statistics.data.gov.uk/id/local-authority/12UE,Huntingdonshire District Council,200999.00,"HARRISONS ELECTRICAL, MECHANICAL AND PROPERTY SERVICES",026936,21/04/2020,35282,EMERGENCY LIGHT TESTING,14/05/2020,40,200,240,MSCP (HUN),Maintenance - Building,60201
http://statistics.data.gov.uk/id/local-authority/12UE,Huntingdonshire District Council,200075.00,B S GRAVES ELECTRICAL LTD B S GRAVES ELECTRICAL LTD,023371,06/03/2020,29091,facilites carpark,02/04/2020,125.52,627.58,753.1,MSCP (HUN),Maintenance - Building,60201
http://statistics.data.gov.uk/id/local-authority/12UE,Huntingdonshire District Council,200999.00,"HARRISONS ELECTRICAL, MECHANICAL AND PROPERTY SERVICES",023448,28/02/2020,35057,MULTI STOREY CAR PARK,02/04/2020,123.98,619.89,743.87,MSCP (HUN),Maintenance - Building,60201
http://statistics.data.gov.uk/id/local-authority/12UE,Huntingdonshire District Council,200832.00,WALKER FIRE UK LTD WALKER FIRE UK LTD,026933,16/04/2020,20757983,MULTI STOREY CAR PARK,14/05/2020,105.04,525.2,630.24,MSCP (HUN),Maintenance - Building,60201
http://statistics.data.gov.uk/id/local-authority/12UE,Huntingdonshire District Council,201736.00,LOCUS SERVICES LTD,025472,29/03/2020,0168,OAKTREE CENTRE,23/04/2020,150,750,900,Oak Tree Health Centre,Maintenance - Building,60201
http://statistics.data.gov.uk/id/local-authority/12UE,Huntingdonshire District Council,201825.00,EUROSAFE SOLUTIONS LTD,028651,28/05/2020,35976,OAK TREE CENTRE,25/06/2020,134,670,804,Oak Tree Health Centre,Maintenance - Building,60201
http://statistics.data.gov.uk/id/local-authority/12UE,Huntingdonshire District Council,202140.00,SHARMAN GRIMWADE LTD,026177,30/01/2020,20005,OL ST IVES,30/04/2020,93.6,468,561.6,OL St Ives Changing Rooms,Maintenance - Building,60201
http://statistics.data.gov.uk/id/local-authority/12UE,Huntingdonshire District Council,200690.00,ROBINSON LOW FRANCIS LLP ROBINSON LOW FRANCIS LLP,024335,25/03/2020,SIN057139,OL ST NEOTS,16/04/2020,344,1720,2064,OL St Neots Synthetic Pitch,Maintenance - Building,60201
http://statistics.data.gov.uk/id/local-authority/12UE,Huntingdonshire District Council,200999.00,"HARRISONS ELECTRICAL, MECHANICAL AND PROPERTY SERVICES",026936,21/04/2020,35279,FIRE AND INTRUDER MAINTENANCE,14/05/2020,162,810,972,OLH - Site & Centre Management,Maintenance - Building,60201
http://statistics.data.gov.uk/id/local-authority/12UE,Huntingdonshire District Council,201660.00,TOTAL ENVIRONMENTAL COMPLIANCE LTD,027549,30/04/2020,33011,LEGIONELLA MONITORING,28/05/2020,196.45,982.25,1178.7,OLH - Site & Centre Management,Maintenance - Building,60201
http://statistics.data.gov.uk/id/local-authority/12UE,Huntingdonshire District Council,200999.00,"HARRISONS ELECTRICAL, MECHANICAL AND PROPERTY SERVICES",023448,10/03/2020,35091,EMERGENCY LIGHT TESTING,02/04/2020,28,140,168,OLH - Site & Centre Management,Maintenance - Building,60201
http://statistics.data.gov.uk/id/local-authority/12UE,Huntingdonshire District Council,200999.00,"HARRISONS ELECTRICAL, MECHANICAL AND PROPERTY SERVICES",026936,21/04/2020,35280,EMERGENCY LIGHTING MAINTENANCE,14/05/2020,28,140,168,OLH - Site & Centre Management,Maintenance - Building,60201
http://statistics.data.gov.uk/id/local-authority/12UE,Huntingdonshire District Council,200580.00,NOVUS COMPLIANCE SERVICES LTD NOVUS COMPLIANCE SERVICES LTD,027198,28/04/2020,10943,OL HUNTINGDON,21/05/2020,74.43,372.17,446.6,OLH - Site & Centre Management,Maintenance - Building,60201
http://statistics.data.gov.uk/id/local-authority/12UE,Huntingdonshire District Council,200999.00,"HARRISONS ELECTRICAL, MECHANICAL AND PROPERTY SERVICES",026936,21/04/2020,35279,FIRE AND INTRUDER MAINTENANCE,14/05/2020,140,700,840,OLH - Swimming,Maintenance - Building,60201
http://statistics.data.gov.uk/id/local-authority/12UE,Huntingdonshire District Council,200999.00,"HARRISONS ELECTRICAL, MECHANICAL AND PROPERTY SERVICES",023448,10/03/2020,35091,EMERGENCY LIGHT TESTING,02/04/2020,30,150,180,OLH - Swimming,Maintenance - Building,60201
http://statistics.data.gov.uk/id/local-authority/12UE,Huntingdonshire District Council,200999.00,"HARRISONS ELECTRICAL, MECHANICAL AND PROPERTY SERVICES",026936,21/04/2020,35280,EMERGENCY LIGHTING MAINTENANCE,14/05/2020,30,150,180,OLH - Swimming,Maintenance - Building,60201
http://statistics.data.gov.uk/id/local-authority/12UE,Huntingdonshire District Council,200999.00,"HARRISONS ELECTRICAL, MECHANICAL AND PROPERTY SERVICES",026936,21/04/2020,35279,FIRE AND INTRUDER MAINTENANCE,14/05/2020,218,1090,1308,OLR - Site & Centre Management,Maintenance - Building,60201
http://statistics.data.gov.uk/id/local-authority/12UE,Huntingdonshire District Council,201660.00,TOTAL ENVIRONMENTAL COMPLIANCE LTD,027549,30/04/2020,33011,LEGIONELLA MONITORING,28/05/2020,165.3,826.5,991.8,OLR - Site & Centre Management,Maintenance - Building,60201
http://statistics.data.gov.uk/id/local-authority/12UE,Huntingdonshire District Council,200005.00,ABBEY COLLEGE ABBEY COLLEGE,027468,05/05/2020,0000001105,OL RAMSEY,28/05/2020,455.03,2275.14,2730.17,OLR - Site & Centre Management,Maintenance - Building,60201
http://statistics.data.gov.uk/id/local-authority/12UE,Huntingdonshire District Council,200694.00,ROGER WILSON ELECTRONICS ROGER WILSON ELECTRONICS,023425,25/03/2020,10414,OL RAMSEY,02/04/2020,320,1600,1920,OLR - Site & Centre Management,Maintenance - Building,60201
http://statistics.data.gov.uk/id/local-authority/12UE,Huntingdonshire District Council,200999.00,"HARRISONS ELECTRICAL, MECHANICAL AND PROPERTY SERVICES",023448,10/03/2020,35091,EMERGENCY LIGHT TESTING,02/04/2020,29,145,174,OLR - Site & Centre Management,Maintenance - Building,60201
http://statistics.data.gov.uk/id/local-authority/12UE,Huntingdonshire District Council,200999.00,"HARRISONS ELECTRICAL, MECHANICAL AND PROPERTY SERVICES",026936,21/04/2020,35280,EMERGENCY LIGHTING MAINTENANCE,14/05/2020,29,145,174,OLR - Site & Centre Management,Maintenance - Building,60201
http://statistics.data.gov.uk/id/local-authority/12UE,Huntingdonshire District Council,200427.00,J A K  SYSTEMS LTD J A K SYSTEMS LTD,023398,06/03/2020,12100,OLR CALLOUT CHARGE,02/04/2020,66.68,333.4,400.08,OLR - Site & Centre Management,Maintenance - Building,60201
http://statistics.data.gov.uk/id/local-authority/12UE,Huntingdonshire District Council,200999.00,"HARRISONS ELECTRICAL, MECHANICAL AND PROPERTY SERVICES",023448,10/03/2020,35091,EMERGENCY LIGHT TESTING,02/04/2020,29,145,174,OLS - Site & Centre Management,Maintenance - Building,60201
http://statistics.data.gov.uk/id/local-authority/12UE,Huntingdonshire District Council,200999.00,"HARRISONS ELECTRICAL, MECHANICAL AND PROPERTY SERVICES",026936,21/04/2020,35279,FIRE AND INTRUDER MAINTENANCE,14/05/2020,160,800,960,OLSI - Site & Centre Management,Maintenance - Building,60201
http://statistics.data.gov.uk/id/local-authority/12UE,Huntingdonshire District Council,201660.00,TOTAL ENVIRONMENTAL COMPLIANCE LTD,027549,30/04/2020,33011,LEGIONELLA MONITORING,28/05/2020,247.9,1239.5,1487.4,OLSI - Site & Centre Management,Maintenance - Building,60201
http://statistics.data.gov.uk/id/local-authority/12UE,Huntingdonshire District Council,200694.00,ROGER WILSON ELECTRONICS ROGER WILSON ELECTRONICS,027848,25/05/2020,10429,OL ST IVES,04/06/2020,593.17,2965.86,3559.03,OLSI - Site & Centre Management,Maintenance - Building,60201
http://statistics.data.gov.uk/id/local-authority/12UE,Huntingdonshire District Council,202216.00,RECOTHERM LTD,025483,12/03/2020,10712,OL ST IVES,23/04/2020,121.6,608,729.6,OLSI - Site & Centre Management,Maintenance - Building,60201
http://statistics.data.gov.uk/id/local-authority/12UE,Huntingdonshire District Council,200429.00,J BREHENY CIVIL ENGINEERING LTD J BREHENY CIVIL ENGINEERING LTD,025370,26/03/2020,HMG/5106/32788,OL ST IVES,23/04/2020,212,1060,1272,OLSI - Site & Centre Management,Maintenance - Building,60201
http://statistics.data.gov.uk/id/local-authority/12UE,Huntingdonshire District Council,200429.00,J BREHENY CIVIL ENGINEERING LTD J BREHENY CIVIL ENGINEERING LTD,025370,26/03/2020,HMG/5106/32788,OL ST IVES,23/04/2020,155,775,930,OLSI - Site & Centre Management,Maintenance - Building,60201
http://statistics.data.gov.uk/id/local-authority/12UE,Huntingdonshire District Council,200999.00,"HARRISONS ELECTRICAL, MECHANICAL AND PROPERTY SERVICES",023448,10/03/2020,35091,EMERGENCY LIGHT TESTING,02/04/2020,38,190,228,OLSI - Site & Centre Management,Maintenance - Building,60201
http://statistics.data.gov.uk/id/local-authority/12UE,Huntingdonshire District Council,200999.00,"HARRISONS ELECTRICAL, MECHANICAL AND PROPERTY SERVICES",026936,21/04/2020,35280,EMERGENCY LIGHTING MAINTENANCE,14/05/2020,38,190,228,OLSI - Site & Centre Management,Maintenance - Building,60201
http://statistics.data.gov.uk/id/local-authority/12UE,Huntingdonshire District Council,200542.00,MIRAMAR ENGINEERING LTD MIRAMAR ENGINEERING LTD,025381,31/03/2020,003940,OL TOILETS,23/04/2020,182.22,911.09,1093.31,OLSI - Site & Centre Management,Maintenance - Building,60201
http://statistics.data.gov.uk/id/local-authority/12UE,Huntingdonshire District Council,200694.00,ROGER WILSON ELECTRONICS ROGER WILSON ELECTRONICS,028365,08/06/2020,10433,OL ST IVES,18/06/2020,166.97,834.87,1001.84,OLSI - Site & Centre Management,Maintenance - Building,60201
http://statistics.data.gov.uk/id/local-authority/12UE,Huntingdonshire District Council,200679.00,RICHARD SISTROM PAINTING & DECORATING RICHARD SISTROM PAINTING & DECORATING,028102,20/05/2020,INV 084,OL ST IVES,11/06/2020,0,735,735,OLSI - Site & Centre Management,Maintenance - Building,60201
http://statistics.data.gov.uk/id/local-authority/12UE,Huntingdonshire District Council,200580.00,NOVUS COMPLIANCE SERVICES LTD NOVUS COMPLIANCE SERVICES LTD,027198,27/04/2020,10941,OL ST IVES,21/05/2020,119.41,597.06,716.47,OLSI - Site & Centre Management,Maintenance - Building,60201
http://statistics.data.gov.uk/id/local-authority/12UE,Huntingdonshire District Council,200679.00,RICHARD SISTROM PAINTING & DECORATING RICHARD SISTROM PAINTING & DECORATING,023424,06/03/2020,081,OL ST IVES,02/04/2020,0,545,545,OLSI - Site & Centre Management,Maintenance - Building,60201
http://statistics.data.gov.uk/id/local-authority/12UE,Huntingdonshire District Council,200694.00,ROGER WILSON ELECTRONICS ROGER WILSON ELECTRONICS,025403,13/04/2020,10416,OL ST IVES,23/04/2020,105.97,529.85,635.82,OLSI - Site & Centre Management,Maintenance - Building,60201
http://statistics.data.gov.uk/id/local-authority/12UE,Huntingdonshire District Council,202308.00,SITE FOCUS SURVEYS LTD,027888,19/05/2020,INV-1043,OL ST IVES,04/06/2020,95,475,570,OLSI - Site & Centre Management,Maintenance - Building,60201
http://statistics.data.gov.uk/id/local-authority/12UE,Huntingdonshire District Council,200542.00,MIRAMAR ENGINEERING LTD MIRAMAR ENGINEERING LTD,023837,12/03/2020,003875,OL ENGINEER,08/04/2020,90.08,450.39,540.47,OLSI - Site & Centre Management,Maintenance - Building,60201
http://statistics.data.gov.uk/id/local-authority/12UE,Huntingdonshire District Council,200772.00,TEMPLE LIFTS LIMITED TEMPLE LIFTS LIMITED,027214,27/04/2020,543322,OL ST IVES,21/05/2020,75,375,450,OLSI - Site & Centre Management,Maintenance - Building,60201
http://statistics.data.gov.uk/id/local-authority/12UE,Huntingdonshire District Council,202250.00,AMITI LTD,024459,06/03/2020,3013,OL ST IVES,16/04/2020,58.2,291,349.2,OLSI - Site & Centre Management,Maintenance - Building,60201
http://statistics.data.gov.uk/id/local-authority/12UE,Huntingdonshire District Council,200694.00,ROGER WILSON ELECTRONICS ROGER WILSON ELECTRONICS,027848,24/05/2020,10428,BURGESS HALL,04/06/2020,58,290,348,OLSI - Site & Centre Management,Maintenance - Building,60201
http://statistics.data.gov.uk/id/local-authority/12UE,Huntingdonshire District Council,200580.00,NOVUS COMPLIANCE SERVICES LTD NOVUS COMPLIANCE SERVICES LTD,023840,12/03/2020,INV-10430,olsi circuits tested,08/04/2020,79.3,396.5,475.8,OLSI - Swimming,Maintenance - Building,60201
http://statistics.data.gov.uk/id/local-authority/12UE,Huntingdonshire District Council,200999.00,"HARRISONS ELECTRICAL, MECHANICAL AND PROPERTY SERVICES",026936,21/04/2020,35279,FIRE AND INTRUDER MAINTENANCE,14/05/2020,160,800,960,OLSIO - Site & Centre Management,Maintenance - Building,60201
http://statistics.data.gov.uk/id/local-authority/12UE,Huntingdonshire District Council,201660.00,TOTAL ENVIRONMENTAL COMPLIANCE LTD,027549,30/04/2020,33011,LEGIONELLA MONITORING,28/05/2020,186.1,930.5,1116.6,OLSIO - Site & Centre Management,Maintenance - Building,60201
http://statistics.data.gov.uk/id/local-authority/12UE,Huntingdonshire District Council,200999.00,"HARRISONS ELECTRICAL, MECHANICAL AND PROPERTY SERVICES",023448,10/03/2020,35091,EMERGENCY LIGHT TESTING,02/04/2020,35,175,210,OLSIO - Site & Centre Management,Maintenance - Building,60201
http://statistics.data.gov.uk/id/local-authority/12UE,Huntingdonshire District Council,200999.00,"HARRISONS ELECTRICAL, MECHANICAL AND PROPERTY SERVICES",026936,21/04/2020,35280,EMERGENCY LIGHTING MAINTENANCE,14/05/2020,35,175,210,OLSIO - Site & Centre Management,Maintenance - Building,60201
http://statistics.data.gov.uk/id/local-authority/12UE,Huntingdonshire District Council,200694.00,ROGER WILSON ELECTRONICS ROGER WILSON ELECTRONICS,025403,13/04/2020,10415,OL ST IVES,23/04/2020,117.6,588,705.6,OLSIO - Site & Centre Management,Maintenance - Building,60201
http://statistics.data.gov.uk/id/local-authority/12UE,Huntingdonshire District Council,202164.00,LABOSPORT LTD,025480,21/02/2020,LSUK.20-0090,OL ST IVES,23/04/2020,100,500,600,OLSIO - Site & Centre Management,Maintenance - Building,60201
http://statistics.data.gov.uk/id/local-authority/12UE,Huntingdonshire District Council,200694.00,ROGER WILSON ELECTRONICS ROGER WILSON ELECTRONICS,023425,15/03/2020,10397,OL ST IVES,02/04/2020,58.3,291.51,349.81,OLSIO - Site & Centre Management,Maintenance - Building,60201
http://statistics.data.gov.uk/id/local-authority/12UE,Huntingdonshire District Council,200999.00,"HARRISONS ELECTRICAL, MECHANICAL AND PROPERTY SERVICES",026936,21/04/2020,35279,FIRE AND INTRUDER MAINTENANCE,14/05/2020,320,1600,1920,OLSN - Site & Centre Management,Maintenance - Building,60201
http://statistics.data.gov.uk/id/local-authority/12UE,Huntingdonshire District Council,201660.00,TOTAL ENVIRONMENTAL COMPLIANCE LTD,027549,30/04/2020,33011,LEGIONELLA MONITORING,28/05/2020,210.1,1050.5,1260.6,OLSN - Site & Centre Management,Maintenance - Building,60201
http://statistics.data.gov.uk/id/local-authority/12UE,Huntingdonshire District Council,200999.00,"HARRISONS ELECTRICAL, MECHANICAL AND PROPERTY SERVICES",023448,10/03/2020,35091,EMERGENCY LIGHT TESTING,02/04/2020,42,210,252,OLSN - Site & Centre Management,Maintenance - Building,60201
http://statistics.data.gov.uk/id/local-authority/12UE,Huntingdonshire District Council,200999.00,"HARRISONS ELECTRICAL, MECHANICAL AND PROPERTY SERVICES",026936,21/04/2020,35280,EMERGENCY LIGHTING MAINTENANCE,14/05/2020,42,210,252,OLSN - Site & Centre Management,Maintenance - Building,60201
http://statistics.data.gov.uk/id/local-authority/12UE,Huntingdonshire District Council,200832.00,WALKER FIRE UK LTD WALKER FIRE UK LTD,028376,21/05/2020,20758981,OL ST NEOTS,18/06/2020,157.19,785.95,943.14,OLSN - Site & Centre Management,Maintenance - Building,60201
http://statistics.data.gov.uk/id/local-authority/12UE,Huntingdonshire District Council,200580.00,NOVUS COMPLIANCE SERVICES LTD NOVUS COMPLIANCE SERVICES LTD,023840,12/03/2020,INV-10431,FIXED WIRE TESTING,08/04/2020,80.6,403,483.6,OLSN - Site & Centre Management,Maintenance - Building,60201
http://statistics.data.gov.uk/id/local-authority/12UE,Huntingdonshire District Council,200694.00,ROGER WILSON ELECTRONICS ROGER WILSON ELECTRONICS,024336,15/02/2020,10378,OL ST NEOTS,16/04/2020,69.8,349,418.8,OLSN - Site & Centre Management,Maintenance - Building,60201
http://statistics.data.gov.uk/id/local-authority/12UE,Huntingdonshire District Council,200580.00,NOVUS COMPLIANCE SERVICES LTD NOVUS COMPLIANCE SERVICES LTD,027841,11/05/2020,11014,OL ST NEOTS,04/06/2020,62.26,311.3,373.56,OLSN - Site & Centre Management,Maintenance - Building,60201
http://statistics.data.gov.uk/id/local-authority/12UE,Huntingdonshire District Council,201970.00,PHOENIX PROPERTY SOLUTIONS LTD,028132,02/06/2020,4359,OL ST IVES,11/06/2020,3252.1,16260.5,19512.6,One Leisure St Ives New Fitness Offering,Maintenance - Building,60201
http://statistics.data.gov.uk/id/local-authority/12UE,Huntingdonshire District Council,202004.00,BLOOM PROCUREMENT SERVICES LTD,027241,13/05/2020,SIN015199,ARCHITECT FEES,21/05/2020,2800,14000,16800,One Leisure St Ives New Fitness Offering,Maintenance - Building,60201
http://statistics.data.gov.uk/id/local-authority/12UE,Huntingdonshire District Council,202140.00,SHARMAN GRIMWADE LTD,025479,23/12/2019,18302,OL ST IVES,23/04/2020,300,1500,1800,One Leisure St Ives New Fitness Offering,Maintenance - Building,60201
http://statistics.data.gov.uk/id/local-authority/12UE,Huntingdonshire District Council,202140.00,SHARMAN GRIMWADE LTD,025479,31/01/2020,20004,OL ST IVES,23/04/2020,99,495,594,One Leisure St Ives New Fitness Offering,Maintenance - Building,60201
http://statistics.data.gov.uk/id/local-authority/12UE,Huntingdonshire District Council,200832.00,WALKER FIRE UK LTD WALKER FIRE UK LTD,025417,03/02/2020,20753019,OL ST IVES,23/04/2020,52.2,261.02,313.22,One Leisure St Ives New Fitness Offering,Maintenance - Building,60201
http://statistics.data.gov.uk/id/local-authority/12UE,Huntingdonshire District Council,201660.00,TOTAL ENVIRONMENTAL COMPLIANCE LTD,027549,30/04/2020,33010,LEGIONELLA MONITORING,28/05/2020,88.8,444,532.8,Parks & Open Spaces,Maintenance - Building,60201
http://statistics.data.gov.uk/id/local-authority/12UE,Huntingdonshire District Council,201660.00,TOTAL ENVIRONMENTAL COMPLIANCE LTD,027549,30/04/2020,33010,LEGIONELLA MONITORING,28/05/2020,102.8,514,616.8,Parks & Open Spaces,Maintenance - Building,60201
http://statistics.data.gov.uk/id/local-authority/12UE,Huntingdonshire District Council,200075.00,B S GRAVES ELECTRICAL LTD B S GRAVES ELECTRICAL LTD,027808,12/05/2020,29120,EMERGENCY LIGHTING MAINTENANCE,04/06/2020,140,700,840,Parks & Open Spaces,Maintenance - Building,60201
http://statistics.data.gov.uk/id/local-authority/12UE,Huntingdonshire District Council,201660.00,TOTAL ENVIRONMENTAL COMPLIANCE LTD,027549,30/04/2020,33010,LEGIONELLA MONITORING,28/05/2020,88.8,444,532.8,Parks & Open Spaces,Maintenance - Building,60201
http://statistics.data.gov.uk/id/local-authority/12UE,Huntingdonshire District Council,200075.00,B S GRAVES ELECTRICAL LTD B S GRAVES ELECTRICAL LTD,027808,12/05/2020,29120,EMERGENCY LIGHTING MAINTENANCE,04/06/2020,70,350,420,Parks & Open Spaces,Maintenance - Building,60201
http://statistics.data.gov.uk/id/local-authority/12UE,Huntingdonshire District Council,201660.00,TOTAL ENVIRONMENTAL COMPLIANCE LTD,027549,30/04/2020,33010,LEGIONELLA MONITORING,28/05/2020,63.7,318.5,382.2,Parks & Open Spaces,Maintenance - Building,60201
http://statistics.data.gov.uk/id/local-authority/12UE,Huntingdonshire District Council,200075.00,B S GRAVES ELECTRICAL LTD B S GRAVES ELECTRICAL LTD,027808,12/05/2020,29120,EMERGENCY LIGHTING MAINTENANCE,04/06/2020,70,350,420,Parks & Open Spaces,Maintenance - Building,60201
http://statistics.data.gov.uk/id/local-authority/12UE,Huntingdonshire District Council,201660.00,TOTAL ENVIRONMENTAL COMPLIANCE LTD,027549,30/04/2020,33010,LEGIONELLA MONITORING,28/05/2020,150.05,750.25,900.3,Pathfinder House,Maintenance - Building,60201
http://statistics.data.gov.uk/id/local-authority/12UE,Huntingdonshire District Council,200772.00,TEMPLE LIFTS LIMITED TEMPLE LIFTS LIMITED,027214,27/04/2020,543320,MAINTENANCE,21/05/2020,417,2085,2502,Pathfinder House,Maintenance - Building,60201
http://statistics.data.gov.uk/id/local-authority/12UE,Huntingdonshire District Council,200999.00,"HARRISONS ELECTRICAL, MECHANICAL AND PROPERTY SERVICES",026936,21/04/2020,35281,FIRE ALARM ETC SERVICING,14/05/2020,380,1900,2280,Pathfinder House,Maintenance - Building,60201
http://statistics.data.gov.uk/id/local-authority/12UE,Huntingdonshire District Council,202293.00,IKO PLC,026965,21/04/2020,2001000025CI01,PFH RECHARGE COSTS,14/05/2020,300,1500,1800,Pathfinder House,Maintenance - Building,60201
http://statistics.data.gov.uk/id/local-authority/12UE,Huntingdonshire District Council,200542.00,MIRAMAR ENGINEERING LTD MIRAMAR ENGINEERING LTD,023837,12/03/2020,003865,PFH,08/04/2020,243.36,1216.8,1460.16,Pathfinder House,Maintenance - Building,60201
http://statistics.data.gov.uk/id/local-authority/12UE,Huntingdonshire District Council,200395.00,HYGIENE SOLUTIONS & SYSTEMS LTD HYGIENE SOLUTIONS,025364,01/04/2020,040538,PFH,23/04/2020,204.32,1021.6,1225.92,Pathfinder House,Maintenance - Building,60201
http://statistics.data.gov.uk/id/local-authority/12UE,Huntingdonshire District Council,200999.00,"HARRISONS ELECTRICAL, MECHANICAL AND PROPERTY SERVICES",026936,21/04/2020,35282,EMERGENCY LIGHT TESTING,14/05/2020,43,215,258,Pathfinder House,Maintenance - Building,60201
http://statistics.data.gov.uk/id/local-authority/12UE,Huntingdonshire District Council,200832.00,WALKER FIRE UK LTD WALKER FIRE UK LTD,028113,18/05/2020,20758612,PFH,11/06/2020,118.53,592.65,711.18,Pathfinder House,Maintenance - Building,60201
http://statistics.data.gov.uk/id/local-authority/12UE,Huntingdonshire District Council,200542.00,MIRAMAR ENGINEERING LTD MIRAMAR ENGINEERING LTD,027193,21/04/2020,003995,DECOMMISSIONING OF HOT WATER BOILERS,21/05/2020,84,420,504,Pathfinder House,Maintenance - Building,60201
http://statistics.data.gov.uk/id/local-authority/12UE,Huntingdonshire District Council,200568.00,NEWGATE (NEWARK) LIMITED NEWGATE (NEWARK) LIMITED,026134,07/04/2020,161614,MAINTENANCE CONTRACT FEE,30/04/2020,71.33,356.66,427.99,Pathfinder House,Maintenance - Building,60201
http://statistics.data.gov.uk/id/local-authority/12UE,Huntingdonshire District Council,200226.00,DAL-ROD (CAMRIDGESHIRE) DAL-ROD (CAMRIDGESHIRE),023382,11/03/2020,53052,URINALS SERVICE,02/04/2020,81.6,408,489.6,Pathfinder House,Maintenance - Building,60201
http://statistics.data.gov.uk/id/local-authority/12UE,Huntingdonshire District Council,201825.00,EUROSAFE SOLUTIONS LTD,028651,28/05/2020,35977,PFH,25/06/2020,70,350,420,Pathfinder House,Maintenance - Building,60201
http://statistics.data.gov.uk/id/local-authority/12UE,Huntingdonshire District Council,201660.00,TOTAL ENVIRONMENTAL COMPLIANCE LTD,027549,30/04/2020,33010,LEGIONELLA MONITORING,28/05/2020,73,365,438,Paxton Pits,Maintenance - Building,60201
http://statistics.data.gov.uk/id/local-authority/12UE,Huntingdonshire District Council,201660.00,TOTAL ENVIRONMENTAL COMPLIANCE LTD,027549,30/04/2020,33010,LEGIONELLA MONITORING,28/05/2020,76.5,382.5,459,Paxton Pits,Maintenance - Building,60201
http://statistics.data.gov.uk/id/local-authority/12UE,Huntingdonshire District Council,200418.00,INTACEPT MANAGEMENT LIMITED INTACEPT MANAGEMENT LIMITED,027186,31/12/2019,1020218,RIVERSIDE CAR PARK ST NEOTS,21/05/2020,633.53,3167.66,3801.19,Riverside (STN),Maintenance - Building,60201
http://statistics.data.gov.uk/id/local-authority/12UE,Huntingdonshire District Council,200369.00,HEASELL ELECTROMECHANICAL SERVICES LTD HEASELL ELECTROMECHANICAL SERVICES LTD,028082,19/05/2020,434819,OL ST NEOTS,11/06/2020,37.5,187.5,225,Sn Leis C - Gen Improve (Cs),Maintenance - Building,60201
http://statistics.data.gov.uk/id/local-authority/12UE,Huntingdonshire District Council,200369.00,HEASELL ELECTROMECHANICAL SERVICES LTD HEASELL ELECTROMECHANICAL SERVICES LTD,028082,19/05/2020,434819,OL ST NEOTS,11/06/2020,269.2,1346,1615.2,Sn Leis C - Gen Improve (Cs),Maintenance - Building,60201
http://statistics.data.gov.uk/id/local-authority/12UE,Huntingdonshire District Council,200369.00,HEASELL ELECTROMECHANICAL SERVICES LTD HEASELL ELECTROMECHANICAL SERVICES LTD,028082,19/05/2020,434819,OL ST NEOTS,11/06/2020,1107.32,5536.6,6643.92,Sn Leis C - Gen Improve (Cs),Maintenance - Building,60201
http://statistics.data.gov.uk/id/local-authority/12UE,Huntingdonshire District Council,200429.00,J BREHENY CIVIL ENGINEERING LTD J BREHENY CIVIL ENGINEERING LTD,025370,26/03/2020,HMG/5106/32790,MINOR WORKS FRAMEWORK,23/04/2020,146.99,734.95,881.94,St Ives Bus Station,Maintenance - Building,60201
http://statistics.data.gov.uk/id/local-authority/12UE,Huntingdonshire District Council,200999.00,"HARRISONS ELECTRICAL, MECHANICAL AND PROPERTY SERVICES",026936,21/04/2020,35283,EMERGENCY LIGHT TESTING,14/05/2020,372,1860,2232,St Ives Enterprise Centre,Maintenance - Building,60201
http://statistics.data.gov.uk/id/local-authority/12UE,Huntingdonshire District Council,201660.00,TOTAL ENVIRONMENTAL COMPLIANCE LTD,027549,30/04/2020,33010,LEGIONELLA MONITORING,28/05/2020,71.25,356.25,427.5,St Ives Enterprise Centre,Maintenance - Building,60201
http://statistics.data.gov.uk/id/local-authority/12UE,Huntingdonshire District Council,201825.00,EUROSAFE SOLUTIONS LTD,028651,28/05/2020,35975,ST IVES ENTERPRISE CENTRE,25/06/2020,72,360,432,St Ives Enterprise Centre,Maintenance - Building,60201
http://statistics.data.gov.uk/id/local-authority/12UE,Huntingdonshire District Council,200075.00,B S GRAVES ELECTRICAL LTD B S GRAVES ELECTRICAL LTD,023801,16/03/2020,29098,ST IVES ENTERPRISE CENTRE,08/04/2020,57.12,285.6,342.72,St Ives Enterprise Centre,Maintenance - Building,60201
http://statistics.data.gov.uk/id/local-authority/12UE,Huntingdonshire District Council,200542.00,MIRAMAR ENGINEERING LTD MIRAMAR ENGINEERING LTD,023837,12/03/2020,003874,OL ENGINEER,08/04/2020,287,1435,1722,St Ivo - General Improve (Cs),Maintenance - Building,60201
http://statistics.data.gov.uk/id/local-authority/12UE,Huntingdonshire District Council,200679.00,RICHARD SISTROM PAINTING & DECORATING RICHARD SISTROM PAINTING & DECORATING,023424,06/03/2020,082,OL ST IVES,02/04/2020,0,660,660,St Ivo - General Improve (Cs),Maintenance - Building,60201
http://statistics.data.gov.uk/id/local-authority/12UE,Huntingdonshire District Council,202216.00,RECOTHERM LTD,023483,24/02/2020,10674,OLSI POOL,02/04/2020,121.6,608,729.6,St Ivo - General Improve (Cs),Maintenance - Building,60201
http://statistics.data.gov.uk/id/local-authority/12UE,Huntingdonshire District Council,200679.00,RICHARD SISTROM PAINTING & DECORATING RICHARD SISTROM PAINTING & DECORATING,028102,20/05/2020,INV 083,OL ST IVES,11/06/2020,0,570,570,St Ivo - General Improve (Cs),Maintenance - Building,60201
http://statistics.data.gov.uk/id/local-authority/12UE,Huntingdonshire District Council,202216.00,RECOTHERM LTD,025483,12/03/2020,10712,OL ST IVES,23/04/2020,275.7,1378.5,1654.2,St Ivo - General Improve (Cs),Maintenance - Building,60201
http://statistics.data.gov.uk/id/local-authority/12UE,Huntingdonshire District Council,201920.00,ALFRED BAGNALL & SONS (EAST MIDLANDS) LTD,024443,23/01/2020,KLI-100648,DECORATION - CCTV ROOM,16/04/2020,354.2,1771,2125.2,Cctv Huntingdonshire,Decoration,60204
http://statistics.data.gov.uk/id/local-authority/12UE,Huntingdonshire District Council,200418.00,INTACEPT MANAGEMENT LIMITED INTACEPT MANAGEMENT LIMITED,027831,01/04/2020,1060020,COUNTRY PARK,04/06/2020,73,365,438,Hinchingbrooke Park Management,Fire Assessment And Safety,60205
http://statistics.data.gov.uk/id/local-authority/12UE,Huntingdonshire District Council,200324.00,G4S SECURE SOLUTIONS (UK) LTD G4S SECURE SOLUTIONS (UK) LTD,026892,05/05/2020,90389927,OL RAMSEY,14/05/2020,130.28,651.41,781.69,OLR - Site & Centre Management,Fire Assessment And Safety,60205
http://statistics.data.gov.uk/id/local-authority/12UE,Huntingdonshire District Council,200999.00,"HARRISONS ELECTRICAL, MECHANICAL AND PROPERTY SERVICES",028621,28/05/2020,35420,OL ST IVES,25/06/2020,66.48,332.41,398.89,OLSI - Site & Centre Management,Fire Assessment And Safety,60205
http://statistics.data.gov.uk/id/local-authority/12UE,Huntingdonshire District Council,200999.00,"HARRISONS ELECTRICAL, MECHANICAL AND PROPERTY SERVICES",028621,29/05/2020,35439,OL ST IVES,25/06/2020,56.76,283.81,340.57,OLSIO - Site & Centre Management,Fire Assessment And Safety,60205
http://statistics.data.gov.uk/id/local-authority/12UE,Huntingdonshire District Council,200324.00,G4S SECURE SOLUTIONS (UK) LTD G4S SECURE SOLUTIONS (UK) LTD,028344,08/06/2020,90393050,OL ST NEOTS,18/06/2020,144.2,721.01,865.21,OLSN - Site & Centre Management,Fire Assessment And Safety,60205
http://statistics.data.gov.uk/id/local-authority/12UE,Huntingdonshire District Council,200324.00,G4S SECURE SOLUTIONS (UK) LTD G4S SECURE SOLUTIONS (UK) LTD,028344,08/06/2020,90393051,KEYHOLDING SERVICES,18/06/2020,144.2,721.01,865.21,OLSN - Site & Centre Management,Fire Assessment And Safety,60205
http://statistics.data.gov.uk/id/local-authority/12UE,Huntingdonshire District Council,202297.00,SAFETY SIGNS AND NOTICES,028143,20/05/2020,45297,COUNTRY PARK,11/06/2020,362.8,1814,2176.8,Covid-19,Health And Safety Supplies And Services,60207
http://statistics.data.gov.uk/id/local-authority/12UE,Huntingdonshire District Council,200324.00,G4S SECURE SOLUTIONS (UK) LTD G4S SECURE SOLUTIONS (UK) LTD,024310,28/03/2020,90385528,OL HUNTINGDON,16/04/2020,144.2,721.01,865.21,OLH - Site & Centre Management,Security Of Premises,60248
http://statistics.data.gov.uk/id/local-authority/12UE,Huntingdonshire District Council,200324.00,G4S SECURE SOLUTIONS (UK) LTD G4S SECURE SOLUTIONS (UK) LTD,024310,28/03/2020,90385529,OL HUNTINGDON,16/04/2020,144.2,721.01,865.21,OLH - Site & Centre Management,Security Of Premises,60248
http://statistics.data.gov.uk/id/local-authority/12UE,Huntingdonshire District Council,200682.00,RIDGE AND PARTNERS LLP RIDGE AND PARTNERS LLP,028599,28/05/2020,176375,ST IVES BUS STATION,25/06/2020,249.49,1247.43,1496.92,St Ives Bus Station,Responsive Repairs - Building,60267
http://statistics.data.gov.uk/id/local-authority/12UE,Huntingdonshire District Council,200429.00,J BREHENY CIVIL ENGINEERING LTD J BREHENY CIVIL ENGINEERING LTD,025370,26/03/2020,HMG/5106/32782,MINOR WORKS FRAMEWORK,23/04/2020,205.84,1029.2,1235.04,Bus Shelters,Site Alterations And Materials,60273
http://statistics.data.gov.uk/id/local-authority/12UE,Huntingdonshire District Council,200429.00,J BREHENY CIVIL ENGINEERING LTD J BREHENY CIVIL ENGINEERING LTD,025370,26/03/2020,HMG/5106/32782,MINOR WORKS FRAMEWORK,23/04/2020,30.55,152.73,183.28,Bus Shelters,Site Alterations And Materials,60273
http://statistics.data.gov.uk/id/local-authority/12UE,Huntingdonshire District Council,200429.00,J BREHENY CIVIL ENGINEERING LTD J BREHENY CIVIL ENGINEERING LTD,025370,26/03/2020,HMG/5106/32782,MINOR WORKS FRAMEWORK,23/04/2020,30.55,152.73,183.28,Bus Shelters,Site Alterations And Materials,60273
http://statistics.data.gov.uk/id/local-authority/12UE,Huntingdonshire District Council,200429.00,J BREHENY CIVIL ENGINEERING LTD J BREHENY CIVIL ENGINEERING LTD,025370,26/03/2020,HMG/5106/32782,MINOR WORKS FRAMEWORK,23/04/2020,61.09,305.46,366.55,Bus Shelters,Site Alterations And Materials,60273
http://statistics.data.gov.uk/id/local-authority/12UE,Huntingdonshire District Council,200429.00,J BREHENY CIVIL ENGINEERING LTD J BREHENY CIVIL ENGINEERING LTD,025370,26/03/2020,HMG/5106/32786,PLAYGROUND EQUIPMENT,23/04/2020,808.76,4043.79,4852.55,Parks & Open Spaces,Site Alterations And Materials,60273
http://statistics.data.gov.uk/id/local-authority/12UE,Huntingdonshire District Council,200075.00,B S GRAVES ELECTRICAL LTD B S GRAVES ELECTRICAL LTD,023371,11/03/2020,29085,PAXTON PITS LIGHTS,02/04/2020,96.6,483,579.6,Paxton Pits,Site Alterations And Materials,60273
http://statistics.data.gov.uk/id/local-authority/12UE,Huntingdonshire District Council,200429.00,J BREHENY CIVIL ENGINEERING LTD J BREHENY CIVIL ENGINEERING LTD,025370,26/03/2020,HMG/5106/32785,OPS WORKS DONE,23/04/2020,1136,5680,6816,Sewer Ditches/Village Drains,Site Alterations And Materials,60273
http://statistics.data.gov.uk/id/local-authority/12UE,Huntingdonshire District Council,200429.00,J BREHENY CIVIL ENGINEERING LTD J BREHENY CIVIL ENGINEERING LTD,025370,26/03/2020,HMG/5106/32791,MINOR WORKS FRAMEWORK,23/04/2020,2280.4,11402,13682.4,Traveller Security Improvements,Site Alterations And Materials,60273
http://statistics.data.gov.uk/id/local-authority/12UE,Huntingdonshire District Council,200429.00,J BREHENY CIVIL ENGINEERING LTD J BREHENY CIVIL ENGINEERING LTD,025370,26/03/2020,HMG/5106/32791,MINOR WORKS FRAMEWORK,23/04/2020,2750.2,13751,16501.2,Traveller Security Improvements,Site Alterations And Materials,60273
http://statistics.data.gov.uk/id/local-authority/12UE,Huntingdonshire District Council,200429.00,J BREHENY CIVIL ENGINEERING LTD J BREHENY CIVIL ENGINEERING LTD,025370,26/03/2020,HMG/5106/32791,MINOR WORKS FRAMEWORK,23/04/2020,277.57,1387.85,1665.42,Watercourses,Site Alterations And Materials,60273
http://statistics.data.gov.uk/id/local-authority/12UE,Huntingdonshire District Council,200429.00,J BREHENY CIVIL ENGINEERING LTD J BREHENY CIVIL ENGINEERING LTD,025370,26/03/2020,HMG/5106/32791,MINOR WORKS FRAMEWORK,23/04/2020,892.69,4463.43,5356.12,Watercourses,Site Alterations And Materials,60273
http://statistics.data.gov.uk/id/local-authority/12UE,Huntingdonshire District Council,200429.00,J BREHENY CIVIL ENGINEERING LTD J BREHENY CIVIL ENGINEERING LTD,025370,26/03/2020,HMG/5106/32791,MINOR WORKS FRAMEWORK,23/04/2020,55.43,277.15,332.58,Watercourses,Site Alterations And Materials,60273
http://statistics.data.gov.uk/id/local-authority/12UE,Huntingdonshire District Council,200429.00,J BREHENY CIVIL ENGINEERING LTD J BREHENY CIVIL ENGINEERING LTD,024318,25/03/2020,HMG/5106/32796,OPEN SPACE WORKS,16/04/2020,136.5,682.5,819,Watercourses,Site Alterations And Materials,60273
http://statistics.data.gov.uk/id/local-authority/12UE,Huntingdonshire District Council,202059.00,AQUASERVE MANAGEMENT LTD,023473,05/03/2020,AQMAN20003,WATERCOURSE INSPECTION,02/04/2020,99.95,499.75,599.7,Watercourses,Site Alterations And Materials,60273
http://statistics.data.gov.uk/id/local-authority/12UE,Huntingdonshire District Council,202201.00,NORMANTON SCREENPRINT,024454,16/03/2020,11782,CCTV SIGNS,16/04/2020,13,65,78,Cctv Huntingdonshire,Signs,60299
http://statistics.data.gov.uk/id/local-authority/12UE,Huntingdonshire District Council,201138.00,BORNEY UK LTD,028123,20/05/2020,51295,SIGNS,11/06/2020,59.92,299.6,359.52,Covid-19,Signs,60299
http://statistics.data.gov.uk/id/local-authority/12UE,Huntingdonshire District Council,201138.00,BORNEY UK LTD,023873,13/03/2020,51122,WAITROSE ST NEOTS,08/04/2020,595,2975,3570,Parking Strategy,Signs,60299
http://statistics.data.gov.uk/id/local-authority/12UE,Huntingdonshire District Council,201138.00,BORNEY UK LTD,024366,19/03/2020,51166,ops installation,16/04/2020,488,2440,2928,Parking Strategy,Signs,60299
http://statistics.data.gov.uk/id/local-authority/12UE,Huntingdonshire District Council,201138.00,BORNEY UK LTD,027229,06/03/2020,51038,SIGNS,21/05/2020,304,1520,1824,Parking Strategy,Signs,60299
http://statistics.data.gov.uk/id/local-authority/12UE,Huntingdonshire District Council,201138.00,BORNEY UK LTD,023873,13/03/2020,51121,CATTLE MARKET CAR PARK,08/04/2020,275,1375,1650,Parking Strategy,Signs,60299
http://statistics.data.gov.uk/id/local-authority/12UE,Huntingdonshire District Council,201138.00,BORNEY UK LTD,024366,20/03/2020,51178,BANNERS,16/04/2020,152.4,762,914.4,Waste Minimisation,Signs,60299
http://statistics.data.gov.uk/id/local-authority/12UE,Huntingdonshire District Council,200429.00,J BREHENY CIVIL ENGINEERING LTD J BREHENY CIVIL ENGINEERING LTD,025370,30/03/2020,HMG/5106/32811,MINOR WORKS FRAMEWORK,23/04/2020,38.85,194.24,233.09,HDC Business Case ,Signs Erecting & Removal,60300
http://statistics.data.gov.uk/id/local-authority/12UE,Huntingdonshire District Council,200429.00,J BREHENY CIVIL ENGINEERING LTD J BREHENY CIVIL ENGINEERING LTD,025370,30/03/2020,HMG/5106/32811,MINOR WORKS FRAMEWORK,23/04/2020,64.42,322.08,386.5,HDC Business Case ,Signs Erecting & Removal,60300
http://statistics.data.gov.uk/id/local-authority/12UE,Huntingdonshire District Council,200429.00,J BREHENY CIVIL ENGINEERING LTD J BREHENY CIVIL ENGINEERING LTD,025370,30/03/2020,HMG/5106/32811,MINOR WORKS FRAMEWORK,23/04/2020,38.85,194.24,233.09,HDC Business Case ,Signs Erecting & Removal,60300
http://statistics.data.gov.uk/id/local-authority/12UE,Huntingdonshire District Council,200429.00,J BREHENY CIVIL ENGINEERING LTD J BREHENY CIVIL ENGINEERING LTD,025370,30/03/2020,HMG/5106/32811,MINOR WORKS FRAMEWORK,23/04/2020,427.33,2136.64,2563.97,IMD Shared Service,Signs Erecting & Removal,60300
http://statistics.data.gov.uk/id/local-authority/12UE,Huntingdonshire District Council,200429.00,J BREHENY CIVIL ENGINEERING LTD J BREHENY CIVIL ENGINEERING LTD,025370,30/03/2020,HMG/5106/32811,MINOR WORKS FRAMEWORK,23/04/2020,21.47,107.36,128.83,IMD Shared Service,Signs Erecting & Removal,60300
http://statistics.data.gov.uk/id/local-authority/12UE,Huntingdonshire District Council,200429.00,J BREHENY CIVIL ENGINEERING LTD J BREHENY CIVIL ENGINEERING LTD,025370,30/03/2020,HMG/5106/32811,MINOR WORKS FRAMEWORK,23/04/2020,271.94,1359.68,1631.62,IMD Shared Service,Signs Erecting & Removal,60300
http://statistics.data.gov.uk/id/local-authority/12UE,Huntingdonshire District Council,200429.00,J BREHENY CIVIL ENGINEERING LTD J BREHENY CIVIL ENGINEERING LTD,025370,30/03/2020,HMG/5106/32811,MINOR WORKS FRAMEWORK,23/04/2020,21.47,107.36,128.83,IMD Shared Service,Signs Erecting & Removal,60300
http://statistics.data.gov.uk/id/local-authority/12UE,Huntingdonshire District Council,200429.00,J BREHENY CIVIL ENGINEERING LTD J BREHENY CIVIL ENGINEERING LTD,025370,30/03/2020,HMG/5106/32811,MINOR WORKS FRAMEWORK,23/04/2020,427.33,2136.64,2563.97,IMD Shared Service,Signs Erecting & Removal,60300
http://statistics.data.gov.uk/id/local-authority/12UE,Huntingdonshire District Council,200429.00,J BREHENY CIVIL ENGINEERING LTD J BREHENY CIVIL ENGINEERING LTD,025370,30/03/2020,HMG/5106/32811,MINOR WORKS FRAMEWORK,23/04/2020,42.94,214.72,257.66,IMD Shared Service,Signs Erecting & Removal,60300
http://statistics.data.gov.uk/id/local-authority/12UE,Huntingdonshire District Council,200913.00,WAVE  ANGLIAN WATER BUSINESS,024352,05/04/2020,7046796,EASTFIELD HOUSE,16/04/2020,0,1129.96,1129.96,Eastfield House,Water And Sewerage,60302
http://statistics.data.gov.uk/id/local-authority/12UE,Huntingdonshire District Council,200913.00,WAVE  ANGLIAN WATER BUSINESS,023866,30/03/2020,7008032,OL HUNTINGDON,08/04/2020,0,3849.07,3849.07,OLH - Site & Centre Management,Water And Sewerage,60302
http://statistics.data.gov.uk/id/local-authority/12UE,Huntingdonshire District Council,200913.00,WAVE  ANGLIAN WATER BUSINESS,024352,03/04/2020,7038577,OL HUNTINGDON,16/04/2020,0,261.5,261.5,OLH - Site & Centre Management,Water And Sewerage,60302
http://statistics.data.gov.uk/id/local-authority/12UE,Huntingdonshire District Council,200913.00,WAVE  ANGLIAN WATER BUSINESS,023446,30/03/2020,7008025,OL HUNTINGDON,02/04/2020,0,-261.75,-261.75,OLH - Site & Centre Management,Water And Sewerage,60302
http://statistics.data.gov.uk/id/local-authority/12UE,Huntingdonshire District Council,200913.00,WAVE  ANGLIAN WATER BUSINESS,023446,30/03/2020,7008027,OL HUNTINGDON,02/04/2020,0,-645.32,-645.32,OLH - Site & Centre Management,Water And Sewerage,60302
http://statistics.data.gov.uk/id/local-authority/12UE,Huntingdonshire District Council,200913.00,WAVE  ANGLIAN WATER BUSINESS,023446,30/03/2020,7008026,OL HUNTINGDON,02/04/2020,0,-2153.85,-2153.85,OLH - Site & Centre Management,Water And Sewerage,60302
http://statistics.data.gov.uk/id/local-authority/12UE,Huntingdonshire District Council,200913.00,WAVE  ANGLIAN WATER BUSINESS,028115,01/06/2020,7289571,OL RAMSEY,11/06/2020,0,1724.37,1724.37,OLR - Site & Centre Management,Water And Sewerage,60302
http://statistics.data.gov.uk/id/local-authority/12UE,Huntingdonshire District Council,200005.00,ABBEY COLLEGE ABBEY COLLEGE,023794,16/03/2020,0000001097,OL RAMSEY,08/04/2020,140.19,700.97,841.16,OLR - Site & Centre Management,Water And Sewerage,60302
http://statistics.data.gov.uk/id/local-authority/12UE,Huntingdonshire District Council,200913.00,WAVE  ANGLIAN WATER BUSINESS,028115,03/06/2020,7301099,OL SAWTRY,11/06/2020,0,1081.71,1081.71,OLS - Site & Centre Management,Water And Sewerage,60302
http://statistics.data.gov.uk/id/local-authority/12UE,Huntingdonshire District Council,200913.00,WAVE  ANGLIAN WATER BUSINESS,027529,21/05/2020,7255116,OL ST IVES,28/05/2020,0,8752.11,8752.11,OLSI - Site & Centre Management,Water And Sewerage,60302
http://statistics.data.gov.uk/id/local-authority/12UE,Huntingdonshire District Council,200913.00,WAVE  ANGLIAN WATER BUSINESS,027529,21/05/2020,7255115,OL ST IVES,28/05/2020,0,1303.11,1303.11,OLSI - Site & Centre Management,Water And Sewerage,60302
http://statistics.data.gov.uk/id/local-authority/12UE,Huntingdonshire District Council,200913.00,WAVE  ANGLIAN WATER BUSINESS,027529,03/05/2020,7176912,OL ST IVES,28/05/2020,0,562.92,562.92,OLSI - Site & Centre Management,Water And Sewerage,60302
http://statistics.data.gov.uk/id/local-authority/12UE,Huntingdonshire District Council,200742.00,ASTREA ACADEMY TRUST - ST IVO ACADEMY ST IVO SCHOOL,024340,19/03/2020,375126,olsi water charges,16/04/2020,0,499.24,499.24,OLSI - Site & Centre Management,Water And Sewerage,60302
http://statistics.data.gov.uk/id/local-authority/12UE,Huntingdonshire District Council,201667.00,CAMBRIDGE WATER BUSINESS,023468,09/03/2020,0069389631,OL ST IVES,02/04/2020,0,2113.85,2113.85,OLSIO - Site & Centre Management,Water And Sewerage,60302
http://statistics.data.gov.uk/id/local-authority/12UE,Huntingdonshire District Council,200913.00,WAVE  ANGLIAN WATER BUSINESS,028115,03/06/2020,7304168,OL ST IVES,11/06/2020,0,726.66,726.66,OLSIO - Site & Centre Management,Water And Sewerage,60302
http://statistics.data.gov.uk/id/local-authority/12UE,Huntingdonshire District Council,200913.00,WAVE  ANGLIAN WATER BUSINESS,023446,18/03/2020,6930233A,OL ST NEOTS,02/04/2020,0,1764.87,1764.87,OLSN - Site & Centre Management,Water And Sewerage,60302
http://statistics.data.gov.uk/id/local-authority/12UE,Huntingdonshire District Council,200913.00,WAVE  ANGLIAN WATER BUSINESS,028115,03/06/2020,7304258,OL ST NEOTS,11/06/2020,0,1286.16,1286.16,OLSN - Site & Centre Management,Water And Sewerage,60302
http://statistics.data.gov.uk/id/local-authority/12UE,Huntingdonshire District Council,200913.00,WAVE  ANGLIAN WATER BUSINESS,024352,05/04/2020,292955401,OL ST NEOTS,16/04/2020,0,680.54,680.54,OLSN - Site & Centre Management,Water And Sewerage,60302
http://statistics.data.gov.uk/id/local-authority/12UE,Huntingdonshire District Council,200913.00,WAVE  ANGLIAN WATER BUSINESS,024352,03/04/2020,7038084,OL ST NEOTS,16/04/2020,0,595.17,595.17,OLSN - Site & Centre Management,Water And Sewerage,60302
http://statistics.data.gov.uk/id/local-authority/12UE,Huntingdonshire District Council,200913.00,WAVE  ANGLIAN WATER BUSINESS,027529,03/05/2020,7176909,OL ST NEOTS,28/05/2020,0,-3050.37,-3050.37,OLSN - Site & Centre Management,Water And Sewerage,60302
http://statistics.data.gov.uk/id/local-authority/12UE,Huntingdonshire District Council,200913.00,WAVE  ANGLIAN WATER BUSINESS,026606,26/04/2020,7144427,OL ST NEOTS,07/05/2020,0,2459.11,2459.11,OLSN - Swimming,Water And Sewerage,60302
http://statistics.data.gov.uk/id/local-authority/12UE,Huntingdonshire District Council,200913.00,WAVE  ANGLIAN WATER BUSINESS,023446,26/03/2020,6975119,OL ST NEOTS,02/04/2020,0,2179.84,2179.84,OLSN - Swimming,Water And Sewerage,60302
http://statistics.data.gov.uk/id/local-authority/12UE,Huntingdonshire District Council,200913.00,WAVE  ANGLIAN WATER BUSINESS,027529,26/05/2020,7268492,OL ST NEOTS,28/05/2020,0,-1190.12,-1190.12,OLSN - Swimming,Water And Sewerage,60302
http://statistics.data.gov.uk/id/local-authority/12UE,Huntingdonshire District Council,200913.00,WAVE  ANGLIAN WATER BUSINESS,026157,16/02/2020,6750723,SAPLEY PARK PAVILION,30/04/2020,0,264.52,264.52,Parks & Open Spaces,Water And Sewerage,60302
http://statistics.data.gov.uk/id/local-authority/12UE,Huntingdonshire District Council,200913.00,WAVE  ANGLIAN WATER BUSINESS,027861,08/03/2020,6879827,PRIORY PARK PAVILION,04/06/2020,0,459.76,459.76,Parks & Open Spaces,Water And Sewerage,60302
http://statistics.data.gov.uk/id/local-authority/12UE,Huntingdonshire District Council,200913.00,WAVE  ANGLIAN WATER BUSINESS,027529,05/05/2020,7186568,PFH,28/05/2020,0,1814.45,1814.45,Pathfinder House,Water And Sewerage,60302
http://statistics.data.gov.uk/id/local-authority/12UE,Huntingdonshire District Council,200873.00,AQUAM WATER SERVICES LTD AQUAM WATER SERVICES LTD,028614,01/06/2020,50/1154587,STANDPIPES,25/06/2020,728,3640,4368,Street Cleansing,Water And Sewerage,60302
http://statistics.data.gov.uk/id/local-authority/12UE,Huntingdonshire District Council,200873.00,AQUAM WATER SERVICES LTD AQUAM WATER SERVICES LTD,028614,01/06/2020,50/1154587,STANDPIPES,25/06/2020,960,4800,5760,Street Cleansing,Water And Sewerage,60302
http://statistics.data.gov.uk/id/local-authority/12UE,Huntingdonshire District Council,200278.00,E-ON ENERGY E-ON ENERGY,024307,01/04/2020,H18530A71A,BUS SHELTER LIGHTING,16/04/2020,26.64,532.89,559.53,Bus Shelters,Electricity,60303
http://statistics.data.gov.uk/id/local-authority/12UE,Huntingdonshire District Council,200278.00,E-ON ENERGY E-ON ENERGY,024307,01/04/2020,H18530A515,UNMETERED CCTV,16/04/2020,310.72,1553.6,1864.32,Cctv Shared Service Hosting,Electricity,60303
http://statistics.data.gov.uk/id/local-authority/12UE,Huntingdonshire District Council,200363.00,HAVEN POWER LTD HAVEN POWER LTD,027493,07/05/2020,IN1104378200,EASTFIELD HOUSE,28/05/2020,1129.03,5645.14,6774.17,Eastfield House,Electricity,60303
http://statistics.data.gov.uk/id/local-authority/12UE,Huntingdonshire District Council,200363.00,HAVEN POWER LTD HAVEN POWER LTD,027493,07/02/2020,IN1104216842,EASTFIELD HOUSE,28/05/2020,954.47,4772.36,5726.83,Eastfield House,Electricity,60303
http://statistics.data.gov.uk/id/local-authority/12UE,Huntingdonshire District Council,200363.00,HAVEN POWER LTD HAVEN POWER LTD,023690,09/03/2020,IN1104282547,EASTFIELD HOUSE,06/04/2020,847.17,4235.83,5083,Eastfield House,Electricity,60303
http://statistics.data.gov.uk/id/local-authority/12UE,Huntingdonshire District Council,200363.00,HAVEN POWER LTD HAVEN POWER LTD,024312,06/04/2020,IN1104325307,EASTFIELD HOUSE,16/04/2020,719.05,3595.26,4314.31,Eastfield House,Electricity,60303
http://statistics.data.gov.uk/id/local-authority/12UE,Huntingdonshire District Council,200363.00,HAVEN POWER LTD HAVEN POWER LTD,028080,05/06/2020,IN1104448274,EASTFIELD HOUSE,11/06/2020,353.25,1766.25,2119.5,Eastfield House,Electricity,60303
http://statistics.data.gov.uk/id/local-authority/12UE,Huntingdonshire District Council,200363.00,HAVEN POWER LTD HAVEN POWER LTD,027493,07/05/2020,IN1104378201,EASTFIELD HOUSE,28/05/2020,178.43,892.13,1070.56,Eastfield House,Electricity,60303
http://statistics.data.gov.uk/id/local-authority/12UE,Huntingdonshire District Council,200278.00,E-ON ENERGY E-ON ENERGY,026552,23/04/2020,H18557958B,ST NEOTS MOBILE HOME PARK,07/05/2020,54.99,1099.76,1154.75,Mobile Home Park,Electricity,60303
http://statistics.data.gov.uk/id/local-authority/12UE,Huntingdonshire District Council,200278.00,E-ON ENERGY E-ON ENERGY,027491,16/05/2020,H18709A86F,MOBILE HOME PARK,28/05/2020,53.74,1074.87,1128.61,Mobile Home Park,Electricity,60303
http://statistics.data.gov.uk/id/local-authority/12UE,Huntingdonshire District Council,200278.00,E-ON ENERGY E-ON ENERGY,025353,25/03/2020,H183983A8E,MOBILE HOME PARK,23/04/2020,51.54,1030.71,1082.25,Mobile Home Park,Electricity,60303
http://statistics.data.gov.uk/id/local-authority/12UE,Huntingdonshire District Council,200363.00,HAVEN POWER LTD HAVEN POWER LTD,026895,07/05/2020,IN1104378194,OL HUNTINGDON,14/05/2020,1049.87,5249.37,6299.24,OLH - Site & Centre Management,Electricity,60303
http://statistics.data.gov.uk/id/local-authority/12UE,Huntingdonshire District Council,200363.00,HAVEN POWER LTD HAVEN POWER LTD,026895,07/02/2020,IN1104216826,OL HUNTINGDON,14/05/2020,760.78,3803.9,4564.68,OLH - Site & Centre Management,Electricity,60303
http://statistics.data.gov.uk/id/local-authority/12UE,Huntingdonshire District Council,200363.00,HAVEN POWER LTD HAVEN POWER LTD,024312,06/04/2020,IN1104325303,OL HUNTINGDON,16/04/2020,641.35,3206.76,3848.11,OLH - Site & Centre Management,Electricity,60303
http://statistics.data.gov.uk/id/local-authority/12UE,Huntingdonshire District Council,200363.00,HAVEN POWER LTD HAVEN POWER LTD,026895,07/05/2020,IN1104378195,OL HUNTINGDON,14/05/2020,208.27,1041.35,1249.62,OLH - Site & Centre Management,Electricity,60303
http://statistics.data.gov.uk/id/local-authority/12UE,Huntingdonshire District Council,200363.00,HAVEN POWER LTD HAVEN POWER LTD,028080,05/06/2020,IN1104448303,OL HUNTINGDON,11/06/2020,172.08,860.39,1032.47,OLH - Site & Centre Management,Electricity,60303
http://statistics.data.gov.uk/id/local-authority/12UE,Huntingdonshire District Council,200363.00,HAVEN POWER LTD HAVEN POWER LTD,026895,07/05/2020,1001107430,OL HUNTINGDON,14/05/2020,-298.37,-1491.87,-1790.24,OLH - Site & Centre Management,Electricity,60303
http://statistics.data.gov.uk/id/local-authority/12UE,Huntingdonshire District Council,200278.00,E-ON ENERGY E-ON ENERGY,028075,01/06/2020,H188A88517,OL HUNTINGDON,11/06/2020,265.34,1326.68,1592.02,OLH - Swimming,Electricity,60303
http://statistics.data.gov.uk/id/local-authority/12UE,Huntingdonshire District Council,200278.00,E-ON ENERGY E-ON ENERGY,026888,02/05/2020,H186EDDFE7,OL HUNTINGDON,14/05/2020,181.01,905.04,1086.05,OLH - Swimming,Electricity,60303
http://statistics.data.gov.uk/id/local-authority/12UE,Huntingdonshire District Council,200278.00,E-ON ENERGY E-ON ENERGY,023814,01/04/2020,H1852FAE24,OL HUNTINGDON,08/04/2020,78.78,393.9,472.68,OLH - Swimming,Electricity,60303
http://statistics.data.gov.uk/id/local-authority/12UE,Huntingdonshire District Council,200278.00,E-ON ENERGY E-ON ENERGY,023814,01/04/2020,H1852FAE3A,OL RAMSEY,08/04/2020,443.5,2217.52,2661.02,OLR - Site & Centre Management,Electricity,60303
http://statistics.data.gov.uk/id/local-authority/12UE,Huntingdonshire District Council,200278.00,E-ON ENERGY E-ON ENERGY,028075,01/06/2020,H188A8852D,OL RAMSEY,11/06/2020,127.59,637.97,765.56,OLR - Site & Centre Management,Electricity,60303
http://statistics.data.gov.uk/id/local-authority/12UE,Huntingdonshire District Council,200278.00,E-ON ENERGY E-ON ENERGY,026888,02/05/2020,H186EDDFFD,OL RAMSEY,14/05/2020,127.16,635.8,762.96,OLR - Site & Centre Management,Electricity,60303
http://statistics.data.gov.uk/id/local-authority/12UE,Huntingdonshire District Council,200363.00,HAVEN POWER LTD HAVEN POWER LTD,026895,07/02/2020,IN1104216830,OL ST IVES,14/05/2020,1687.14,8435.72,10122.86,OLSI - Site & Centre Management,Electricity,60303
http://statistics.data.gov.uk/id/local-authority/12UE,Huntingdonshire District Council,200363.00,HAVEN POWER LTD HAVEN POWER LTD,026895,07/05/2020,IN1104378198,OL ST IVES,14/05/2020,1669.93,8349.66,10019.59,OLSI - Site & Centre Management,Electricity,60303
http://statistics.data.gov.uk/id/local-authority/12UE,Huntingdonshire District Council,200363.00,HAVEN POWER LTD HAVEN POWER LTD,024312,06/04/2020,IN1104325305,OL ST IVES,16/04/2020,1591.14,7955.67,9546.81,OLSI - Site & Centre Management,Electricity,60303
http://statistics.data.gov.uk/id/local-authority/12UE,Huntingdonshire District Council,200363.00,HAVEN POWER LTD HAVEN POWER LTD,028080,05/06/2020,IN1104448305,OL ST IVES,11/06/2020,961.04,4805.22,5766.26,OLSI - Site & Centre Management,Electricity,60303
http://statistics.data.gov.uk/id/local-authority/12UE,Huntingdonshire District Council,200363.00,HAVEN POWER LTD HAVEN POWER LTD,026895,07/05/2020,IN1104378199,OL ST IVES,14/05/2020,172.57,862.86,1035.43,OLSI - Site & Centre Management,Electricity,60303
http://statistics.data.gov.uk/id/local-authority/12UE,Huntingdonshire District Council,200363.00,HAVEN POWER LTD HAVEN POWER LTD,026895,07/05/2020,IN1104378196,OL ST IVES,14/05/2020,1018.22,5091.07,6109.29,OLSIO - Site & Centre Management,Electricity,60303
http://statistics.data.gov.uk/id/local-authority/12UE,Huntingdonshire District Council,200363.00,HAVEN POWER LTD HAVEN POWER LTD,026895,07/02/2020,IN1104216828,PLEASE APPROVE CREDIT NOTE,14/05/2020,723.85,3619.26,4343.11,OLSIO - Site & Centre Management,Electricity,60303
http://statistics.data.gov.uk/id/local-authority/12UE,Huntingdonshire District Council,200363.00,HAVEN POWER LTD HAVEN POWER LTD,024312,06/04/2020,IN1104325304,OL ST IVES,16/04/2020,691.84,3459.21,4151.05,OLSIO - Site & Centre Management,Electricity,60303
http://statistics.data.gov.uk/id/local-authority/12UE,Huntingdonshire District Council,200363.00,HAVEN POWER LTD HAVEN POWER LTD,026895,07/05/2020,IN1104378197,OL ST IVES,14/05/2020,245.46,1227.29,1472.75,OLSIO - Site & Centre Management,Electricity,60303
http://statistics.data.gov.uk/id/local-authority/12UE,Huntingdonshire District Council,200363.00,HAVEN POWER LTD HAVEN POWER LTD,028080,05/06/2020,IN1104448304,OL ST IVES,11/06/2020,168.1,840.52,1008.62,OLSIO - Site & Centre Management,Electricity,60303
http://statistics.data.gov.uk/id/local-authority/12UE,Huntingdonshire District Council,200363.00,HAVEN POWER LTD HAVEN POWER LTD,026895,07/05/2020,1001107432,OL ST IVES,14/05/2020,-411.17,-2055.87,-2467.04,OLSIO - Site & Centre Management,Electricity,60303
http://statistics.data.gov.uk/id/local-authority/12UE,Huntingdonshire District Council,200363.00,HAVEN POWER LTD HAVEN POWER LTD,026895,07/05/2020,IN1104378192,OL ST NEOTS,14/05/2020,2013.79,10068.96,12082.75,OLSN - Swimming,Electricity,60303
http://statistics.data.gov.uk/id/local-authority/12UE,Huntingdonshire District Council,200363.00,HAVEN POWER LTD HAVEN POWER LTD,026895,07/02/2020,IN1104216824,OL ST NEOTS,14/05/2020,1609.26,8046.31,9655.57,OLSN - Swimming,Electricity,60303
http://statistics.data.gov.uk/id/local-authority/12UE,Huntingdonshire District Council,200363.00,HAVEN POWER LTD HAVEN POWER LTD,024312,06/04/2020,IN1104325302,OL ST NEOTS,16/04/2020,1370.6,6853.01,8223.61,OLSN - Swimming,Electricity,60303
http://statistics.data.gov.uk/id/local-authority/12UE,Huntingdonshire District Council,200363.00,HAVEN POWER LTD HAVEN POWER LTD,026895,07/05/2020,IN1104378190,OL ST NEOTS,14/05/2020,609.34,3046.68,3656.02,OLSN - Swimming,Electricity,60303
http://statistics.data.gov.uk/id/local-authority/12UE,Huntingdonshire District Council,200363.00,HAVEN POWER LTD HAVEN POWER LTD,026895,07/05/2020,IN1104378193,OL ST NEOTS,14/05/2020,561.7,2808.51,3370.21,OLSN - Swimming,Electricity,60303
http://statistics.data.gov.uk/id/local-authority/12UE,Huntingdonshire District Council,200363.00,HAVEN POWER LTD HAVEN POWER LTD,028080,05/06/2020,IN1104448302,OL ST NEOTS,11/06/2020,499,2494.98,2993.98,OLSN - Swimming,Electricity,60303
http://statistics.data.gov.uk/id/local-authority/12UE,Huntingdonshire District Council,200363.00,HAVEN POWER LTD HAVEN POWER LTD,026895,07/05/2020,1001107443,OL ST NEOTS,14/05/2020,-609.34,-3046.68,-3656.02,OLSN - Swimming,Electricity,60303
http://statistics.data.gov.uk/id/local-authority/12UE,Huntingdonshire District Council,200363.00,HAVEN POWER LTD HAVEN POWER LTD,026895,07/05/2020,1001107446,OL ST NEOTS,14/05/2020,-609.34,-3046.68,-3656.02,OLSN - Swimming,Electricity,60303
http://statistics.data.gov.uk/id/local-authority/12UE,Huntingdonshire District Council,200278.00,E-ON ENERGY E-ON ENERGY,024307,01/04/2020,H18530A6B7,FOOTPATH AND CAR PARK LIGHTING,16/04/2020,16.37,327.48,343.85,Parks & Open Spaces,Electricity,60303
http://statistics.data.gov.uk/id/local-authority/12UE,Huntingdonshire District Council,200363.00,HAVEN POWER LTD HAVEN POWER LTD,027493,07/05/2020,IN1104378202,PFH,28/05/2020,2659.21,13296.06,15955.27,Pathfinder House,Electricity,60303
http://statistics.data.gov.uk/id/local-authority/12UE,Huntingdonshire District Council,200363.00,HAVEN POWER LTD HAVEN POWER LTD,024312,06/04/2020,IN1104325308,PFH,16/04/2020,2030.48,10152.41,12182.89,Pathfinder House,Electricity,60303
http://statistics.data.gov.uk/id/local-authority/12UE,Huntingdonshire District Council,200363.00,HAVEN POWER LTD HAVEN POWER LTD,027493,07/02/2020,IN1104216844,PFH,28/05/2020,2020.28,10101.4,12121.68,Pathfinder House,Electricity,60303
http://statistics.data.gov.uk/id/local-authority/12UE,Huntingdonshire District Council,200363.00,HAVEN POWER LTD HAVEN POWER LTD,023690,09/03/2020,IN1104282548,PFH,06/04/2020,1991.05,9955.25,11946.3,Pathfinder House,Electricity,60303
http://statistics.data.gov.uk/id/local-authority/12UE,Huntingdonshire District Council,200363.00,HAVEN POWER LTD HAVEN POWER LTD,028080,05/06/2020,IN1104448275,PFH,11/06/2020,1491.74,7458.72,8950.46,Pathfinder House,Electricity,60303
http://statistics.data.gov.uk/id/local-authority/12UE,Huntingdonshire District Council,200363.00,HAVEN POWER LTD HAVEN POWER LTD,027493,07/05/2020,IN1104378203,PFH,28/05/2020,716.82,3584.08,4300.9,Pathfinder House,Electricity,60303
http://statistics.data.gov.uk/id/local-authority/12UE,Huntingdonshire District Council,200126.00,BRITISH GAS BUSINESS BRITISH GAS BUSINESS,024299,03/04/2020,971510043,EASTFIELD HOUSE,16/04/2020,203.96,1019.78,1223.74,Eastfield House,Gas,60305
http://statistics.data.gov.uk/id/local-authority/12UE,Huntingdonshire District Council,200126.00,BRITISH GAS BUSINESS BRITISH GAS BUSINESS,028067,02/06/2020,982417679,EASTFIELD HOUSE,11/06/2020,89.55,447.77,537.32,Eastfield House,Gas,60305
http://statistics.data.gov.uk/id/local-authority/12UE,Huntingdonshire District Council,200126.00,BRITISH GAS BUSINESS BRITISH GAS BUSINESS,023805,03/04/2020,971510038,OL HUNTINGDON,08/04/2020,173.59,867.92,1041.51,OLH - Site & Centre Management,Gas,60305
http://statistics.data.gov.uk/id/local-authority/12UE,Huntingdonshire District Council,200126.00,BRITISH GAS BUSINESS BRITISH GAS BUSINESS,028067,02/06/2020,982417675,OL HUNTINGDON,11/06/2020,123.69,618.45,742.14,OLH - Site & Centre Management,Gas,60305
http://statistics.data.gov.uk/id/local-authority/12UE,Huntingdonshire District Council,200126.00,BRITISH GAS BUSINESS BRITISH GAS BUSINESS,028067,04/05/2020,986389655,OL HUNTINGDON,11/06/2020,77.39,386.94,464.33,OLH - Site & Centre Management,Gas,60305
http://statistics.data.gov.uk/id/local-authority/12UE,Huntingdonshire District Council,200126.00,BRITISH GAS BUSINESS BRITISH GAS BUSINESS,028067,03/04/2020,971510040,OL HUNTINGDON,11/06/2020,850.41,4252.03,5102.44,OLH - Swimming,Gas,60305
http://statistics.data.gov.uk/id/local-authority/12UE,Huntingdonshire District Council,200126.00,BRITISH GAS BUSINESS BRITISH GAS BUSINESS,023805,03/04/2020,971510040,OL HUNTINGDON,08/04/2020,850.41,4252.03,5102.44,OLH - Swimming,Gas,60305
http://statistics.data.gov.uk/id/local-authority/12UE,Huntingdonshire District Council,200126.00,BRITISH GAS BUSINESS BRITISH GAS BUSINESS,028067,21/04/2020,713591320,OL HUNTINGDON,11/06/2020,1004.67,5023.35,6028.02,OLH - Swimming,Gas,60305
http://statistics.data.gov.uk/id/local-authority/12UE,Huntingdonshire District Council,200126.00,BRITISH GAS BUSINESS BRITISH GAS BUSINESS,028067,03/05/2019,520471321,OL HUNTINGDON WET,11/06/2020,809.7,4048.51,4858.21,OLH - Swimming,Gas,60305
http://statistics.data.gov.uk/id/local-authority/12UE,Huntingdonshire District Council,200126.00,BRITISH GAS BUSINESS BRITISH GAS BUSINESS,028067,21/04/2020,713591347,OL HUNTINGDON,11/06/2020,799.32,3996.59,4795.91,OLH - Swimming,Gas,60305
http://statistics.data.gov.uk/id/local-authority/12UE,Huntingdonshire District Council,200126.00,BRITISH GAS BUSINESS BRITISH GAS BUSINESS,028067,05/11/2019,966494165,OL HUNTINGDON,11/06/2020,797.55,3987.74,4785.29,OLH - Swimming,Gas,60305
http://statistics.data.gov.uk/id/local-authority/12UE,Huntingdonshire District Council,200126.00,BRITISH GAS BUSINESS BRITISH GAS BUSINESS,028067,04/02/2020,952837039,OL HUNTINGDON,11/06/2020,773.85,3869.25,4643.1,OLH - Swimming,Gas,60305
http://statistics.data.gov.uk/id/local-authority/12UE,Huntingdonshire District Council,200126.00,BRITISH GAS BUSINESS BRITISH GAS BUSINESS,028067,02/04/2019,994256949,OL HUNTINGDON,11/06/2020,769.22,3846.1,4615.32,OLH - Swimming,Gas,60305
http://statistics.data.gov.uk/id/local-authority/12UE,Huntingdonshire District Council,200126.00,BRITISH GAS BUSINESS BRITISH GAS BUSINESS,028067,09/01/2020,713105972,OL HUNTINGDON,11/06/2020,763.5,3817.51,4581.01,OLH - Swimming,Gas,60305
http://statistics.data.gov.uk/id/local-authority/12UE,Huntingdonshire District Council,200126.00,BRITISH GAS BUSINESS BRITISH GAS BUSINESS,028067,09/01/2020,713105973,OL HUNTINGDON,11/06/2020,757.84,3789.22,4547.06,OLH - Swimming,Gas,60305
http://statistics.data.gov.uk/id/local-authority/12UE,Huntingdonshire District Council,200126.00,BRITISH GAS BUSINESS BRITISH GAS BUSINESS,028067,21/04/2020,713591342,OL HUNTINGDON,11/06/2020,752.84,3764.21,4517.05,OLH - Swimming,Gas,60305
http://statistics.data.gov.uk/id/local-authority/12UE,Huntingdonshire District Council,200126.00,BRITISH GAS BUSINESS BRITISH GAS BUSINESS,028067,21/04/2020,713591321,OL HUNTINGDON,11/06/2020,737.26,3686.29,4423.55,OLH - Swimming,Gas,60305
http://statistics.data.gov.uk/id/local-authority/12UE,Huntingdonshire District Council,200126.00,BRITISH GAS BUSINESS BRITISH GAS BUSINESS,028067,04/06/2019,993278121,OL HUNTINGDON,11/06/2020,737.09,3685.44,4422.53,OLH - Swimming,Gas,60305
http://statistics.data.gov.uk/id/local-authority/12UE,Huntingdonshire District Council,200126.00,BRITISH GAS BUSINESS BRITISH GAS BUSINESS,028067,21/04/2020,713591345,OL HUNTINGDON,11/06/2020,730.57,3652.83,4383.4,OLH - Swimming,Gas,60305
http://statistics.data.gov.uk/id/local-authority/12UE,Huntingdonshire District Council,200126.00,BRITISH GAS BUSINESS BRITISH GAS BUSINESS,028067,21/04/2020,713591343,OL HUNTINGDON,11/06/2020,720.74,3603.69,4324.43,OLH - Swimming,Gas,60305
http://statistics.data.gov.uk/id/local-authority/12UE,Huntingdonshire District Council,200126.00,BRITISH GAS BUSINESS BRITISH GAS BUSINESS,028067,21/04/2020,713591344,OL HUNTINGDON,11/06/2020,715.52,3577.61,4293.13,OLH - Swimming,Gas,60305
http://statistics.data.gov.uk/id/local-authority/12UE,Huntingdonshire District Council,200126.00,BRITISH GAS BUSINESS BRITISH GAS BUSINESS,028067,04/03/2020,987366463,OL HUNTINGDON,11/06/2020,708.45,3542.26,4250.71,OLH - Swimming,Gas,60305
http://statistics.data.gov.uk/id/local-authority/12UE,Huntingdonshire District Council,200126.00,BRITISH GAS BUSINESS BRITISH GAS BUSINESS,028067,21/04/2020,713591337,OL HUNTINGDON,11/06/2020,696.01,3480.06,4176.07,OLH - Swimming,Gas,60305
http://statistics.data.gov.uk/id/local-authority/12UE,Huntingdonshire District Council,200126.00,BRITISH GAS BUSINESS BRITISH GAS BUSINESS,028067,05/08/2019,966463165,OL HUNTINGDON,11/06/2020,685.24,3426.19,4111.43,OLH - Swimming,Gas,60305
http://statistics.data.gov.uk/id/local-authority/12UE,Huntingdonshire District Council,200126.00,BRITISH GAS BUSINESS BRITISH GAS BUSINESS,028067,21/04/2020,713591346,OL HUNTINGDON,11/06/2020,672.1,3360.48,4032.58,OLH - Swimming,Gas,60305
http://statistics.data.gov.uk/id/local-authority/12UE,Huntingdonshire District Council,200126.00,BRITISH GAS BUSINESS BRITISH GAS BUSINESS,028067,21/04/2020,713591339,OL HUNTINGDON,11/06/2020,648.98,3244.91,3893.89,OLH - Swimming,Gas,60305
http://statistics.data.gov.uk/id/local-authority/12UE,Huntingdonshire District Council,200126.00,BRITISH GAS BUSINESS BRITISH GAS BUSINESS,028067,21/04/2020,713591338,OL HUNTINGDON,11/06/2020,610.15,3050.77,3660.92,OLH - Swimming,Gas,60305
http://statistics.data.gov.uk/id/local-authority/12UE,Huntingdonshire District Council,200126.00,BRITISH GAS BUSINESS BRITISH GAS BUSINESS,028067,21/04/2020,713591322,OL HUNTINGDON,11/06/2020,596.66,2983.32,3579.98,OLH - Swimming,Gas,60305
http://statistics.data.gov.uk/id/local-authority/12UE,Huntingdonshire District Council,200126.00,BRITISH GAS BUSINESS BRITISH GAS BUSINESS,028067,21/03/2019,711637925,OL HUNTINGDON,11/06/2020,589.96,2949.78,3539.74,OLH - Swimming,Gas,60305
http://statistics.data.gov.uk/id/local-authority/12UE,Huntingdonshire District Council,200126.00,BRITISH GAS BUSINESS BRITISH GAS BUSINESS,028067,03/09/2019,162152628,OL HUNTINGDON WET,11/06/2020,483.08,2415.41,2898.49,OLH - Swimming,Gas,60305
http://statistics.data.gov.uk/id/local-authority/12UE,Huntingdonshire District Council,200126.00,BRITISH GAS BUSINESS BRITISH GAS BUSINESS,028067,21/04/2020,713591341,OL HUNTINGDON,11/06/2020,468.48,2342.38,2810.86,OLH - Swimming,Gas,60305
http://statistics.data.gov.uk/id/local-authority/12UE,Huntingdonshire District Council,200126.00,BRITISH GAS BUSINESS BRITISH GAS BUSINESS,028067,21/04/2020,713591340,OL HUNTINGDON,11/06/2020,457.25,2286.27,2743.52,OLH - Swimming,Gas,60305
http://statistics.data.gov.uk/id/local-authority/12UE,Huntingdonshire District Council,200126.00,BRITISH GAS BUSINESS BRITISH GAS BUSINESS,028067,21/03/2019,711637924,OL HUNTINGDON,11/06/2020,446.36,2231.78,2678.14,OLH - Swimming,Gas,60305
http://statistics.data.gov.uk/id/local-authority/12UE,Huntingdonshire District Council,200126.00,BRITISH GAS BUSINESS BRITISH GAS BUSINESS,028067,04/05/2020,986389656,OL HUNTINGDON,11/06/2020,375.21,1876.05,2251.26,OLH - Swimming,Gas,60305
http://statistics.data.gov.uk/id/local-authority/12UE,Huntingdonshire District Council,200126.00,BRITISH GAS BUSINESS BRITISH GAS BUSINESS,028067,03/07/2019,965457894,OL HUNTINGDON,11/06/2020,328.47,1642.37,1970.84,OLH - Swimming,Gas,60305
http://statistics.data.gov.uk/id/local-authority/12UE,Huntingdonshire District Council,200126.00,BRITISH GAS BUSINESS BRITISH GAS BUSINESS,028067,15/02/2020,963436835A,OL HUNTINGDON,11/06/2020,319.2,1595.99,1915.19,OLH - Swimming,Gas,60305
http://statistics.data.gov.uk/id/local-authority/12UE,Huntingdonshire District Council,200126.00,BRITISH GAS BUSINESS BRITISH GAS BUSINESS,028067,03/10/2019,712603831,OL HUNTINGDON,11/06/2020,275.96,1379.78,1655.74,OLH - Swimming,Gas,60305
http://statistics.data.gov.uk/id/local-authority/12UE,Huntingdonshire District Council,200126.00,BRITISH GAS BUSINESS BRITISH GAS BUSINESS,028067,24/09/2019,997270453,OL HUNTINGDON,11/06/2020,219.52,1097.59,1317.11,OLH - Swimming,Gas,60305
http://statistics.data.gov.uk/id/local-authority/12UE,Huntingdonshire District Council,200126.00,BRITISH GAS BUSINESS BRITISH GAS BUSINESS,028067,21/04/2020,713591336,OL HUNTINGDON,11/06/2020,169.44,847.22,1016.66,OLH - Swimming,Gas,60305
http://statistics.data.gov.uk/id/local-authority/12UE,Huntingdonshire District Council,200126.00,BRITISH GAS BUSINESS BRITISH GAS BUSINESS,028067,02/06/2020,982417676,OL HUNTINGDON,11/06/2020,75.03,375.16,450.19,OLH - Swimming,Gas,60305
http://statistics.data.gov.uk/id/local-authority/12UE,Huntingdonshire District Council,200126.00,BRITISH GAS BUSINESS BRITISH GAS BUSINESS,023805,03/04/2020,971510044,OL RAMSEY,08/04/2020,356.91,1784.52,2141.43,OLR - Site & Centre Management,Gas,60305
http://statistics.data.gov.uk/id/local-authority/12UE,Huntingdonshire District Council,200126.00,BRITISH GAS BUSINESS BRITISH GAS BUSINESS,028067,04/05/2020,986389660,OL RAMSEY,11/06/2020,92.8,463.99,556.79,OLR - Site & Centre Management,Gas,60305
http://statistics.data.gov.uk/id/local-authority/12UE,Huntingdonshire District Council,200126.00,BRITISH GAS BUSINESS BRITISH GAS BUSINESS,028067,02/06/2020,982417680,OL RAMSEY,11/06/2020,80.48,402.38,482.86,OLR - Site & Centre Management,Gas,60305
http://statistics.data.gov.uk/id/local-authority/12UE,Huntingdonshire District Council,200126.00,BRITISH GAS BUSINESS BRITISH GAS BUSINESS,028067,06/04/2020,973487688,OL ST IVES INDOOR,11/06/2020,1245.22,6226.12,7471.34,OLSI - Site & Centre Management,Gas,60305
http://statistics.data.gov.uk/id/local-authority/12UE,Huntingdonshire District Council,200126.00,BRITISH GAS BUSINESS BRITISH GAS BUSINESS,024299,06/04/2020,973487688,OL ST IVES INDOOR,16/04/2020,1245.22,6226.12,7471.34,OLSI - Site & Centre Management,Gas,60305
http://statistics.data.gov.uk/id/local-authority/12UE,Huntingdonshire District Council,200126.00,BRITISH GAS BUSINESS BRITISH GAS BUSINESS,028067,06/01/2020,340736721,OL ST IVES,11/06/2020,1224.18,6120.91,7345.09,OLSI - Site & Centre Management,Gas,60305
http://statistics.data.gov.uk/id/local-authority/12UE,Huntingdonshire District Council,200126.00,BRITISH GAS BUSINESS BRITISH GAS BUSINESS,028067,21/04/2020,713591166,OL ST IVES,11/06/2020,1210.42,6052.08,7262.5,OLSI - Site & Centre Management,Gas,60305
http://statistics.data.gov.uk/id/local-authority/12UE,Huntingdonshire District Council,200126.00,BRITISH GAS BUSINESS BRITISH GAS BUSINESS,028067,21/04/2020,713591162,OL ST IVES,11/06/2020,1189.99,5949.95,7139.94,OLSI - Site & Centre Management,Gas,60305
http://statistics.data.gov.uk/id/local-authority/12UE,Huntingdonshire District Council,200126.00,BRITISH GAS BUSINESS BRITISH GAS BUSINESS,028067,06/12/2019,712951879,OL ST IVES,11/06/2020,1180.83,5904.17,7085,OLSI - Site & Centre Management,Gas,60305
http://statistics.data.gov.uk/id/local-authority/12UE,Huntingdonshire District Council,200126.00,BRITISH GAS BUSINESS BRITISH GAS BUSINESS,028067,06/12/2019,712951878,OL ST IVES,11/06/2020,1170.57,5852.86,7023.43,OLSI - Site & Centre Management,Gas,60305
http://statistics.data.gov.uk/id/local-authority/12UE,Huntingdonshire District Council,200126.00,BRITISH GAS BUSINESS BRITISH GAS BUSINESS,028067,21/04/2020,713591161,OL ST IVES,11/06/2020,1147.85,5739.27,6887.12,OLSI - Site & Centre Management,Gas,60305
http://statistics.data.gov.uk/id/local-authority/12UE,Huntingdonshire District Council,200126.00,BRITISH GAS BUSINESS BRITISH GAS BUSINESS,028067,21/04/2020,713591160,OL ST IVES,11/06/2020,1137.94,5689.72,6827.66,OLSI - Site & Centre Management,Gas,60305
http://statistics.data.gov.uk/id/local-authority/12UE,Huntingdonshire District Council,200126.00,BRITISH GAS BUSINESS BRITISH GAS BUSINESS,028067,06/03/2020,952858119,OL ST IVES,11/06/2020,1070.69,5353.47,6424.16,OLSI - Site & Centre Management,Gas,60305
http://statistics.data.gov.uk/id/local-authority/12UE,Huntingdonshire District Council,200126.00,BRITISH GAS BUSINESS BRITISH GAS BUSINESS,028067,21/04/2020,713591165,OL ST IVES,11/06/2020,1040.68,5203.41,6244.09,OLSI - Site & Centre Management,Gas,60305
http://statistics.data.gov.uk/id/local-authority/12UE,Huntingdonshire District Council,200126.00,BRITISH GAS BUSINESS BRITISH GAS BUSINESS,028067,21/03/2019,711637800,OL ST IVES,11/06/2020,1016.48,5082.39,6098.87,OLSI - Site & Centre Management,Gas,60305
http://statistics.data.gov.uk/id/local-authority/12UE,Huntingdonshire District Council,200126.00,BRITISH GAS BUSINESS BRITISH GAS BUSINESS,028067,21/04/2020,713591147,OL ST IVES,11/06/2020,1002.29,5011.47,6013.76,OLSI - Site & Centre Management,Gas,60305
http://statistics.data.gov.uk/id/local-authority/12UE,Huntingdonshire District Council,200126.00,BRITISH GAS BUSINESS BRITISH GAS BUSINESS,028067,06/02/2020,221362692,OL ST IVES,11/06/2020,968.53,4842.64,5811.17,OLSI - Site & Centre Management,Gas,60305
http://statistics.data.gov.uk/id/local-authority/12UE,Huntingdonshire District Council,200126.00,BRITISH GAS BUSINESS BRITISH GAS BUSINESS,028067,21/03/2019,711637801,OL ST IVES,11/06/2020,942.19,4710.95,5653.14,OLSI - Site & Centre Management,Gas,60305
http://statistics.data.gov.uk/id/local-authority/12UE,Huntingdonshire District Council,200126.00,BRITISH GAS BUSINESS BRITISH GAS BUSINESS,028067,21/04/2020,713591163,OL ST IVES,11/06/2020,941.8,4708.99,5650.79,OLSI - Site & Centre Management,Gas,60305
http://statistics.data.gov.uk/id/local-authority/12UE,Huntingdonshire District Council,200126.00,BRITISH GAS BUSINESS BRITISH GAS BUSINESS,028067,21/04/2020,713591148,OL ST IVES,11/06/2020,922.5,4612.52,5535.02,OLSI - Site & Centre Management,Gas,60305
http://statistics.data.gov.uk/id/local-authority/12UE,Huntingdonshire District Council,200126.00,BRITISH GAS BUSINESS BRITISH GAS BUSINESS,028067,05/04/2019,711711330,OL ST IVES,11/06/2020,838.38,4191.88,5030.26,OLSI - Site & Centre Management,Gas,60305
http://statistics.data.gov.uk/id/local-authority/12UE,Huntingdonshire District Council,200126.00,BRITISH GAS BUSINESS BRITISH GAS BUSINESS,028067,02/05/2019,191671052,OL ST IVES INDOOR,11/06/2020,824.11,4120.54,4944.65,OLSI - Site & Centre Management,Gas,60305
http://statistics.data.gov.uk/id/local-authority/12UE,Huntingdonshire District Council,200126.00,BRITISH GAS BUSINESS BRITISH GAS BUSINESS,028067,21/04/2020,713591149,OL ST IVES,11/06/2020,823.94,4119.69,4943.63,OLSI - Site & Centre Management,Gas,60305
http://statistics.data.gov.uk/id/local-authority/12UE,Huntingdonshire District Council,200126.00,BRITISH GAS BUSINESS BRITISH GAS BUSINESS,028067,05/06/2019,984343979,OL ST IVES,11/06/2020,762.89,3814.46,4577.35,OLSI - Site & Centre Management,Gas,60305
http://statistics.data.gov.uk/id/local-authority/12UE,Huntingdonshire District Council,200126.00,BRITISH GAS BUSINESS BRITISH GAS BUSINESS,028067,21/04/2020,713591155,OL ST IVES,11/06/2020,742.16,3710.82,4452.98,OLSI - Site & Centre Management,Gas,60305
http://statistics.data.gov.uk/id/local-authority/12UE,Huntingdonshire District Council,200126.00,BRITISH GAS BUSINESS BRITISH GAS BUSINESS,028067,06/12/2019,712951877,OL ST IVES,11/06/2020,687.68,3438.4,4126.08,OLSI - Site & Centre Management,Gas,60305
http://statistics.data.gov.uk/id/local-authority/12UE,Huntingdonshire District Council,200126.00,BRITISH GAS BUSINESS BRITISH GAS BUSINESS,028067,21/04/2020,713591159,OL ST IVES,11/06/2020,669.1,3345.5,4014.6,OLSI - Site & Centre Management,Gas,60305
http://statistics.data.gov.uk/id/local-authority/12UE,Huntingdonshire District Council,200126.00,BRITISH GAS BUSINESS BRITISH GAS BUSINESS,028067,06/12/2019,712951874,OL ST IVES,11/06/2020,668.13,3340.66,4008.79,OLSI - Site & Centre Management,Gas,60305
http://statistics.data.gov.uk/id/local-authority/12UE,Huntingdonshire District Council,200126.00,BRITISH GAS BUSINESS BRITISH GAS BUSINESS,028067,06/12/2019,712951875,OL ST IVES,11/06/2020,657.57,3287.87,3945.44,OLSI - Site & Centre Management,Gas,60305
http://statistics.data.gov.uk/id/local-authority/12UE,Huntingdonshire District Council,200126.00,BRITISH GAS BUSINESS BRITISH GAS BUSINESS,028067,21/04/2020,713591156,OL ST IVES,11/06/2020,650.07,3250.36,3900.43,OLSI - Site & Centre Management,Gas,60305
http://statistics.data.gov.uk/id/local-authority/12UE,Huntingdonshire District Council,200126.00,BRITISH GAS BUSINESS BRITISH GAS BUSINESS,028067,21/04/2020,713591157,OL ST IVES,11/06/2020,639.97,3199.86,3839.83,OLSI - Site & Centre Management,Gas,60305
http://statistics.data.gov.uk/id/local-authority/12UE,Huntingdonshire District Council,200126.00,BRITISH GAS BUSINESS BRITISH GAS BUSINESS,028067,06/12/2019,712951876,OL ST IVES,11/06/2020,629.71,3148.57,3778.28,OLSI - Site & Centre Management,Gas,60305
http://statistics.data.gov.uk/id/local-authority/12UE,Huntingdonshire District Council,200126.00,BRITISH GAS BUSINESS BRITISH GAS BUSINESS,028067,21/04/2020,713591150,OL ST IVES,11/06/2020,625.01,3125.04,3750.05,OLSI - Site & Centre Management,Gas,60305
http://statistics.data.gov.uk/id/local-authority/12UE,Huntingdonshire District Council,200126.00,BRITISH GAS BUSINESS BRITISH GAS BUSINESS,028067,21/04/2020,713591158,OL ST IVES,11/06/2020,612.87,3064.37,3677.24,OLSI - Site & Centre Management,Gas,60305
http://statistics.data.gov.uk/id/local-authority/12UE,Huntingdonshire District Council,200126.00,BRITISH GAS BUSINESS BRITISH GAS BUSINESS,028067,10/02/2020,460541135,OL ST IVES,11/06/2020,458.55,2292.75,2751.3,OLSI - Site & Centre Management,Gas,60305
http://statistics.data.gov.uk/id/local-authority/12UE,Huntingdonshire District Council,200126.00,BRITISH GAS BUSINESS BRITISH GAS BUSINESS,028067,21/04/2020,713591164,OL ST IVES,11/06/2020,445.36,2226.81,2672.17,OLSI - Site & Centre Management,Gas,60305
http://statistics.data.gov.uk/id/local-authority/12UE,Huntingdonshire District Council,200126.00,BRITISH GAS BUSINESS BRITISH GAS BUSINESS,028067,21/04/2020,713591154,OL ST IVES,11/06/2020,177.47,887.34,1064.81,OLSI - Site & Centre Management,Gas,60305
http://statistics.data.gov.uk/id/local-authority/12UE,Huntingdonshire District Council,200126.00,BRITISH GAS BUSINESS BRITISH GAS BUSINESS,024299,06/04/2020,973487689,OL ST IVES OUTDOOR,16/04/2020,149.97,749.85,899.82,OLSI - Site & Centre Management,Gas,60305
http://statistics.data.gov.uk/id/local-authority/12UE,Huntingdonshire District Council,200126.00,BRITISH GAS BUSINESS BRITISH GAS BUSINESS,028067,05/05/2020,953626684,OL ST IVES,11/06/2020,80.42,402.1,482.52,OLSIO - Site & Centre Management,Gas,60305
http://statistics.data.gov.uk/id/local-authority/12UE,Huntingdonshire District Council,200126.00,BRITISH GAS BUSINESS BRITISH GAS BUSINESS,028332,08/06/2020,280195811,OL ST IVES,18/06/2020,12.8,256.05,268.85,OLSIO - Site & Centre Management,Gas,60305
http://statistics.data.gov.uk/id/local-authority/12UE,Huntingdonshire District Council,200126.00,BRITISH GAS BUSINESS BRITISH GAS BUSINESS,023805,03/04/2020,971510041,OL ST NEOTS,08/04/2020,130.23,651.17,781.4,OLSN - Site & Centre Management,Gas,60305
http://statistics.data.gov.uk/id/local-authority/12UE,Huntingdonshire District Council,200126.00,BRITISH GAS BUSINESS BRITISH GAS BUSINESS,023805,03/04/2020,971510039,OL ST NEOTS,08/04/2020,724.97,3624.86,4349.83,OLSN - Swimming,Gas,60305
http://statistics.data.gov.uk/id/local-authority/12UE,Huntingdonshire District Council,200126.00,BRITISH GAS BUSINESS BRITISH GAS BUSINESS,028067,09/05/2020,713685474,OL ST NEOTS,11/06/2020,182.53,912.66,1095.19,OLSN - Swimming,Gas,60305
http://statistics.data.gov.uk/id/local-authority/12UE,Huntingdonshire District Council,200126.00,BRITISH GAS BUSINESS BRITISH GAS BUSINESS,028067,04/06/2020,132476562,OL ST NEOTS,11/06/2020,143.06,715.3,858.36,OLSN - Swimming,Gas,60305
http://statistics.data.gov.uk/id/local-authority/12UE,Huntingdonshire District Council,200126.00,BRITISH GAS BUSINESS BRITISH GAS BUSINESS,024299,03/04/2020,971510042,PFH,16/04/2020,432.37,2161.84,2594.21,Pathfinder House,Gas,60305
http://statistics.data.gov.uk/id/local-authority/12UE,Huntingdonshire District Council,200126.00,BRITISH GAS BUSINESS BRITISH GAS BUSINESS,028067,04/05/2020,986389658,PFH,11/06/2020,240.92,1204.6,1445.52,Pathfinder House,Gas,60305
http://statistics.data.gov.uk/id/local-authority/12UE,Huntingdonshire District Council,200126.00,BRITISH GAS BUSINESS BRITISH GAS BUSINESS,028067,02/06/2020,982417678,PFH,11/06/2020,148.93,744.67,893.6,Pathfinder House,Gas,60305
http://statistics.data.gov.uk/id/local-authority/12UE,Huntingdonshire District Council,200126.00,BRITISH GAS BUSINESS BRITISH GAS BUSINESS,028067,04/05/2020,986389659,EASTFIELD HOUSE,11/06/2020,111.4,557,668.4,Pathfinder House,Gas,60305
http://statistics.data.gov.uk/id/local-authority/12UE,Huntingdonshire District Council,202207.00,LEE BARON LTD,023481,23/12/2019,241420,QUARTERLY SERVICE CHARGE,02/04/2020,207.65,1038.25,1245.9,Commercial Investment Strategy,Service Charges,60401
http://statistics.data.gov.uk/id/local-authority/12UE,Huntingdonshire District Council,202207.00,LEE BARON LTD,023481,13/02/2020,242399,SERVICE CHARGE,02/04/2020,68.38,341.9,410.28,Commercial Investment Strategy,Service Charges,60401
http://statistics.data.gov.uk/id/local-authority/12UE,Huntingdonshire District Council,200894.00,Workman,027527,20/05/2020,835580/149,REDACTED,28/05/2020,369.82,1849.11,2218.93,Commercial Investment Strategy,Service Charges,60401
http://statistics.data.gov.uk/id/local-authority/12UE,Huntingdonshire District Council,200894.00,Workman,027527,20/05/2020,835580/154,REDACTED,28/05/2020,338.3,1691.51,2029.81,Commercial Investment Strategy,Service Charges,60401
http://statistics.data.gov.uk/id/local-authority/12UE,Huntingdonshire District Council,200894.00,Workman,027527,20/05/2020,809900/641,REDACTED,28/05/2020,151.41,757.07,908.48,Commercial Investment Strategy,Service Charges,60401
http://statistics.data.gov.uk/id/local-authority/12UE,Huntingdonshire District Council,200894.00,Workman,027527,20/05/2020,809900/636,REDACTED,28/05/2020,151.41,757.07,908.48,Commercial Investment Strategy,Service Charges,60401
http://statistics.data.gov.uk/id/local-authority/12UE,Huntingdonshire District Council,200159.00,CAMBRIDGESHIRE COUNTY COUNCIL CAMBRIDGESHIRE COUNTY COUNCIL,024301,13/03/2020,423001405667,RAMSEY LIBRARY - FIRST FLOOR,16/04/2020,0,1145,1145,Head Of Community,Service Charges,60401
http://statistics.data.gov.uk/id/local-authority/12UE,Huntingdonshire District Council,200159.00,CAMBRIDGESHIRE COUNTY COUNCIL CAMBRIDGESHIRE COUNTY COUNCIL,024301,13/03/2020,423001405658,RAMSEY LIBRARY - GROUND FLOOR,16/04/2020,0,986.25,986.25,Ramsey Community Infor Centre,Service Charges,60401
http://statistics.data.gov.uk/id/local-authority/12UE,Huntingdonshire District Council,200625.00,PORTAKABIN LTD PORTAKABIN LTD,025394,01/04/2020,900878938,HIRE APRIL 2020,23/04/2020,134.51,672.54,807.05,Voluntary Sector Grants,Premises Hire - Facilities,60402
http://statistics.data.gov.uk/id/local-authority/12UE,Huntingdonshire District Council,200625.00,PORTAKABIN LTD PORTAKABIN LTD,027511,01/05/2020,900882046,PACEMAKER HIRE MAY 20,28/05/2020,134.51,672.54,807.05,Voluntary Sector Grants,Premises Hire - Facilities,60402
http://statistics.data.gov.uk/id/local-authority/12UE,Huntingdonshire District Council,200625.00,PORTAKABIN LTD PORTAKABIN LTD,028594,01/06/2020,900884962,PACEMAKER HIRE JUN 20,25/06/2020,134.51,672.54,807.05,Voluntary Sector Grants,Premises Hire - Facilities,60402
http://statistics.data.gov.uk/id/local-authority/12UE,Huntingdonshire District Council,201586.00,THE NEWSPAPER LICENCING AGENCY LTD,027235,24/04/2020,Q442124,LICENCE,21/05/2020,229.6,1148,1377.6,Corporate Team,Licences,60410
http://statistics.data.gov.uk/id/local-authority/12UE,Huntingdonshire District Council,202287.00,MINITAB LTD,028140,15/05/2020,STDINV0066795,LICENCE,11/06/2020,195.6,978,1173.6,Domestic Waste Collection,Licences,60410
http://statistics.data.gov.uk/id/local-authority/12UE,Huntingdonshire District Council,200611.00,PPL PRS LTD PERFORMING RIGHT SOCIETY,025390,01/04/2020,SIN1428943,ROYALTIES,23/04/2020,589.1,2945.49,3534.59,OLH - Fitness Activities,Licences,60410
http://statistics.data.gov.uk/id/local-authority/12UE,Huntingdonshire District Council,200809.00,UKACTIVE UKACTIVE,023859,19/02/2020,TD-038509,OL ST IVES,08/04/2020,494.57,2472.85,2967.42,OLH - Fitness Activities,Licences,60410
http://statistics.data.gov.uk/id/local-authority/12UE,Huntingdonshire District Council,200809.00,UKACTIVE UKACTIVE,026601,15/04/2020,117749,OL ST IVES,07/05/2020,47.91,239.53,287.44,OLH - Fitness Activities,Licences,60410
http://statistics.data.gov.uk/id/local-authority/12UE,Huntingdonshire District Council,200611.00,PPL PRS LTD PERFORMING RIGHT SOCIETY,025390,01/04/2020,SIN1428943,ROYALTIES,23/04/2020,254.6,1273.02,1527.62,OLH - Site & Centre Management,Licences,60410
http://statistics.data.gov.uk/id/local-authority/12UE,Huntingdonshire District Council,200611.00,PPL PRS LTD PERFORMING RIGHT SOCIETY,025390,01/04/2020,SIN1428943,ROYALTIES,23/04/2020,594.97,2974.83,3569.8,OLR - Fitness Activities,Licences,60410
http://statistics.data.gov.uk/id/local-authority/12UE,Huntingdonshire District Council,200809.00,UKACTIVE UKACTIVE,023859,19/02/2020,TD-038509,OL ST IVES,08/04/2020,501.98,2509.88,3011.86,OLR - Fitness Activities,Licences,60410
http://statistics.data.gov.uk/id/local-authority/12UE,Huntingdonshire District Council,200809.00,UKACTIVE UKACTIVE,026601,15/04/2020,117749,OL ST IVES,07/05/2020,31.6,158,189.6,OLR - Fitness Activities,Licences,60410
http://statistics.data.gov.uk/id/local-authority/12UE,Huntingdonshire District Council,200611.00,PPL PRS LTD PERFORMING RIGHT SOCIETY,025390,01/04/2020,SIN1428943,ROYALTIES,23/04/2020,256.49,1282.44,1538.93,OLR - Site & Centre Management,Licences,60410
http://statistics.data.gov.uk/id/local-authority/12UE,Huntingdonshire District Council,200611.00,PPL PRS LTD PERFORMING RIGHT SOCIETY,024329,23/03/2020,SIN1427270,OLSI LICENCE FOR MUSIC,16/04/2020,254.09,1270.45,1524.54,OLSI - Burgess Hall,Licences,60410
http://statistics.data.gov.uk/id/local-authority/12UE,Huntingdonshire District Council,200611.00,PPL PRS LTD PERFORMING RIGHT SOCIETY,025390,01/04/2020,SIN1428943,ROYALTIES,23/04/2020,1111,5555.02,6666.02,OLSI - Fitness Activities,Licences,60410
http://statistics.data.gov.uk/id/local-authority/12UE,Huntingdonshire District Council,200809.00,UKACTIVE UKACTIVE,023859,19/02/2020,TD-038509,OL ST IVES,08/04/2020,935.03,4675.12,5610.15,OLSI - Fitness Activities,Licences,60410
http://statistics.data.gov.uk/id/local-authority/12UE,Huntingdonshire District Council,200809.00,UKACTIVE UKACTIVE,026601,15/04/2020,117749,OL ST IVES,07/05/2020,70.33,351.67,422,OLSI - Fitness Activities,Licences,60410
http://statistics.data.gov.uk/id/local-authority/12UE,Huntingdonshire District Council,200489.00,LES MILLS UK LES MILLS UK,023407,06/03/2020,LMUK-SIV-013333,OL ST IVES,02/04/2020,55.81,279.07,334.88,OLSI - Fitness Activities,Licences,60410
http://statistics.data.gov.uk/id/local-authority/12UE,Huntingdonshire District Council,200489.00,LES MILLS UK LES MILLS UK,027836,07/05/2020,LMUK-SIV-026914,OL ST IVES,04/06/2020,55.81,279.07,334.88,OLSI - Fitness Activities,Licences,60410
http://statistics.data.gov.uk/id/local-authority/12UE,Huntingdonshire District Council,200489.00,LES MILLS UK LES MILLS UK,027836,09/04/2020,LMUK-SIV-023294,OL ST IVES,04/06/2020,55.81,279.07,334.88,OLSI - Fitness Activities,Licences,60410
http://statistics.data.gov.uk/id/local-authority/12UE,Huntingdonshire District Council,200611.00,PPL PRS LTD PERFORMING RIGHT SOCIETY,025390,01/04/2020,SIN1428943,ROYALTIES,23/04/2020,609.72,3048.61,3658.33,OLSI - Site & Centre Management,Licences,60410
http://statistics.data.gov.uk/id/local-authority/12UE,Huntingdonshire District Council,200611.00,PPL PRS LTD PERFORMING RIGHT SOCIETY,025390,01/04/2020,SIN1428930,OL ST IVES,23/04/2020,96.9,484.51,581.41,OLSIO - Site & Centre Management,Licences,60410
http://statistics.data.gov.uk/id/local-authority/12UE,Huntingdonshire District Council,200611.00,PPL PRS LTD PERFORMING RIGHT SOCIETY,025390,01/04/2020,SIN1428943,ROYALTIES,23/04/2020,986.84,4934.21,5921.05,OLSN - Fitness Activities,Licences,60410
http://statistics.data.gov.uk/id/local-authority/12UE,Huntingdonshire District Council,200809.00,UKACTIVE UKACTIVE,023859,19/02/2020,TD-038509,OL ST IVES,08/04/2020,842.42,4212.1,5054.52,OLSN - Fitness Activities,Licences,60410
http://statistics.data.gov.uk/id/local-authority/12UE,Huntingdonshire District Council,200809.00,UKACTIVE UKACTIVE,026601,15/04/2020,117749,OL ST IVES,07/05/2020,61.16,305.8,366.96,OLSN - Fitness Activities,Licences,60410
http://statistics.data.gov.uk/id/local-authority/12UE,Huntingdonshire District Council,200611.00,PPL PRS LTD PERFORMING RIGHT SOCIETY,025390,01/04/2020,SIN1428943,ROYALTIES,23/04/2020,431.43,2157.14,2588.57,OLSN - Site & Centre Management,Licences,60410
